SupplierID,SupplierIDT,Amount,AccountT,TransactionNo,PayDate,ServiceT,CostCentreT,Account
700264,Acorn Environmental Mgt Group Limited,"35,120.57",Grounds Maintenance - Contract,130308020,18/02/2021,Environmental Services,Arbor Scheme,R2075
700264,Acorn Environmental Mgt Group Limited,"2,435.64",Grounds Maintenance - Contract,130310724,12/02/2021,Environmental Services,Arbor Scheme,R2075
700341,Acs Business Supplies Limited,32.10,Stationery,130278933,02/02/2021,Business Change,"Business Support Unit		",R4308
700341,Acs Business Supplies Limited,83.07,Stationery,130312455,18/02/2021,Specialist Support,Upper Pendeford Farm Short Breaks Centre,R4308
700341,Acs Business Supplies Limited,67.10,Stationery,130312455,18/02/2021,Specialist Support,Upper Pendeford Farm Short Breaks Centre,R4308
700341,Acs Business Supplies Limited,61.80,Stationery,130299312,02/02/2021,Business Change,"Business Support Unit		",R4308
700341,Acs Business Supplies Limited,295.30,Stationery,130273531,02/02/2021,Business Change,"Business Support Unit		",R4308
700341,Acs Business Supplies Limited,119.12,Stationery,130310232,02/02/2021,Business Change,"Business Support Unit		",R4308
700341,Acs Business Supplies Limited,43.95,Stationery,130310595,02/02/2021,Business Change,"Business Support Unit		",R4308
700341,Acs Business Supplies Limited,25.54,Stationery,130311113,03/02/2021,Business Change,"Business Support Unit		",R4308
700341,Acs Business Supplies Limited,177.98,Stationery,130308473,01/02/2021,Strategic Commissioning,Head of Strategic Commissioning,R4308
700341,Acs Business Supplies Limited,4.20,Stationery,130310107,03/02/2021,Parking Services,Car Parks Operational Staff,R4308
700341,Acs Business Supplies Limited,98.00,Stationery,130292323,15/02/2021,Parking Services,Parking Enforcement,R4308
700341,Acs Business Supplies Limited,33.27,Stationery,130312457,15/02/2021,Business Change,"Business Support Unit		",R4308
700341,Acs Business Supplies Limited,72.06,Stationery,130311600,08/02/2021,Business Change,"Business Support Unit		",R4308
700341,Acs Business Supplies Limited,67.74,Stationery,130311600,08/02/2021,Business Change,"Business Support Unit		",R4308
700341,Acs Business Supplies Limited,104.94,Stationery,130310963,15/02/2021,Catering,Education Catering  General Overheads,R4308
700341,Acs Business Supplies Limited,106.02,Stationery,130310963,15/02/2021,Cleaning,Cleaning of Buildings  General,R4308
700341,Acs Business Supplies Limited,-98.00,Stationery,130311233,15/02/2021,Parking Services,Parking Enforcement,R4308
700341,Acs Business Supplies Limited,39.98,Stationery,130306259,24/02/2021,Community Financial Support,Macmillan Welfare Rights Service,R4308
700341,Acs Business Supplies Limited,17.98,Stationery,130309466,24/02/2021,Community Financial Support,Macmillan Welfare Rights Service,R4308
700341,Acs Business Supplies Limited,39.98,Stationery,130298523,24/02/2021,Community Financial Support,Macmillan Welfare Rights Service,R4308
700341,Acs Business Supplies Limited,58.29,Stationery,130305313,25/02/2021,Business Change,"Business Support Unit		",R4308
700341,Acs Business Supplies Limited,61.47,Stationery,130310962,23/02/2021,Community Financial Support,Macmillan Welfare Rights Service,R4308
700341,Acs Business Supplies Limited,137.94,Stationery,130312751,23/02/2021,Special Educational Needs,SEN Sensory Inclusion,R4308
700341,Acs Business Supplies Limited,39.98,Stationery,130297307,24/02/2021,Community Financial Support,Macmillan Welfare Rights Service,R4308
700341,Acs Business Supplies Limited,241.10,Stationery,130312750,26/02/2021,Special Educational Needs,SEN Early Years Team,R4308
700550,Actso Limited,121.00,Subscriptions,130313054,16/02/2021,Public Protection,Trading Standards,R4701
700770,Adt Fire And Security PLC,-230.58,Services - Security,130310965,12/02/2021,Project and Works Team � Maintenance Programm,Centralised R&M,R4405
700770,Adt Fire And Security PLC,590.16,Services - Security,130310964,12/02/2021,Project and Works Team � Maintenance Programm,Centralised R&M,R4405
700979,Af Blakemore/Blakemore Foodservice,"1,171.54",Provisions (Resale),130310967,09/02/2021,Visitor Economy,Bantock  Tea Rooms,R4102
700979,Af Blakemore/Blakemore Foodservice,848.47,Provisions (Resale),130310969,09/02/2021,Catering,"West Park Tea Room	",R4102
700979,Af Blakemore/Blakemore Foodservice,200.86,Provisions (Resale),130310966,09/02/2021,Leisure Services,WV Active Catering,R4102
700979,Af Blakemore/Blakemore Foodservice,588.38,Provisions (Resale),130310968,10/02/2021,Catering,Meals on Wheels,R4102
700979,Af Blakemore/Blakemore Foodservice,"45,910.09",Provisions (Resale),130311766,09/02/2021,Catering,Education Catering  General Overheads,R4102
701155,Aidapt Bathrooms Limited,65.00,Equipment - R & M,130313407,24/02/2021,Older People Provider Services,"ILS Stores			",R4003
701393,Aldersley Church Early Learning Committee,376.03,TPP - Private Nursery Education Funding,190819528,03/02/2021,Early Years,"Early Years Weighted Deprivation 3 and 4 Year Olds	",R5035
701393,Aldersley Church Early Learning Committee,"10,216.80",TPP - Private Nursery Education Funding,190820372,05/02/2021,Early Years,Early Years Universal Entitlement for 3 and 4 Year Olds,R5035
701393,Aldersley Church Early Learning Committee,"7,469.28",TPP - Private Nursery Education Funding,190820436,05/02/2021,Early Years,Early Years Entitlement Funding for Disadvantaged 2 Year Olds,R5035
701394,Aldersley High Sch/Aldersley Acad Tr,"2,089.19",Grant Payments,190828580,25/02/2021,Central Education,High Incidence SEN,R4700
701417,All Saints Action Network Limited,200.00,Grant Payments,190822861,12/02/2021,Ward Funds,Ward Fund - Ettingshall,R4700
701417,All Saints Action Network Limited,"3,965.40",TPP - Private Nursery Education Funding,190819529,03/02/2021,Early Years,"Early Years Weighted Deprivation 3 and 4 Year Olds	",R5035
701417,All Saints Action Network Limited,"9,192.96",TPP - Private Nursery Education Funding,190820437,05/02/2021,Early Years,Early Years Entitlement Funding for Disadvantaged 2 Year Olds,R5035
701417,All Saints Action Network Limited,"16,718.40",TPP - Private Nursery Education Funding,190820373,05/02/2021,Early Years,Early Years Universal Entitlement for 3 and 4 Year Olds,R5035
701439,Allstar Business Solutions Limited,4.95,Petrol,190829085,26/02/2021,Fleet Services,Fleet Management,R3000
701439,Allstar Business Solutions Limited,232.44,Petrol,190829085,26/02/2021,Fleet Services,Fleet Management,R3000
701439,Allstar Business Solutions Limited,40.00,Petrol,190829085,26/02/2021,Fleet Services,Fleet Management,R3000
701439,Allstar Business Solutions Limited,115.28,Petrol,190829085,26/02/2021,Fleet Services,Fleet Management,R3000
701439,Allstar Business Solutions Limited,48.83,Petrol,190817732,01/02/2021,Fleet Services,Fleet Management,R3000
701439,Allstar Business Solutions Limited,106.46,Petrol,190817732,01/02/2021,Fleet Services,Fleet Management,R3000
701446,Alphabiolabs,107.50,Services - Professional Fees,190828595,25/02/2021,Legal Services,Centralised External Legal Costs,R4400
701446,Alphabiolabs,863.34,Services - Professional Fees,190828594,25/02/2021,Legal Services,Centralised External Legal Costs,R4400
701446,Alphabiolabs,296.34,Services - Professional Fees,130313516,25/02/2021,Legal Services,Centralised External Legal Costs,R4400
701446,Alphabiolabs,184.75,Services - Professional Fees,130313515,25/02/2021,Legal Services,Centralised External Legal Costs,R4400
701446,Alphabiolabs,535.00,Services - Professional Fees,130312321,10/02/2021,Strengthening Families,CP Area 7 - Low Hill,R4400
701451,Als-Holdings Limited T/A Ac Education,"1,100.00",Training Expenses,130313517,25/02/2021,Children & Young People In Care,Fostering Team,R1650
701509,Angel Springs Limited (Waterlogic),58.98,Catering,130311885,18/02/2021,Facilities Management,Culwell Street Depot,R4100
701509,Angel Springs Limited (Waterlogic),55.45,Provisions (Not for resale),130312129,16/02/2021,Transportation,Passenger Transport  General,R4101
701509,Angel Springs Limited (Waterlogic),18.57,Catering,130312131,16/02/2021,Facilities Management,Culwell Street Depot,R4100
701509,Angel Springs Limited (Waterlogic),37.14,Provisions (Not for resale),130312130,16/02/2021,Transportation,Passenger Transport  General,R4101
701509,Angel Springs Limited (Waterlogic),124.65,Catering,130311886,18/02/2021,Facilities Management,Culwell Street Depot,R4100
701509,Angel Springs Limited (Waterlogic),46.92,Provisions (Not for resale),130311235,02/02/2021,Strengthening Families,EI Area 5 - Whitmore Reans,R4101
701509,Angel Springs Limited (Waterlogic),118.94,Provisions (Not for resale),130312607,12/02/2021,Highways Maintenance,Patching,R4101
701509,Angel Springs Limited (Waterlogic),89.82,Catering,130311883,18/02/2021,Facilities Management,Culwell Street Depot,R4100
701509,Angel Springs Limited (Waterlogic),106.25,Catering,130311884,18/02/2021,Facilities Management,Culwell Street Depot,R4100
701509,Angel Springs Limited (Waterlogic),16.10,Catering,130309833,10/02/2021,Environmental Services,Ground Maintenance East,R4100
701509,Angel Springs Limited (Waterlogic),15.00,Provisions (Not for resale),130312325,10/02/2021,Strengthening Families,EI Area 7 - Low Hill,R4101
701509,Angel Springs Limited (Waterlogic),40.90,Provisions (Not for resale),130310888,03/02/2021,Transportation,Passenger Transport  General,R4101
701509,Angel Springs Limited (Waterlogic),112.15,Catering,130311882,10/02/2021,Facilities Management,Culwell Street Depot,R4100
701509,Angel Springs Limited (Waterlogic),28.84,Catering,130312323,11/02/2021,Adult Education,Foyer Building,R4100
701509,Angel Springs Limited (Waterlogic),28.84,Catering,130312323,11/02/2021,Adult Education,Old Hall Street Main,R4100
701509,Angel Springs Limited (Waterlogic),21.75,Catering,130309832,03/02/2021,Adult Education,Foyer Building,R4100
701509,Angel Springs Limited (Waterlogic),21.75,Catering,130309832,03/02/2021,Adult Education,Old Hall Street Main,R4100
701509,Angel Springs Limited (Waterlogic),209.22,Provisions (Not for resale),130310890,08/02/2021,Fleet Services,Fleet Management,R4101
701509,Angel Springs Limited (Waterlogic),37.14,Provisions (Not for resale),130312606,12/02/2021,Highways Maintenance,Patching,R4101
701512,Anglia Dna Services Limited,106.00,Services - Professional Fees,130310348,02/02/2021,Legal Services,Centralised External Legal Costs,R4400
701512,Anglia Dna Services Limited,118.50,Services - Professional Fees,130310347,02/02/2021,Legal Services,Centralised External Legal Costs,R4400
701512,Anglia Dna Services Limited,424.00,Section 17,130311236,01/02/2021,Strengthening Families,CP Area 7 - Low Hill,R6403
701512,Anglia Dna Services Limited,141.34,Services - Professional Fees,130312608,12/02/2021,Legal Services,Centralised External Legal Costs,R4400
701534,Antalis Limited,947.20,Materials,130312754,15/02/2021,ICTS,Document Centre  General,R4007
701547,Apetito Limited,"2,371.26",Provisions (Resale),130311767,15/02/2021,Catering,Meals on Wheels,R4102
701547,Apetito Limited,"2,154.94",Provisions (Resale),130312326,15/02/2021,Catering,Meals on Wheels,R4102
701547,Apetito Limited,"1,230.57",Provisions (Resale),130310605,15/02/2021,Catering,Meals on Wheels,R4102
701547,Apetito Limited,-29.31,Provisions (Resale),130312132,15/02/2021,Catering,Meals on Wheels,R4102
701547,Apetito Limited,"1,272.22",Provisions (Resale),130310893,15/02/2021,Catering,Meals on Wheels,R4102
701547,Apetito Limited,"1,341.77",Provisions (Resale),130311601,15/02/2021,Catering,Meals on Wheels,R4102
701547,Apetito Limited,"1,239.94",Provisions (Resale),130310113,15/02/2021,Catering,Meals on Wheels,R4102
701547,Apetito Limited,810.30,Provisions (Resale),130310349,15/02/2021,Catering,Meals on Wheels,R4102
701547,Apetito Limited,70.64,Provisions (Resale),130310349,15/02/2021,Catering,Meals on Wheels,R4102
701547,Apetito Limited,"1,592.82",Provisions (Resale),130309288,15/02/2021,Catering,Meals on Wheels,R4102
701547,Apetito Limited,"1,315.60",Provisions (Resale),130311237,15/02/2021,Catering,Meals on Wheels,R4102
701547,Apetito Limited,"1,227.39",Provisions (Resale),130309841,15/02/2021,Catering,Meals on Wheels,R4102
701547,Apetito Limited,"1,496.66",Provisions (Resale),130309716,15/02/2021,Catering,Meals on Wheels,R4102
701603,Arnold Clark Finance Limited,118.98,Hire of Vehicles,190825894,23/02/2021,Fleet Services,Fleet Management,R3200
701603,Arnold Clark Finance Limited,269.42,Hire of Vehicles,190825893,23/02/2021,Fleet Services,Fleet Management,R3200
701613,Arthur Brett (Catering) Limited,8.62,Provisions (Resale),130311887,09/02/2021,Leisure Services,WV Active Catering,R4102
701613,Arthur Brett (Catering) Limited,126.27,Provisions (Resale),130311888,09/02/2021,Visitor Economy,Bantock  Tea Rooms,R4102
701613,Arthur Brett (Catering) Limited,"8,085.29",Provisions (Resale),130311890,09/02/2021,Catering,Education Catering  General Overheads,R4102
701613,Arthur Brett (Catering) Limited,192.26,Provisions (Resale),130311889,09/02/2021,Catering,Meals on Wheels,R4102
701636,Asdan Limited,18.00,"Education trips, Holidays, Outings & Activities",130311520,03/02/2021,Specialist Support,"Power2 Team			",R4970
701643,Ashdown Supplies,420.00,Materials,130313098,22/02/2021,Bereavement Services,Crematorium,R4007
701649,Ashmore Park Nursery School Fund,500.00,Grant Payments,190821046,09/02/2021,Ward Funds,Ward Fund - Wednesfield North,R4700
701656,Askews & Holts Library Services Limited,"3,833.58",Books,130312327,15/02/2021,Local Economy,Global Budgets,R4309
701656,Askews & Holts Library Services Limited,507.05,Books,130313570,26/02/2021,Local Economy,Global Budgets,R4309
701656,Askews & Holts Library Services Limited,"4,078.99",Books,130310895,17/02/2021,Local Economy,Global Budgets,R4309
701656,Askews & Holts Library Services Limited,820.66,Books,130312932,17/02/2021,Local Economy,Global Budgets,R4309
701656,Askews & Holts Library Services Limited,"1,069.45",Books,130311602,15/02/2021,Local Economy,Global Budgets,R4309
701680,Associated  Radio Taxi�s,716.04,Client Transport,130311605,09/02/2021,Transportation,Primary  Transport,R3042
701680,Associated  Radio Taxi�s,770.76,Client Transport,130311603,09/02/2021,Transportation,Secondary  Transport,R3042
701680,Associated  Radio Taxi�s,"1,001.70",Client Transport,130311604,09/02/2021,Transportation,Secondary  Transport,R3042
701680,Associated  Radio Taxi�s,"1,222.40",Client Transport,130311611,09/02/2021,Transportation,Special  Transport,R3042
701680,Associated  Radio Taxi�s,54.60,Client Transport,130311606,09/02/2021,Transportation,Primary  Transport,R3042
701680,Associated  Radio Taxi�s,571.00,Client Transport,130311610,09/02/2021,Transportation,Special  Transport,R3042
701680,Associated  Radio Taxi�s,933.09,Client Transport,130311609,09/02/2021,Transportation,Secondary  Transport,R3042
701680,Associated  Radio Taxi�s,"1,121.64",Client Transport,130311607,09/02/2021,Transportation,Primary  Transport,R3042
701680,Associated  Radio Taxi�s,828.36,Client Transport,130311608,09/02/2021,Transportation,Primary  Transport,R3042
701687,A-Stat Office Technology Limited,138.90,Services - Professional Fees,130313401,22/02/2021,Housing Revenue Account,Springfield Horseshoe Co-op/Burton Rd.,R4400
701738,Axiell ALM Limited,650.00,Training Expenses,130312609,15/02/2021,Visitor Economy,Research & Development - NPO ACE WAG,R1650
701748,B + G Cleaning Systems Limited,219.00,Hire of Plant,130312458,16/02/2021,Waste and Recycling,Waste Collection and Recycling Service  General,R3201
701748,B + G Cleaning Systems Limited,219.00,Hire of Plant,130312460,16/02/2021,Waste and Recycling,Waste Collection and Recycling Service  General,R3201
701748,B + G Cleaning Systems Limited,219.00,Hire of Plant,130312459,16/02/2021,Waste and Recycling,Waste Collection and Recycling Service  General,R3201
701748,B + G Cleaning Systems Limited,219.00,Hire of Plant,130312461,16/02/2021,Waste and Recycling,Waste Collection and Recycling Service  General,R3201
701748,B + G Cleaning Systems Limited,219.00,Hire of Plant,130313400,22/02/2021,Waste and Recycling,Waste Man.Partnership  Environmental Team,R3201
701748,B + G Cleaning Systems Limited,219.00,Hire of Plant,130312462,15/02/2021,Waste and Recycling,Waste Collection and Recycling Service  General,R3201
701787,Baker Hall Limited,98.75,External Professional Fees,130309368,12/02/2021,-,Corporate Asset Management,C6002
701798,Barbour Logic Limited,"4,725.00",Computing - Purchase of Hardware,130312328,10/02/2021,Parking Services,Parking Enforcement,R4530
701808,Barnsley Metropolitan Boro Council,"3,000.00",Subscriptions,130313519,24/02/2021,Strategic Finance,Strategic Finance,R4701
701817,Base 25,"1,570.00",TPP - Payments to voluntary groups,130311612,10/02/2021,Headstart,"Headstart - Communities			",R5200
701817,Base 25,"49,617.84",TPP - Social Care Support Services,130312933,17/02/2021,Head of Children�s Improvement,"Emotional Mental Health Wellbeing Service			",R5501
701832,Bbp.Security Services & Training Limited,"6,468.75",Services - Security,130312463,12/02/2021,Markets,Bilston Market and Licensed Operations,R4405
701832,Bbp.Security Services & Training Limited,"4,404.50",Services - Security,130312464,12/02/2021,Markets,Wholesale Market,R4405
701832,Bbp.Security Services & Training Limited,"7,331.25",Services - Security,130311894,09/02/2021,Covid-19 (Public Health 1),"COVID 19  Track and Trace			",R4405
701832,Bbp.Security Services & Training Limited,764.65,Services - Security,130311893,09/02/2021,Covid-19 (Public Health 1),"COVID 19  Track and Trace			",R4405
701832,Bbp.Security Services & Training Limited,"6,491.75",Services - Security,130311895,09/02/2021,Covid-19 (Public Health 1),"COVID 19  Track and Trace			",R4405
701832,Bbp.Security Services & Training Limited,"1,394.38",Services - Security,130311892,09/02/2021,Cleaning,Schools Cleaning,R4405
701832,Bbp.Security Services & Training Limited,"13,949.50",Services - Security,130312465,12/02/2021,Markets,Wolverhampton Indoor and Open Market,R4405
701832,Bbp.Security Services & Training Limited,"13,792.50",Services - Security,130309718,04/02/2021,Markets,Wolverhampton Indoor and Open Market,R4405
701832,Bbp.Security Services & Training Limited,"14,218.00",Services - Security,130310971,01/02/2021,Markets,Wolverhampton Indoor and Open Market,R4405
701835,BCC Mac T/A St Michaels Catholic,"5,418.00",TPP - Private Nursery Education Funding,190819520,03/02/2021,Early Years,Early Years Universal Entitlement for 3 and 4 Year Olds,R5035
701835,BCC Mac T/A St Michaels Catholic,"18,931.08",Grant Payments,190828583,25/02/2021,Central Education,High Incidence SEN,R4700
701835,BCC Mac T/A St Michaels Catholic,"1,025.54",TPP - Private Nursery Education Funding,190819602,03/02/2021,Early Years,"Early Years Weighted Deprivation 3 and 4 Year Olds	",R5035
701835,BCC Mac T/A St Michaels Catholic,"1,000.00",TPP - Private Nursery Education Funding,190830640,26/02/2021,Early Years,Early Years SEN Inclusion Fund,R5035
701837,SS Peter & Paul Cath. Primary & Nursery,"1,000.00",TPP - Private Nursery Education Funding,190830637,26/02/2021,Early Years,Early Years SEN Inclusion Fund,R5035
701837,SS Peter & Paul Cath. Primary & Nursery,854.61,TPP - Private Nursery Education Funding,190819595,03/02/2021,Early Years,"Early Years Weighted Deprivation 3 and 4 Year Olds	",R5035
701848,Bearing Man Limited,26.96,Equipment - Purchase,190828214,24/02/2021,Fleet Services,Fleet Management,R4000
701848,Bearing Man Limited,39.44,Equipment - Purchase,190828214,24/02/2021,Fleet Services,Fleet Management,R4000
701920,Biffa Waste Services Limited,"5,036.66",TPP - Waste Disposal,130312466,12/02/2021,Waste Commerical Services,"Commercial Waste Disposal			",R5003
701920,Biffa Waste Services Limited,"6,096.04",TPP - Waste Disposal,130309578,16/02/2021,Waste Commerical Services,"Commercial Waste Disposal			",R5003
701920,Biffa Waste Services Limited,"6,040.77",TPP - Waste Disposal,130312934,24/02/2021,Waste Commerical Services,"Commercial Waste Disposal			",R5003
701920,Biffa Waste Services Limited,"6,957.36",TPP - Waste Disposal,130313055,24/02/2021,Waste Commerical Services,"Commercial Waste Disposal			",R5003
701930,Bilston Resource Centre,"5,000.00",Services - Professional Fees,130310972,03/02/2021,Adult Education,"AEB Business Case Growth Skills for Employed & Innovation			",R4400
701944,Birmingham CC - General Fund,"3,850.00",TPP - Payments to Local Authorities,130310896,04/02/2021,Special Educational Needs,SEN Education OOC,R5100
701944,Birmingham CC - General Fund,"13,037.65",Comms - Postage,130313100,22/02/2021,Business Change,"Business Support Unit		",R4503
701983,Blakenhall Neighbourhood Nursery,"8,043.84",TPP - Private Nursery Education Funding,190820443,05/02/2021,Early Years,Early Years Entitlement Funding for Disadvantaged 2 Year Olds,R5035
701983,Blakenhall Neighbourhood Nursery,"1,982.70",TPP - Private Nursery Education Funding,190819534,03/02/2021,Early Years,"Early Years Weighted Deprivation 3 and 4 Year Olds	",R5035
701983,Blakenhall Neighbourhood Nursery,"22,755.60",TPP - Private Nursery Education Funding,190820378,05/02/2021,Early Years,Early Years Universal Entitlement for 3 and 4 Year Olds,R5035
702008,BME Travel,"3,047.08",Client Transport,130311390,02/02/2021,Transportation,Special  Transport,R3042
702015,Boc Limited,62.53,Rent,130311613,08/02/2021,City Events,The Little Civic,R2200
702015,Boc Limited,65.45,Rent,130311614,08/02/2021,City Events,The Little Civic,R2200
702041,Boulton Travel Limited,"2,359.61",Client Transport,130311618,04/02/2021,Transportation,Special  Transport,R3042
702041,Boulton Travel Limited,"2,437.50",Client Transport,130311620,23/02/2021,Transportation,Special  Transport,R3042
702041,Boulton Travel Limited,"2,685.15",Client Transport,130311619,23/02/2021,Transportation,Special  Transport,R3042
702041,Boulton Travel Limited,"4,356.80",Client Transport,130311621,23/02/2021,Transportation,Special  Transport,R3042
702041,Boulton Travel Limited,"3,158.37",Client Transport,130311616,04/02/2021,Transportation,Special  Transport,R3042
702041,Boulton Travel Limited,"2,376.71",Client Transport,130311615,04/02/2021,Transportation,Special  Transport,R3042
702041,Boulton Travel Limited,"2,375.00",Client Transport,130311617,04/02/2021,Transportation,Special  Transport,R3042
702041,Boulton Travel Limited,"2,375.00",Client Transport,130312134,09/02/2021,Transportation,Special  Transport,R3042
702041,Boulton Travel Limited,"2,375.00",Client Transport,130312135,09/02/2021,Transportation,Special  Transport,R3042
702046,Bourne Leisure Limited,307.29,TPP - Short Breaks,130313116,25/02/2021,Carer Support,Carers Support,R5500
702046,Bourne Leisure Limited,80.95,TPP - Short Breaks,130313111,25/02/2021,Carer Support,Carers Support,R5500
702046,Bourne Leisure Limited,210.89,TPP - Short Breaks,130313115,25/02/2021,Carer Support,Carers Support,R5500
702046,Bourne Leisure Limited,90.48,TPP - Short Breaks,130313106,25/02/2021,Carer Support,Carers Support,R5500
702046,Bourne Leisure Limited,161.30,TPP - Short Breaks,130313109,25/02/2021,Carer Support,Carers Support,R5500
702046,Bourne Leisure Limited,72.14,TPP - Short Breaks,130313117,25/02/2021,Carer Support,Carers Support,R5500
702046,Bourne Leisure Limited,"5,383.57",TPP - Short Breaks,130313113,25/02/2021,Carer Support,Carers Support,R5500
702046,Bourne Leisure Limited,-149.06,TPP - Short Breaks,130313103,18/02/2021,Carer Support,Carers Support,R5500
702046,Bourne Leisure Limited,-195.83,TPP - Short Breaks,130313108,18/02/2021,Carer Support,Carers Support,R5500
702046,Bourne Leisure Limited,41.14,TPP - Short Breaks,130313105,18/02/2021,Carer Support,Carers Support,R5500
702046,Bourne Leisure Limited,44.50,TPP - Short Breaks,130313118,18/02/2021,Carer Support,Carers Support,R5500
702046,Bourne Leisure Limited,"-1,582.75",TPP - Short Breaks,130313102,18/02/2021,Carer Support,Carers Support,R5500
702046,Bourne Leisure Limited,-372.68,TPP - Short Breaks,130313114,18/02/2021,Carer Support,Carers Support,R5500
702046,Bourne Leisure Limited,"6,209.29",TPP - Short Breaks,130313107,18/02/2021,Carer Support,Carers Support,R5500
702046,Bourne Leisure Limited,4.91,TPP - Short Breaks,130313104,18/02/2021,Carer Support,Carers Support,R5500
702046,Bourne Leisure Limited,267.91,TPP - Short Breaks,130313110,18/02/2021,Carer Support,Carers Support,R5500
702093,Briggs Equiptment UK Limited,413.33,Hire of Vehicles,130313276,19/02/2021,Markets,Wholesale Market Facilities Management,R3200
702093,Briggs Equiptment UK Limited,413.33,Hire of Vehicles,130313119,18/02/2021,Markets,Wholesale Market Facilities Management,R3200
702093,Briggs Equiptment UK Limited,413.33,Hire of Vehicles,130313056,18/02/2021,Markets,Wholesale Market Facilities Management,R3200
702109,British Dyslexia Association,"1,950.00",Training Expenses,130311896,09/02/2021,Adult Education,Staff Development,R1650
702157,Browne Jacobson Llp,"1,667.50",Insurance - General,190823538,16/02/2021,Audit Services,Legal Liability,R4962
702157,Browne Jacobson Llp,"10,427.50",Insurance - General,190827449,24/02/2021,Audit Services,Legal Liability,R4962
702157,Browne Jacobson Llp,933.00,Insurance - General,190827450,24/02/2021,Audit Services,Legal Liability,R4962
702157,Browne Jacobson Llp,406.00,Insurance - General,190827447,24/02/2021,Audit Services,Legal Liability,R4962
702157,Browne Jacobson Llp,"1,428.00",Insurance - General,190827451,24/02/2021,Audit Services,Legal Liability,R4962
702157,Browne Jacobson Llp,"3,704.50",Insurance - General,190827448,24/02/2021,Audit Services,Legal Liability,R4962
702157,Browne Jacobson Llp,416.00,Insurance - General,190827452,24/02/2021,Audit Services,Legal Liability,R4962
702157,Browne Jacobson Llp,336.00,Insurance - General,190823539,16/02/2021,Audit Services,Legal Liability,R4962
702157,Browne Jacobson Llp,429.00,Insurance - General,190820778,08/02/2021,Audit Services,Legal Liability,R4962
702164,Bruton Knowles,"1,000.00",Services - Fees and Charges,130289547,16/02/2021,City Planning,Planning,R4401
702164,Bruton Knowles,"2,200.00",Services - Professional Fees,130309370,09/02/2021,Estates and Valuations,Industrial Premises ; Loxdale Park,R4400
702164,Bruton Knowles,"2,200.00",Services - Professional Fees,130309845,09/02/2021,Estates and Valuations,"Industrial Premises ; NEC,Monmore Road",R4400
702164,Bruton Knowles,"2,200.00",Services - Professional Fees,130309843,09/02/2021,Estates and Valuations,Industrial Premises ; Fordhouse Road,R4400
702164,Bruton Knowles,"2,200.00",Services - Professional Fees,130309844,09/02/2021,Estates and Valuations,Industrial Premises ; Landport Road,R4400
702181,United Living,"2,802.74","Plant, Equipment, Machinery & Computer Hardware",130310606,02/02/2021,-,ICT General Programme,C3000
702181,United Living,"29,141.00",Construction and Conversion,130310608,03/02/2021,-,New Build infill schemes,C1100
702181,United Living,"818,445.00",Construction and Conversion,130313058,22/02/2021,-,Decent Homes - Stock Improvements,C1100
702181,United Living,"105,180.00",R&M - Departmental planned (external),130313061,22/02/2021,Housing Revenue Account,Amounts to be Settled with Wolverhampton Homes,R2001
702181,United Living,"773,849.00",Construction and Conversion,130313060,22/02/2021,-,Refurbishment of Voids,C1100
702181,United Living,"47,789.00",Construction and Conversion,130313057,22/02/2021,-,Decent Homes - Stock Improvements,C1100
702181,United Living,"60,563.00",Construction and Conversion,130313059,22/02/2021,-,Structural works,C1100
702201,Bury M.B.C,"11,265.88",Client Transport - SEN,130313120,22/02/2021,Transportation,Special  Transport,R3043
702231,Bytes Software Services Limited,"1,776.75",Computing - Purchase of Software,130311624,09/02/2021,ICTS,Strategic ICTS (ICT Service Budget),R4531
702231,Bytes Software Services Limited,169.20,Computing - Purchase of Software,130312469,11/02/2021,ICTS,Strategic ICTS (ICT Service Budget),R4531
702231,Bytes Software Services Limited,"1,411.70",Computing - Purchase of Software,130312467,11/02/2021,ICTS,Strategic ICTS (ICT Service Budget),R4531
702231,Bytes Software Services Limited,564.68,Computing - Purchase of Software,130312468,11/02/2021,ICTS,Strategic ICTS (ICT Service Budget),R4531
702231,Bytes Software Services Limited,"1,885.95",Computing - Purchase of Software,130310899,04/02/2021,ICTS,Strategic ICTS (ICT Service Budget),R4531
702253,C P Davidson & Sons Limited,"3,465.00",Hire of Vehicles,190825886,23/02/2021,Fleet Services,Fleet Management,R3200
702253,C P Davidson & Sons Limited,"2,940.00",Hire of Vehicles,190825888,23/02/2021,Fleet Services,Fleet Management,R3200
702253,C P Davidson & Sons Limited,"3,465.00",Hire of Vehicles,190825887,23/02/2021,Fleet Services,Fleet Management,R3200
702269,Caci Limited (Social Software),"2,700.00",Services - Consultants,130311522,26/02/2021,ICTS,Strategic ICTS (ICT Service Budget),R4404
702293,Camfil Limited,"3,609.00",R&M - Departmental planned (external),130311897,10/02/2021,Project and Works Team � Maintenance Programm,"Civic Centre Repairs & Maintenance	",R2001
702306,Capita Business Serv Limited,856.90,Services - Bank Charges,130309473,03/02/2021,Central Corporate Budgets,"Corporate Management (Bank Charges)			",R4403
702310,Capita Resourcing Limited (Crvs),236.80,Services - Professional Fees,130311238,22/02/2021,The Hub,Criminal Convictions Checking,R4400
702334,HAS Technology Limited,"6,653.96",Computing - Maint Agreements,130311898,26/02/2021,Strategic Commissioning,Head of Strategic Commissioning,R4534
702336,Care Quality Commission,"3,268.00",Services - Professional Fees,130312756,15/02/2021,Older People Provider Services,Bradley Lodge Resource Centre,R4400
702336,Care Quality Commission,"2,388.00",Services - Professional Fees,130312756,15/02/2021,Learning Disability Provider,Duke Street Bungalows,R4400
702336,Care Quality Commission,816.00,Services - Professional Fees,130312756,15/02/2021,Learning Disability Provider,Ernest Bold Court,R4400
702336,Care Quality Commission,"2,085.00",Services - Professional Fees,130312756,15/02/2021,Older People Provider Services,Reablement Team,R4400
702380,Carver (Wolverhampton) Limited,2.14,Equipment - Purchase,190819129,03/02/2021,Fleet Services,Fleet Management,R4000
702380,Carver (Wolverhampton) Limited,5.20,Equipment - Purchase,190819129,03/02/2021,Fleet Services,Fleet Management,R4000
702380,Carver (Wolverhampton) Limited,7.18,Equipment - Purchase,190819129,03/02/2021,Fleet Services,Fleet Management,R4000
702380,Carver (Wolverhampton) Limited,83.17,Services - Professional Fees,130313403,22/02/2021,Housing Revenue Account,Springfield Horseshoe Co-op/Burton Rd.,R4400
702391,Castlecroft Medical Practice,24.36,Services - Professional Fees,190825800,22/02/2021,Children & Young People In Care,Fostering Team & Allowances,R4400
702391,Castlecroft Medical Practice,24.36,Services - Professional Fees,190825799,22/02/2021,Children & Young People In Care,Fostering Team & Allowances,R4400
702396,Cater Walsh Reporting Ltd,94.50,Services - Professional Fees,130310007,02/02/2021,Legal Services,Centralised External Legal Costs,R4400
702396,Cater Walsh Reporting Ltd,11.80,Services - Professional Fees,130310008,02/02/2021,Legal Services,Centralised External Legal Costs,R4400
702396,Cater Walsh Reporting Ltd,114.74,Services - Professional Fees,130311625,04/02/2021,Legal Services,Centralised External Legal Costs,R4400
702396,Cater Walsh Reporting Ltd,66.37,Services - Professional Fees,130312329,10/02/2021,Legal Services,Legal Services,R4400
702413,CBRE Limited,575.00,Services - Consultants,130310439,09/02/2021,Housing Revenue Account,HRA General,R4404
702418,Ccs Media Limited,"1,129.80",Computing - Purchase of Hardware,130312453,10/02/2021,Adult Education,ICT Services,R4530
702418,Ccs Media Limited,"-1,129.80",Computing - Purchase of Hardware,130307280,10/02/2021,Adult Education,ICT Services,R4530
702435,Cent. Learn. PShip Trust T/A Woden,"12,101.32",TPP - Private Nursery Education Funding,190819607,03/02/2021,Early Years,"Early Years Weighted Deprivation 3 and 4 Year Olds	",R5035
702435,Cent. Learn. PShip Trust T/A Woden,"6,579.00",TPP - Private Nursery Education Funding,190819523,03/02/2021,Early Years,Early Years Universal Entitlement for 3 and 4 Year Olds,R5035
702450,GO Carz,7.92,Client Transport,130311626,04/02/2021,Emergency Duty Team,Emergency Duty Team,R3042
702450,GO Carz,98.28,Section 17,130309474,12/02/2021,Strengthening Families,CP Area 4- Bingley,R6403
702450,GO Carz,660.24,Client Transport,130311900,09/02/2021,Children & Young People In Care,Childrens with Disabilities Team,R3042
702452,Central Workwear,902.40,Laundry Expenses,130311239,01/02/2021,Catering,Education Catering  General Overheads,R4202
702484,Charles Endirect Limited,"1,200.00",Materials,130313062,17/02/2021,Street Lighting,Street Lighting Maintenance,R4007
702484,Charles Endirect Limited,"6,008.00",Materials,130313062,17/02/2021,Street Lighting,Street Lighting Maintenance,R4007
702497,Charterhouse Voice & Data PLC,289.95,Computing - Maint Agreements,130308039,09/02/2021,ICTS,Strategic ICTS (ICT Service Budget),R4534
702497,Charterhouse Voice & Data PLC,185.50,Computing - Licences,130313678,26/02/2021,ICTS,Strategic ICTS (ICT Service Budget),R4535
702497,Charterhouse Voice & Data PLC,295.62,Computing - Maint Agreements,130310116,17/02/2021,ICTS,Strategic ICTS (ICT Service Budget),R4534
702497,Charterhouse Voice & Data PLC,360.41,Computing - Maint Agreements,130312936,17/02/2021,ICTS,Strategic ICTS (ICT Service Budget),R4534
702538,Christ Church Infants School Fund,500.00,Grant Payments,190826327,23/02/2021,Ward Funds,Ward Fund - Tettenhall Wightwick,R4700
702543,Chubb Fire & Security Limited,110.00,Services - Security,130297777,26/02/2021,Project and Works Team � Maintenance Programm,Centralised R&M,R4405
702543,Chubb Fire & Security Limited,226.50,Services - Security,130297770,26/02/2021,Project and Works Team � Maintenance Programm,Centralised R&M,R4405
702543,Chubb Fire & Security Limited,303.63,Services - Security,130297783,26/02/2021,Project and Works Team � Maintenance Programm,Centralised R&M,R4405
702543,Chubb Fire & Security Limited,162.15,Services - Security,130297788,26/02/2021,Project and Works Team � Maintenance Programm,Centralised R&M,R4405
702543,Chubb Fire & Security Limited,190.34,Services - Security,130297839,26/02/2021,Project and Works Team � Maintenance Programm,Centralised R&M,R4405
702543,Chubb Fire & Security Limited,143.51,Services - Security,130297790,26/02/2021,Project and Works Team � Maintenance Programm,Centralised R&M,R4405
702543,Chubb Fire & Security Limited,229.04,Services - Security,130297801,26/02/2021,Project and Works Team � Maintenance Programm,Centralised R&M,R4405
702543,Chubb Fire & Security Limited,170.13,Services - Security,130297871,26/02/2021,Project and Works Team � Maintenance Programm,Centralised R&M,R4405
702543,Chubb Fire & Security Limited,252.49,Services - Security,130297873,26/02/2021,Project and Works Team � Maintenance Programm,Centralised R&M,R4405
702543,Chubb Fire & Security Limited,480.00,Services - Security,130297776,26/02/2021,Project and Works Team � Maintenance Programm,Centralised R&M,R4405
702543,Chubb Fire & Security Limited,175.70,Services - Security,130297854,26/02/2021,Project and Works Team � Maintenance Programm,Centralised R&M,R4405
702543,Chubb Fire & Security Limited,465.64,Services - Security,130299955,24/02/2021,Project and Works Team � Maintenance Programm,Centralised R&M,R4405
702543,Chubb Fire & Security Limited,-792.88,Services - Security,130313571,25/02/2021,Project and Works Team � Maintenance Programm,Centralised R&M,R4405
702543,Chubb Fire & Security Limited,110.00,Services - Security,130297834,26/02/2021,Project and Works Team � Maintenance Programm,Centralised R&M,R4405
702543,Chubb Fire & Security Limited,159.06,Services - Security,130292331,26/02/2021,Project and Works Team � Maintenance Programm,Centralised R&M,R4405
702543,Chubb Fire & Security Limited,226.50,Services - Security,130297822,26/02/2021,Project and Works Team � Maintenance Programm,Centralised R&M,R4405
702543,Chubb Fire & Security Limited,175.53,Services - Security,130297794,26/02/2021,Project and Works Team � Maintenance Programm,Centralised R&M,R4405
702543,Chubb Fire & Security Limited,264.59,Services - Security,130297605,26/02/2021,Project and Works Team � Maintenance Programm,Centralised R&M,R4405
702543,Chubb Fire & Security Limited,177.00,Services - Security,130297820,26/02/2021,Project and Works Team � Maintenance Programm,Centralised R&M,R4405
702543,Chubb Fire & Security Limited,201.50,Services - Security,130297826,26/02/2021,Project and Works Team � Maintenance Programm,Centralised R&M,R4405
702543,Chubb Fire & Security Limited,177.00,Services - Security,130297604,26/02/2021,Project and Works Team � Maintenance Programm,Centralised R&M,R4405
702543,Chubb Fire & Security Limited,210.94,Services - Security,130297771,26/02/2021,Project and Works Team � Maintenance Programm,Centralised R&M,R4405
702543,Chubb Fire & Security Limited,330.00,Services - Security,130297773,26/02/2021,Project and Works Team � Maintenance Programm,Centralised R&M,R4405
702543,Chubb Fire & Security Limited,184.20,Services - Security,130297807,26/02/2021,Project and Works Team � Maintenance Programm,Centralised R&M,R4405
702543,Chubb Fire & Security Limited,381.87,Services - Security,130297803,26/02/2021,Project and Works Team � Maintenance Programm,Centralised R&M,R4405
702543,Chubb Fire & Security Limited,249.81,Services - Security,130297837,26/02/2021,Project and Works Team � Maintenance Programm,Centralised R&M,R4405
702543,Chubb Fire & Security Limited,211.33,Services - Security,130297856,26/02/2021,Project and Works Team � Maintenance Programm,Centralised R&M,R4405
702543,Chubb Fire & Security Limited,166.61,Services - Security,130297796,26/02/2021,Project and Works Team � Maintenance Programm,Centralised R&M,R4405
702543,Chubb Fire & Security Limited,226.50,Services - Security,130297769,26/02/2021,Project and Works Team � Maintenance Programm,Centralised R&M,R4405
702543,Chubb Fire & Security Limited,141.75,Services - Security,130297805,26/02/2021,Project and Works Team � Maintenance Programm,Centralised R&M,R4405
702579,City Of Wolverhampton College,"3,195.13",Electricity,130312611,19/02/2021,Adult Education,Old Hall Street Main,R2100
702583,Civica UK Limited,834.59,Computing - Purchase of Software,130311744,09/02/2021,Governance Services,Electoral Registration,R4531
702685,Digraph Transport Supplies Ltd,82.08,Equipment - Purchase,190822390,11/02/2021,Fleet Services,Fleet Management,R4000
702685,Digraph Transport Supplies Ltd,59.16,Equipment - Purchase,190822391,11/02/2021,Fleet Services,Fleet Management,R4000
702685,Digraph Transport Supplies Ltd,29.58,Equipment - Purchase,190822392,11/02/2021,Fleet Services,Fleet Management,R4000
702697,Community Transport,"2,332.06",Client Transport,130312613,16/02/2021,Transportation,Special  Transport,R3042
702697,Community Transport,"2,803.45",Client Transport,130312618,16/02/2021,Transportation,Special  Transport,R3042
702697,Community Transport,"1,008.21",Client Transport,130312616,16/02/2021,Transportation,Special  Transport,R3042
702697,Community Transport,"1,867.26",Client Transport,130312616,16/02/2021,Transportation,Special  Transport,R3042
702697,Community Transport,"2,797.18",Client Transport,130312757,16/02/2021,Transportation,Special  Transport,R3042
702697,Community Transport,"2,395.47",Client Transport,130312617,16/02/2021,Transportation,Special  Transport,R3042
702697,Community Transport,"2,751.79",Client Transport,130312615,16/02/2021,Transportation,Special  Transport,R3042
702697,Community Transport,"2,872.42",Client Transport,130312619,16/02/2021,Transportation,Special  Transport,R3042
702697,Community Transport,"2,323.56",Client Transport,130312612,16/02/2021,Transportation,Special  Transport,R3042
702697,Community Transport,"2,797.18",Client Transport,130312614,16/02/2021,Transportation,Special  Transport,R3042
702713,Compton Hospice/Care,500.00,Grant Payments,190817750,01/02/2021,Ward Funds,Ward Fund - Fallings Park,R4700
702723,Concept Elevators (UK) Ltd,556.43,R&M - Departmental planned (external),130312470,19/02/2021,Project and Works Team � Maintenance Programm,Centralised R&M,R2001
702723,Concept Elevators (UK) Ltd,216.00,R&M - Departmental planned (external),130312471,19/02/2021,Project and Works Team � Maintenance Programm,Centralised R&M,R2001
702738,Connevans Limited,42.23,Services - Assistive technology,130311901,10/02/2021,Special Educational Needs,SEN Sensory Inclusion,R4407
702786,Costa Ltd,550.95,Provisions (Resale),130311240,12/02/2021,Catering,"West Park Tea Room	",R4102
702796,Cougar Monitoring Limited,800.00,Services - Security,130311241,03/02/2021,Waste and Recycling,Shaw Road Civic Amenity Site,R4405
702796,Cougar Monitoring Limited,"9,177.60",Services - Security,130312333,10/02/2021,Facilities Management,Culwell Street Depot,R4405
702796,Cougar Monitoring Limited,"6,022.80",Services - Security,130312334,10/02/2021,Estates and Valuations,Industrial Premises ; Fordhouse Road,R4405
702796,Cougar Monitoring Limited,"9,177.60",Services - Security,130312332,10/02/2021,Facilities Management,Hickman Avenue Depot,R4405
702805,Countrywide Mobility Services Limited,895.00,Equipment - Purchase,130311242,04/02/2021,Older People Provider Services,"ILS Stores			",R4000
702805,Countrywide Mobility Services Limited,195.00,Equipment - R & M,130311242,04/02/2021,Older People Provider Services,"ILS Stores			",R4003
702805,Countrywide Mobility Services Limited,80.00,Equipment - Purchase,130311242,04/02/2021,Older People Provider Services,"ILS Stores			",R4000
702815,Coventry City Council,192.31,Services - Professional Fees,130313573,25/02/2021,School Organisation,Music Support Team,R4400
702821,Cpl Petroleum,605.52,Inventories,190817721,01/02/2021,-,General Fund Balance Sheet,B3000
702821,Cpl Petroleum,"16,581.60",Inventories,190817722,01/02/2021,-,General Fund Balance Sheet,B3000
702821,Cpl Petroleum,"18,764.06",Inventories,190817723,01/02/2021,-,General Fund Balance Sheet,B3000
702821,Cpl Petroleum,704.25,Inventories,190817724,01/02/2021,-,General Fund Balance Sheet,B3000
702863,Credential Environmental Limited,436.80,TPP - Waste Disposal,130313411,25/02/2021,Waste Commerical Services,"Commercial Waste Disposal			",R5003
702865,Crelling Harnesses For Disabled Limited,856.50,Equipment - Purchase,130311902,23/02/2021,Transportation,Special  Transport,R4000
702865,Crelling Harnesses For Disabled Limited,637.50,Equipment - Purchase,130311243,09/02/2021,Transportation,Special  Transport,R4000
702903,CTT (Wolverhampton) Limited,"2,513.70",Client Transport,130312337,16/02/2021,Transportation,Special  Transport,R3042
702903,CTT (Wolverhampton) Limited,"2,358.09",Client Transport,130312338,19/02/2021,Transportation,Special  Transport,R3042
702903,CTT (Wolverhampton) Limited,"1,852.20",Client Transport,130312335,16/02/2021,Transportation,Special  Transport,R3042
702903,CTT (Wolverhampton) Limited,"2,185.00",Client Transport,130312339,16/02/2021,Transportation,Special  Transport,R3042
702903,CTT (Wolverhampton) Limited,"1,955.00",Client Transport,130312336,16/02/2021,Transportation,Special  Transport,R3042
702910,Cummings Brothers,45.00,Equipment - Purchase,130311903,09/02/2021,City Events,"Events - Bilston Town Hall 			",R4000
702910,Cummings Brothers,3.50,Materials,130312472,19/02/2021,Environmental Services,Ground Maintenance East,R4007
702910,Cummings Brothers,100.50,Services - Supplies and Services to service users,130310613,04/02/2021,Adults Safeguarding,"Court of Protection, Funerals and Protection of Property",R4408
702910,Cummings Brothers,45.00,Services - Supplies and Services to service users,130311773,08/02/2021,Adults Safeguarding,"Court of Protection, Funerals and Protection of Property",R4408
702910,Cummings Brothers,90.00,R&M - Departmental planned (external),130312139,09/02/2021,City Development,Southside,R2001
702910,Cummings Brothers,75.00,R&M - Departmental planned (external),130311904,25/02/2021,Facilities Management,Management of Vacant Properties,R2001
702910,Cummings Brothers,10.00,Materials,130313352,23/02/2021,Environmental Services,Ground Maintenance East,R4007
702930,Cyclepods Limited,65.00,"Plant, Equipment, Machinery & Computer Hardware",130312760,15/02/2021,-,Integrated Transport,C3000
702939,D & N Solicitors,250.00,Services - Professional Fees,130313520,25/02/2021,Legal Services,Centralised External Legal Costs,R4400
702939,D & N Solicitors,215.00,Services - Professional Fees,130313520,25/02/2021,Legal Services,Centralised External Legal Costs,R4400
703044,DC Projects (Wolverhampton) Limited,"14,539.18",TPP - Other contractors,130310022,18/02/2021,Leisure Services,Leisure P.F.I.Scheme,R5099
703050,De Lage Landen Leasing Limited,"1,425.39",Services - Professional Fees,130312937,16/02/2021,Human Resources,Salary Sacrifice Schemes,R4400
703050,De Lage Landen Leasing Limited,"1,089.46",Services - Professional Fees,130313412,25/02/2021,Human Resources,Salary Sacrifice Schemes,R4400
703050,De Lage Landen Leasing Limited,"14,237.61",Services - Professional Fees,130311907,09/02/2021,Human Resources,Salary Sacrifice Schemes,R4400
703050,De Lage Landen Leasing Limited,"1,963.81",Services - Professional Fees,130311908,09/02/2021,Human Resources,Salary Sacrifice Schemes,R4400
703050,De Lage Landen Leasing Limited,"1,963.81",Services - Professional Fees,130312341,11/02/2021,Human Resources,Salary Sacrifice Schemes,R4400
703050,De Lage Landen Leasing Limited,"1,700.97",Services - Professional Fees,130312340,11/02/2021,Human Resources,Salary Sacrifice Schemes,R4400
703050,De Lage Landen Leasing Limited,"1,089.46",Services - Professional Fees,130310728,01/02/2021,Human Resources,Salary Sacrifice Schemes,R4400
703063,Dell Corporation/Dell Incorporated,131.64,Computing - Maint Agreements,130092669,12/02/2021,West Midlands Pension Fund,Governance,R4534
703074,Dennis Eagle Limited,249.02,Equipment - Purchase,190825770,22/02/2021,Fleet Services,Fleet Management,R4000
703074,Dennis Eagle Limited,9.47,Equipment - Purchase,190825770,22/02/2021,Fleet Services,Fleet Management,R4000
703074,Dennis Eagle Limited,493.22,Equipment - Purchase,190825770,22/02/2021,Fleet Services,Fleet Management,R4000
703074,Dennis Eagle Limited,3.44,Equipment - Purchase,190825770,22/02/2021,Fleet Services,Fleet Management,R4000
703074,Dennis Eagle Limited,674.78,Equipment - Purchase,190825770,22/02/2021,Fleet Services,Fleet Management,R4000
703074,Dennis Eagle Limited,23.31,Equipment - Purchase,190828215,24/02/2021,Fleet Services,Fleet Management,R4000
703074,Dennis Eagle Limited,17.61,Equipment - Purchase,190828215,24/02/2021,Fleet Services,Fleet Management,R4000
703074,Dennis Eagle Limited,85.65,Equipment - Purchase,190825042,17/02/2021,Fleet Services,Fleet Management,R4000
703074,Dennis Eagle Limited,37.65,Equipment - Purchase,190825042,17/02/2021,Fleet Services,Fleet Management,R4000
703074,Dennis Eagle Limited,45.81,Equipment - Purchase,190825042,17/02/2021,Fleet Services,Fleet Management,R4000
703074,Dennis Eagle Limited,312.23,Equipment - Purchase,190825767,22/02/2021,Fleet Services,Fleet Management,R4000
703074,Dennis Eagle Limited,320.14,Equipment - Purchase,190825767,22/02/2021,Fleet Services,Fleet Management,R4000
703074,Dennis Eagle Limited,8.52,Equipment - Purchase,190825767,22/02/2021,Fleet Services,Fleet Management,R4000
703074,Dennis Eagle Limited,5.77,Equipment - Purchase,190825770,22/02/2021,Fleet Services,Fleet Management,R4000
703074,Dennis Eagle Limited,79.06,Equipment - Purchase,190825043,17/02/2021,Fleet Services,Fleet Management,R4000
703074,Dennis Eagle Limited,8.52,Equipment - Purchase,190825043,17/02/2021,Fleet Services,Fleet Management,R4000
703074,Dennis Eagle Limited,509.90,Equipment - Purchase,190825771,22/02/2021,Fleet Services,Fleet Management,R4000
703074,Dennis Eagle Limited,10.76,Services - Professional Fees,190825036,17/02/2021,Fleet Services,Fleet Management,R4400
703074,Dennis Eagle Limited,68.30,Services - Professional Fees,190825036,17/02/2021,Fleet Services,Fleet Management,R4400
703074,Dennis Eagle Limited,295.95,Services - Professional Fees,190825036,17/02/2021,Fleet Services,Fleet Management,R4400
703074,Dennis Eagle Limited,227.65,Services - Professional Fees,190825035,17/02/2021,Fleet Services,Fleet Management,R4400
703074,Dennis Eagle Limited,"4,335.46",Services - Professional Fees,190825037,17/02/2021,Fleet Services,Fleet Management,R4400
703074,Dennis Eagle Limited,60.08,Equipment - Purchase,190825044,17/02/2021,Fleet Services,Fleet Management,R4000
703074,Dennis Eagle Limited,55.87,Equipment - Purchase,190817730,01/02/2021,Fleet Services,Fleet Management,R4000
703074,Dennis Eagle Limited,61.55,Equipment - Purchase,190825769,22/02/2021,Fleet Services,Fleet Management,R4000
703074,Dennis Eagle Limited,78.11,Equipment - Purchase,190825768,22/02/2021,Fleet Services,Fleet Management,R4000
703074,Dennis Eagle Limited,7.00,Equipment - Purchase,190819157,03/02/2021,Fleet Services,Fleet Management,R4000
703074,Dennis Eagle Limited,75.83,Equipment - Purchase,190819157,03/02/2021,Fleet Services,Fleet Management,R4000
703074,Dennis Eagle Limited,36.40,Services - Professional Fees,190819153,03/02/2021,Fleet Services,Fleet Management,R4400
703074,Dennis Eagle Limited,"1,170.73",Services - Professional Fees,190819153,03/02/2021,Fleet Services,Fleet Management,R4400
703074,Dennis Eagle Limited,351.15,Services - Professional Fees,190819153,03/02/2021,Fleet Services,Fleet Management,R4400
703074,Dennis Eagle Limited,12.39,Equipment - Purchase,190819653,04/02/2021,Fleet Services,Fleet Management,R4000
703074,Dennis Eagle Limited,38.78,Equipment - Purchase,190819653,04/02/2021,Fleet Services,Fleet Management,R4000
703074,Dennis Eagle Limited,249.02,Equipment - Purchase,190819653,04/02/2021,Fleet Services,Fleet Management,R4000
703074,Dennis Eagle Limited,47.18,Equipment - Purchase,190819653,04/02/2021,Fleet Services,Fleet Management,R4000
703074,Dennis Eagle Limited,140.43,Equipment - Purchase,190819155,03/02/2021,Fleet Services,Fleet Management,R4000
703074,Dennis Eagle Limited,44.20,Services - Professional Fees,190819152,03/02/2021,Fleet Services,Fleet Management,R4400
703074,Dennis Eagle Limited,508.30,Services - Professional Fees,190819152,03/02/2021,Fleet Services,Fleet Management,R4400
703074,Dennis Eagle Limited,136.72,Equipment - Purchase,190819158,03/02/2021,Fleet Services,Fleet Management,R4000
703074,Dennis Eagle Limited,18.47,Equipment - Purchase,190819158,03/02/2021,Fleet Services,Fleet Management,R4000
703074,Dennis Eagle Limited,13.54,Equipment - Purchase,190819158,03/02/2021,Fleet Services,Fleet Management,R4000
703074,Dennis Eagle Limited,71.84,Equipment - Purchase,190820890,09/02/2021,Fleet Services,Fleet Management,R4000
703074,Dennis Eagle Limited,44.88,Equipment - Purchase,190819156,03/02/2021,Fleet Services,Fleet Management,R4000
703074,Dennis Eagle Limited,44.42,Equipment - Purchase,190819652,04/02/2021,Fleet Services,Fleet Management,R4000
703074,Dennis Eagle Limited,116.61,Equipment - Purchase,190820891,09/02/2021,Fleet Services,Fleet Management,R4000
703080,Derwen College,"1,803.06",TPP - Residential Care - Short Term,190821786,10/02/2021,Learning Disabilities Care Purchasing,LD Care Purchasing (Spot Placements),R5401
703080,Derwen College,"1,109.58",TPP - Residential Care - Short Term,190821786,10/02/2021,Learning Disabilities Care Purchasing,LD Care Purchasing (Spot Placements),R5401
703126,Direct Healthcare Group,"1,928.75",Equipment - Purchase,130310242,08/02/2021,Older People Provider Services,"ILS Stores			",R4000
703126,Direct Healthcare Group,30.00,Comms - Postage,130310242,08/02/2021,Older People Provider Services,"ILS Stores			",R4503
703126,Direct Healthcare Group,"1,790.00",Equipment - Purchase,130310900,04/02/2021,Older People Provider Services,"ILS Stores			",R4000
703126,Direct Healthcare Group,926.00,Equipment - Purchase,130313121,22/02/2021,Older People Provider Services,"ILS Stores			",R4000
703126,Direct Healthcare Group,450.00,Equipment - Purchase,130313121,22/02/2021,Older People Provider Services,"ILS Stores			",R4000
703126,Direct Healthcare Group,627.50,Equipment - Purchase,130313121,22/02/2021,Older People Provider Services,"ILS Stores			",R4000
703126,Direct Healthcare Group,525.00,Equipment - Purchase,130313121,22/02/2021,Older People Provider Services,"ILS Stores			",R4000
703126,Direct Healthcare Group,"2,985.00",Equipment - Purchase,130313121,22/02/2021,Older People Provider Services,"ILS Stores			",R4000
703134,Disable Aids (Cannock) Limited,100.00,Equipment - R & M,130311392,16/02/2021,Older People Provider Services,"ILS Stores			",R4003
703134,Disable Aids (Cannock) Limited,100.00,Equipment - R & M,130312474,16/02/2021,Older People Provider Services,"ILS Stores			",R4003
703134,Disable Aids (Cannock) Limited,"1,984.50",Equipment - Purchase,130312342,22/02/2021,Older People Provider Services,"ILS Stores			",R4000
703134,Disable Aids (Cannock) Limited,"3,235.50",Equipment - Purchase,130313278,22/02/2021,Older People Provider Services,"ILS Stores			",R4000
703134,Disable Aids (Cannock) Limited,100.00,Equipment - R & M,130312473,16/02/2021,Older People Provider Services,"ILS Stores			",R4003
703134,Disable Aids (Cannock) Limited,520.00,Grants paid out to other organisations,190823213,15/02/2021,-,Disabled Facilities Grants,C5011
703134,Disable Aids (Cannock) Limited,"2,881.50",Grants paid out to other organisations,190819286,03/02/2021,-,Disabled Facilities Grants,C5011
703134,Disable Aids (Cannock) Limited,273.60,Equipment - R & M,130311117,04/02/2021,Older People Provider Services,"ILS Stores			",R4003
703134,Disable Aids (Cannock) Limited,155.00,Equipment - R & M,130312938,22/02/2021,Older People Provider Services,"ILS Stores			",R4003
703134,Disable Aids (Cannock) Limited,47.50,Equipment - R & M,130311909,12/02/2021,Leisure Services,Bert Williams Leisure Centre,R4003
703155,Critiqom Limited,"2,100.00",Comms - Postage,130312939,26/02/2021,Revenues & Benefits,Revenues,R4503
703181,Dr D M Bush Penn Surgery,"1,625.00",TPP - Public Health Contracts,190823537,16/02/2021,Healthy Life Expectancy,Healthy Lifestyles,R5060
703181,Dr D M Bush Penn Surgery,31.50,TPP - Public Health Contracts,190823536,16/02/2021,Healthy Life Expectancy,Healthy Lifestyles,R5060
703199,Dr K S Krishan,250.00,TPP - Public Health Contracts,190819297,03/02/2021,Starting and Developing Well,Sexual Health,R5060
703199,Dr K S Krishan,100.00,TPP - Public Health Contracts,190819302,03/02/2021,Starting and Developing Well,Sexual Health,R5060
703199,Dr K S Krishan,325.00,TPP - Public Health Contracts,190823206,15/02/2021,Healthy Life Expectancy,Healthy Lifestyles,R5060
703199,Dr K S Krishan,450.00,TPP - Public Health Contracts,190819298,03/02/2021,Starting and Developing Well,Sexual Health,R5060
703199,Dr K S Krishan,720.00,TPP - Public Health Contracts,190819299,03/02/2021,Starting and Developing Well,Sexual Health,R5060
703199,Dr K S Krishan,25.00,TPP - Public Health Contracts,190819301,03/02/2021,Starting and Developing Well,Sexual Health,R5060
703199,Dr K S Krishan,6.50,TPP - Public Health Contracts,190823205,15/02/2021,Healthy Life Expectancy,Healthy Lifestyles,R5060
703199,Dr K S Krishan,200.00,TPP - Public Health Contracts,190819300,03/02/2021,Starting and Developing Well,Sexual Health,R5060
703199,Dr K S Krishan,100.00,TPP - Public Health Contracts,190819303,03/02/2021,Starting and Developing Well,Sexual Health,R5060
703201,Dr L M Rippon,296.00,Services - Professional Fees,130312620,12/02/2021,Legal Services,Centralised External Legal Costs,R4400
703205,Dr M.S.Kainth,1.00,TPP - Public Health Contracts,190823199,15/02/2021,Healthy Life Expectancy,Healthy Lifestyles,R5060
703205,Dr M.S.Kainth,50.00,TPP - Public Health Contracts,190823200,15/02/2021,Healthy Life Expectancy,Healthy Lifestyles,R5060
703218,Woden Road Surgery,87.50,Services - Professional Fees,190817873,01/02/2021,Children & Young People In Care,Fostering Team,R4400
703218,Woden Road Surgery,87.50,Services - Professional Fees,190817874,01/02/2021,Children & Young People In Care,Fostering Team,R4400
703218,Woden Road Surgery,16.00,TPP - Public Health Contracts,190819294,03/02/2021,Starting and Developing Well,Sexual Health,R5060
703221,Dr R Kharwadkar,48.00,TPP - Public Health Contracts,190819321,03/02/2021,Starting and Developing Well,Sexual Health,R5060
703221,Dr R Kharwadkar,275.00,TPP - Public Health Contracts,190819319,03/02/2021,Starting and Developing Well,Sexual Health,R5060
703221,Dr R Kharwadkar,75.00,TPP - Public Health Contracts,190819320,03/02/2021,Starting and Developing Well,Sexual Health,R5060
703221,Dr R Kharwadkar,"1,100.00",TPP - Public Health Contracts,190819318,03/02/2021,Starting and Developing Well,Sexual Health,R5060
703221,Dr R Kharwadkar,180.00,TPP - Public Health Contracts,190819317,03/02/2021,Starting and Developing Well,Sexual Health,R5060
703221,Dr R Kharwadkar,150.00,TPP - Public Health Contracts,190819316,03/02/2021,Starting and Developing Well,Sexual Health,R5060
703221,Dr R Kharwadkar,3.50,TPP - Public Health Contracts,190823207,15/02/2021,Healthy Life Expectancy,Healthy Lifestyles,R5060
703221,Dr R Kharwadkar,800.00,TPP - Public Health Contracts,190823208,15/02/2021,Healthy Life Expectancy,Healthy Lifestyles,R5060
703225,Dr S Mittal,48.00,TPP - Public Health Contracts,190819307,03/02/2021,Starting and Developing Well,Sexual Health,R5060
703225,Dr S Mittal,80.00,TPP - Public Health Contracts,190819306,03/02/2021,Starting and Developing Well,Sexual Health,R5060
703225,Dr S Mittal,225.00,TPP - Public Health Contracts,190819305,03/02/2021,Starting and Developing Well,Sexual Health,R5060
703225,Dr S Mittal,300.00,TPP - Public Health Contracts,190819304,03/02/2021,Starting and Developing Well,Sexual Health,R5060
703230,Dr T.Marton,595.90,Services - Professional Fees,130311910,09/02/2021,Coroners Service,"Coroners Service	",R4400
703251,Drive DeVilbiss Health Care Limited,133.00,Equipment - Purchase,130309477,22/02/2021,Older People Provider Services,"ILS Stores			",R4000
703251,Drive DeVilbiss Health Care Limited,199.86,Equipment - Purchase,130308850,22/02/2021,Older People Provider Services,"ILS Stores			",R4000
703251,Drive DeVilbiss Health Care Limited,98.95,Equipment - R & M,130309231,22/02/2021,Older People Provider Services,"ILS Stores			",R4003
703251,Drive DeVilbiss Health Care Limited,199.86,Equipment - Purchase,130309010,22/02/2021,Older People Provider Services,"ILS Stores			",R4000
703251,Drive DeVilbiss Health Care Limited,815.00,Equipment - Purchase,130309157,22/02/2021,Older People Provider Services,"ILS Stores			",R4000
703251,Drive DeVilbiss Health Care Limited,171.78,Equipment - Purchase,130309157,22/02/2021,Older People Provider Services,"ILS Stores			",R4000
703251,Drive DeVilbiss Health Care Limited,87.94,Equipment - Purchase,130309157,22/02/2021,Older People Provider Services,"ILS Stores			",R4000
703251,Drive DeVilbiss Health Care Limited,98.95,Comms - Postage,130309157,22/02/2021,Older People Provider Services,"ILS Stores			",R4503
703251,Drive DeVilbiss Health Care Limited,"1,130.46",Equipment - Purchase,130311911,22/02/2021,Older People Provider Services,"ILS Stores			",R4000
703251,Drive DeVilbiss Health Care Limited,190.67,Equipment - Purchase,130313279,22/02/2021,Older People Provider Services,"ILS Stores			",R4000
703251,Drive DeVilbiss Health Care Limited,"1,497.93",Equipment - Purchase,130313279,22/02/2021,Older People Provider Services,"ILS Stores			",R4000
703251,Drive DeVilbiss Health Care Limited,590.00,Equipment - Purchase,130313279,22/02/2021,Older People Provider Services,"ILS Stores			",R4000
703251,Drive DeVilbiss Health Care Limited,98.95,Equipment - Purchase,130313279,22/02/2021,Older People Provider Services,"ILS Stores			",R4000
703269,D-Tox,86.37,Room Hire,130311630,04/02/2021,Facilities Management,Hickman Avenue Depot,R2201
703269,D-Tox,86.37,Room Hire,130311629,04/02/2021,Facilities Management,Culwell Street Depot,R2201
703269,D-Tox,81.92,Room Hire,130311631,04/02/2021,Licensing,"Private Hire Vehicles			",R2201
703275,Dudley M B C,"242,389.71",TPP - Payments to Local Authorities,130311111,10/02/2021,Special Educational Needs,SEN Education OOC,R5100
703275,Dudley M B C,"-353,276.50",TPP - Payments to Local Authorities,130311112,10/02/2021,Special Educational Needs,SEN Education OOC,R5100
703275,Dudley M B C,"353,276.50",TPP - Payments to Local Authorities,130311110,10/02/2021,Special Educational Needs,SEN Education OOC,R5100
703289,Duncan Street Primary Care Centre,25.00,TPP - Public Health Contracts,190823204,15/02/2021,Healthy Life Expectancy,Healthy Lifestyles,R5060
703289,Duncan Street Primary Care Centre,0.50,TPP - Public Health Contracts,190823203,15/02/2021,Healthy Life Expectancy,Healthy Lifestyles,R5060
703296,Dunton Environmental Limited,"1,564.54",Construction and Conversion,130312140,11/02/2021,-,Integrated Transport,C1100
703296,Dunton Environmental Limited,"7,476.95",Construction and Conversion,130310615,02/02/2021,-,Integrated Transport,C1100
703318,Eric Derry West Midlands,"1,470.00",Grounds Maintenance - Non Contract,130312621,12/02/2021,Environmental Services,Ground Maintenance East,R2076
703332,E.On (Metering Services Only!!),195.00,Electricity,190820855,08/02/2021,Corporate Asset Management,Central Utilities to Recharge,R2100
703332,E.On (Metering Services Only!!),195.00,Electricity,190828248,24/02/2021,Corporate Asset Management,Central Utilities to Recharge,R2100
703334,E.On(Consumption Of Gas/Elec Units).,89.13,Gas,190823936,16/02/2021,Estates and Valuations,Industrial Premises ; Fordhouse Road,R2101
703334,E.On(Consumption Of Gas/Elec Units).,24.49,Electricity,190823935,16/02/2021,City Development,Southside,R2100
703334,E.On(Consumption Of Gas/Elec Units).,8.89,Electricity,190823934,16/02/2021,City Development,Southside,R2100
703339,Eagle Music (Jim Duncan),780.03,Hire of Vehicles,130310977,12/02/2021,Communications,"VEC - Marketing Poster Boards			",R3200
703340,Eagle Supplies Limited,40.00,Equipment - Purchase,190825034,17/02/2021,Fleet Services,Fleet Management,R4000
703340,Eagle Supplies Limited,99.00,Equipment - Purchase,190825034,17/02/2021,Fleet Services,Fleet Management,R4000
703340,Eagle Supplies Limited,998.00,Equipment - Purchase,190825760,22/02/2021,Fleet Services,Fleet Management,R4000
703353,East Park Medical Practice,56.00,TPP - Public Health Contracts,190819328,03/02/2021,Starting and Developing Well,Sexual Health,R5060
703353,East Park Medical Practice,320.00,TPP - Public Health Contracts,190819324,03/02/2021,Starting and Developing Well,Sexual Health,R5060
703353,East Park Medical Practice,100.00,TPP - Public Health Contracts,190819326,03/02/2021,Starting and Developing Well,Sexual Health,R5060
703353,East Park Medical Practice,150.00,TPP - Public Health Contracts,190819322,03/02/2021,Starting and Developing Well,Sexual Health,R5060
703353,East Park Medical Practice,400.00,TPP - Public Health Contracts,190819325,03/02/2021,Starting and Developing Well,Sexual Health,R5060
703353,East Park Medical Practice,270.00,TPP - Public Health Contracts,190819323,03/02/2021,Starting and Developing Well,Sexual Health,R5060
703353,East Park Medical Practice,75.00,TPP - Public Health Contracts,190819327,03/02/2021,Starting and Developing Well,Sexual Health,R5060
703371,Eclipse Access Solutions Limited,"2,538.00",Grants paid out to other organisations,190825070,17/02/2021,-,Disabled Facilities Grants,C5011
703371,Eclipse Access Solutions Limited,"1,800.00",Grants paid out to other organisations,190819288,03/02/2021,-,Disabled Facilities Grants,C5011
703371,Eclipse Access Solutions Limited,"3,470.00",Grants paid out to other organisations,190819290,03/02/2021,-,Disabled Facilities Grants,C5011
703371,Eclipse Access Solutions Limited,"4,334.00",Grants paid out to other organisations,190819285,03/02/2021,-,Disabled Facilities Grants,C5011
703371,Eclipse Access Solutions Limited,"6,519.00",Grants paid out to other organisations,190823215,15/02/2021,-,Disabled Facilities Grants,C5011
703371,Eclipse Access Solutions Limited,105.00,Grants paid out to other organisations,190828221,24/02/2021,-,Disabled Facilities Grants,C5011
703374,Econ Engineering Limited,"30,224.69",Operating Leases,130311244,09/02/2021,Fleet Services,Fleet Management,R4980
703384,Edf Energy Cust Field Services,360.00,Electricity,190828238,24/02/2021,Corporate Asset Management,Central Utilities to Recharge,R2100
703395,Edmundson Electrical Limited,397.79,Materials,130313521,25/02/2021,Project and Works Team � Maintenance Programm,"Civic Centre Repairs & Maintenance	",R4007
703395,Edmundson Electrical Limited,3.75,Materials,130313353,23/02/2021,Project and Works Team � Maintenance Programm,"Civic Centre Repairs & Maintenance	",R4007
703395,Edmundson Electrical Limited,15.41,Equipment - Purchase,190825761,22/02/2021,Fleet Services,Fleet Management,R4000
703395,Edmundson Electrical Limited,87.90,Materials,130313522,25/02/2021,Project and Works Team � Maintenance Programm,"Civic Centre Repairs & Maintenance	",R4007
703395,Edmundson Electrical Limited,7.90,Equipment - Purchase,190828211,24/02/2021,Fleet Services,Fleet Management,R4000
703395,Edmundson Electrical Limited,32.70,Equipment - Purchase,190828211,24/02/2021,Fleet Services,Fleet Management,R4000
703395,Edmundson Electrical Limited,167.26,Materials,130312477,11/02/2021,Street Lighting,Street Lighting Maintenance,R4007
703395,Edmundson Electrical Limited,278.00,Materials,130310979,02/02/2021,Street Lighting,Street Lighting Maintenance,R4007
703395,Edmundson Electrical Limited,293.50,Materials,130309724,03/02/2021,Highways Maintenance,Planned Highways Maintenance,R4007
703395,Edmundson Electrical Limited,66.27,Materials,130312940,19/02/2021,Project and Works Team � Maintenance Programm,"Civic Centre Repairs & Maintenance	",R4007
703395,Edmundson Electrical Limited,48.79,Materials,130311632,09/02/2021,Project and Works Team � Maintenance Programm,Centralised R&M,R4007
703395,Edmundson Electrical Limited,102.80,Materials,130310978,05/02/2021,Project and Works Team � Maintenance Programm,"Civic Centre Repairs & Maintenance	",R4007
703395,Edmundson Electrical Limited,58.86,Materials,130306950,09/02/2021,Street Lighting,Street Lighting Maintenance,R4007
703395,Edmundson Electrical Limited,"5,567.10",Materials,130312476,12/02/2021,Project and Works Team � Maintenance Programm,"Civic Centre Repairs & Maintenance	",R4007
703395,Edmundson Electrical Limited,1.73,Equipment - Purchase,190828212,24/02/2021,Fleet Services,Fleet Management,R4000
703395,Edmundson Electrical Limited,4.91,Materials,130313123,19/02/2021,Project and Works Team � Maintenance Programm,"Civic Centre Repairs & Maintenance	",R4007
703466,Elygra Marketing Services,"4,340.00",Equipment - Purchase,130312943,23/02/2021,Covid-19 (Public Health 1),"COVID 19  Track and Trace			",R4000
703486,Encams/Keep Britain Tidy,329.00,Services - Professional Fees,130312143,09/02/2021,Environmental Services,Parks / Open Spaces - Repairs & Maintenance,R4400
703486,Encams/Keep Britain Tidy,329.00,Services - Professional Fees,130312145,09/02/2021,Environmental Services,Parks / Open Spaces - Repairs & Maintenance,R4400
703486,Encams/Keep Britain Tidy,329.00,Services - Professional Fees,130312144,09/02/2021,Environmental Services,Parks / Open Spaces - Repairs & Maintenance,R4400
703486,Encams/Keep Britain Tidy,329.00,Services - Professional Fees,130311633,05/02/2021,Environmental Services,Parks / Open Spaces - Repairs & Maintenance,R4400
703486,Encams/Keep Britain Tidy,329.00,Services - Professional Fees,130312142,09/02/2021,Environmental Services,Parks / Open Spaces - Repairs & Maintenance,R4400
703511,Enviro Technology Services PLC,743.08,Services - Professional Fees,130311912,09/02/2021,Public Protection,"Environmental Protection			",R4400
703512,Environment Agency,"3,161.00",Services - Professional Fees,130311119,02/02/2021,Public Protection,"Environmental Protection			",R4400
703516,Environmental Solutions Midlands Limited,210.00,Construction and Conversion,130312146,09/02/2021,-,Corporate Asset Management,C1100
703516,Environmental Solutions Midlands Limited,229.74,R&M - Departmental planned (internal),130311776,05/02/2021,Corporate Asset Management,Strategic Asset Management Team,R2000
703516,Environmental Solutions Midlands Limited,"14,465.00",Services - Professional Fees,130310730,01/02/2021,Corporate Asset Management,Centralised Planned Maintenance,R4400
703516,Environmental Solutions Midlands Limited,480.00,Construction and Conversion,130312478,11/02/2021,-,Electrical Works,C1100
703516,Environmental Solutions Midlands Limited,290.00,R&M - Departmental planned (internal),130312343,10/02/2021,Corporate Asset Management,Centralised Planned Maintenance,R2000
703523,Epos Group,130.00,Equipment - Hire,130309483,15/02/2021,Catering,"West Park Tea Room	",R4001
703576,Evans Halshaw Ford,178.61,Equipment - Purchase,190825729,22/02/2021,Fleet Services,Fleet Management,R4000
703576,Evans Halshaw Ford,174.85,Equipment - Purchase,190825729,22/02/2021,Fleet Services,Fleet Management,R4000
703576,Evans Halshaw Ford,193.75,Equipment - Purchase,190825729,22/02/2021,Fleet Services,Fleet Management,R4000
703576,Evans Halshaw Ford,115.56,Equipment - Purchase,190825729,22/02/2021,Fleet Services,Fleet Management,R4000
703576,Evans Halshaw Ford,69.92,Equipment - Purchase,190828205,24/02/2021,Fleet Services,Fleet Management,R4000
703576,Evans Halshaw Ford,68.25,Equipment - Purchase,190828203,24/02/2021,Fleet Services,Fleet Management,R4000
703576,Evans Halshaw Ford,84.71,Equipment - Purchase,190828202,24/02/2021,Fleet Services,Fleet Management,R4000
703576,Evans Halshaw Ford,23.46,Equipment - Purchase,190825730,22/02/2021,Fleet Services,Fleet Management,R4000
703576,Evans Halshaw Ford,36.09,Equipment - Purchase,190828204,24/02/2021,Fleet Services,Fleet Management,R4000
703576,Evans Halshaw Ford,2.75,Equipment - Purchase,190825731,22/02/2021,Fleet Services,Fleet Management,R4000
703576,Evans Halshaw Ford,1.06,Equipment - Purchase,190825731,22/02/2021,Fleet Services,Fleet Management,R4000
703576,Evans Halshaw Ford,36.09,Equipment - Purchase,190822357,11/02/2021,Fleet Services,Fleet Management,R4000
703576,Evans Halshaw Ford,166.09,Equipment - Purchase,190822357,11/02/2021,Fleet Services,Fleet Management,R4000
703576,Evans Halshaw Ford,208.02,Equipment - Purchase,190822356,11/02/2021,Fleet Services,Fleet Management,R4000
703576,Evans Halshaw Ford,42.33,Equipment - Purchase,190822355,11/02/2021,Fleet Services,Fleet Management,R4000
703576,Evans Halshaw Ford,44.75,Equipment - Purchase,190820136,05/02/2021,Fleet Services,Fleet Management,R4000
703576,Evans Halshaw Ford,203.29,Equipment - Purchase,190817700,01/02/2021,Fleet Services,Fleet Management,R4000
703576,Evans Halshaw Ford,105.89,Equipment - Purchase,190817711,01/02/2021,Fleet Services,Fleet Management,R4000
703576,Evans Halshaw Ford,50.06,Equipment - Purchase,190817709,01/02/2021,Fleet Services,Fleet Management,R4000
703576,Evans Halshaw Ford,39.86,Equipment - Purchase,190825732,22/02/2021,Fleet Services,Fleet Management,R4000
703576,Evans Halshaw Ford,174.85,Equipment - Purchase,190817704,01/02/2021,Fleet Services,Fleet Management,R4000
703576,Evans Halshaw Ford,46.32,Equipment - Purchase,190817702,01/02/2021,Fleet Services,Fleet Management,R4000
703576,Evans Halshaw Ford,21.38,Equipment - Purchase,190817703,01/02/2021,Fleet Services,Fleet Management,R4000
703576,Evans Halshaw Ford,-60.00,Equipment - Purchase,190822350,11/02/2021,Fleet Services,Fleet Management,R4000
703576,Evans Halshaw Ford,81.96,Equipment - Purchase,190822351,11/02/2021,Fleet Services,Fleet Management,R4000
703576,Evans Halshaw Ford,182.30,Equipment - Purchase,190822353,11/02/2021,Fleet Services,Fleet Management,R4000
703576,Evans Halshaw Ford,160.61,Equipment - Purchase,190820138,05/02/2021,Fleet Services,Fleet Management,R4000
703576,Evans Halshaw Ford,41.52,Equipment - Purchase,190817706,01/02/2021,Fleet Services,Fleet Management,R4000
703576,Evans Halshaw Ford,56.19,Equipment - Purchase,190817707,01/02/2021,Fleet Services,Fleet Management,R4000
703576,Evans Halshaw Ford,133.95,Equipment - Purchase,190817710,01/02/2021,Fleet Services,Fleet Management,R4000
703576,Evans Halshaw Ford,18.31,Equipment - Purchase,190820137,05/02/2021,Fleet Services,Fleet Management,R4000
703576,Evans Halshaw Ford,99.25,Equipment - Purchase,190820137,05/02/2021,Fleet Services,Fleet Management,R4000
703576,Evans Halshaw Ford,23.34,Equipment - Purchase,190822346,11/02/2021,Fleet Services,Fleet Management,R4000
703576,Evans Halshaw Ford,4.56,Equipment - Purchase,190822346,11/02/2021,Fleet Services,Fleet Management,R4000
703576,Evans Halshaw Ford,101.10,Equipment - Purchase,190822349,11/02/2021,Fleet Services,Fleet Management,R4000
703576,Evans Halshaw Ford,47.75,Equipment - Purchase,190822354,11/02/2021,Fleet Services,Fleet Management,R4000
703576,Evans Halshaw Ford,29.20,Equipment - Purchase,190822348,11/02/2021,Fleet Services,Fleet Management,R4000
703576,Evans Halshaw Ford,102.45,Equipment - Purchase,190822352,11/02/2021,Fleet Services,Fleet Management,R4000
703576,Evans Halshaw Ford,248.30,Equipment - Purchase,190822347,11/02/2021,Fleet Services,Fleet Management,R4000
703576,Evans Halshaw Ford,25.59,Equipment - Purchase,190817705,01/02/2021,Fleet Services,Fleet Management,R4000
703576,Evans Halshaw Ford,12.42,Equipment - Purchase,190817705,01/02/2021,Fleet Services,Fleet Management,R4000
703576,Evans Halshaw Ford,48.32,Equipment - Purchase,190817705,01/02/2021,Fleet Services,Fleet Management,R4000
703576,Evans Halshaw Ford,6.92,Equipment - Purchase,190817701,01/02/2021,Fleet Services,Fleet Management,R4000
703576,Evans Halshaw Ford,156.06,Equipment - Purchase,190817701,01/02/2021,Fleet Services,Fleet Management,R4000
703576,Evans Halshaw Ford,140.53,Equipment - Purchase,190817701,01/02/2021,Fleet Services,Fleet Management,R4000
703576,Evans Halshaw Ford,20.49,Equipment - Purchase,190817708,01/02/2021,Fleet Services,Fleet Management,R4000
703588,Exegesis Sdm Limited,"3,997.00",Computing - Purchase of Hardware,130312761,15/02/2021,City Planning,Planning,R4530
703600,F & M Building Services,"28,251.00",Grants paid out to other organisations,190823217,15/02/2021,-,Disabled Facilities Grants,C5011
703627,Falon Nameplates Limited,53.15,Materials,130313124,22/02/2021,Bereavement Services,Crematorium,R4007
703627,Falon Nameplates Limited,267.50,Materials,130308644,09/02/2021,Bereavement Services,Crematorium,R4007
703627,Falon Nameplates Limited,53.15,Materials,130312479,15/02/2021,Bereavement Services,Crematorium,R4007
703627,Falon Nameplates Limited,53.15,Materials,130311634,09/02/2021,Bereavement Services,Crematorium,R4007
703653,Fbc Manby Bowdler Llp,360.00,Insurance - General,190828586,25/02/2021,Audit Services,Legal Liability,R4962
703653,Fbc Manby Bowdler Llp,360.00,Insurance - General,190825016,17/02/2021,Audit Services,Legal Liability,R4962
703686,Firewalker (UK) Limited,"7,469.28",TPP - Private Nursery Education Funding,190820467,05/02/2021,Early Years,Early Years Entitlement Funding for Disadvantaged 2 Year Olds,R5035
703686,Firewalker (UK) Limited,"1,000.00",TPP - Private Nursery Education Funding,190830630,26/02/2021,Early Years,Early Years SEN Inclusion Fund,R5035
703686,Firewalker (UK) Limited,615.00,TPP - Private Nursery Education Funding,190830602,26/02/2021,Early Years,"Early Years Disability Access Fund (DAF)	",R5035
703686,Firewalker (UK) Limited,"21,826.80",TPP - Private Nursery Education Funding,190820416,05/02/2021,Early Years,Early Years Universal Entitlement for 3 and 4 Year Olds,R5035
703686,Firewalker (UK) Limited,"1,982.70",TPP - Private Nursery Education Funding,190819570,03/02/2021,Early Years,"Early Years Weighted Deprivation 3 and 4 Year Olds	",R5035
703698,First Response (First Aid) Limited,855.00,Training Expenses,130312147,26/02/2021,Organisational Development,Workforce Development,R1650
703700,First Steps Childrens Nursery Limited,"3,056.66",TPP - Private Nursery Education Funding,190820447,05/02/2021,Early Years,Early Years Entitlement Funding for Disadvantaged 2 Year Olds,R5035
703700,First Steps Childrens Nursery Limited,"11,554.27",TPP - Private Nursery Education Funding,190820388,05/02/2021,Early Years,Early Years Universal Entitlement for 3 and 4 Year Olds,R5035
703700,First Steps Childrens Nursery Limited,"1,230.64",TPP - Private Nursery Education Funding,190819543,03/02/2021,Early Years,"Early Years Weighted Deprivation 3 and 4 Year Olds	",R5035
703807,LogisticsUK(FormalyFreightTrans.Ass.Ltd),210.00,Materials,190823308,16/02/2021,Fleet Services,Fleet Management,R4007
703807,LogisticsUK(FormalyFreightTrans.Ass.Ltd),35.75,Services - Professional Fees,130310541,09/02/2021,Waste and Recycling,Waste Man.Partnership  Trade Collection,R4400
703823,Ft Leisure Limited,"5,004.00",R&M - Departmental planned (external),130313125,22/02/2021,Leisure Services,Bert Williams Leisure Centre,R2001
703833,Fumex Limited,240.00,Equipment - R & M,190817720,01/02/2021,Fleet Services,Fleet Management,R4003
703833,Fumex Limited,135.00,Equipment - R & M,190817720,01/02/2021,Fleet Services,Fleet Management,R4003
703886,Garage Equipment UK Limited,120.00,Equipment - R & M,190817717,01/02/2021,Fleet Services,Fleet Management,R4003
703886,Garage Equipment UK Limited,250.00,Equipment - R & M,190817719,01/02/2021,Fleet Services,Fleet Management,R4003
703886,Garage Equipment UK Limited,240.00,Equipment - R & M,190817718,01/02/2021,Fleet Services,Fleet Management,R4003
703886,Garage Equipment UK Limited,142.50,Equipment - R & M,190817716,01/02/2021,Fleet Services,Fleet Management,R4003
703897,Gazebo Theatre-In-Education Co Limited,"2,821.25",TPP - Social Care Support Services,130313127,18/02/2021,Specialist Support,"Power2 Team			",R5501
703897,Gazebo Theatre-In-Education Co Limited,"2,821.25",TPP - Social Care Support Services,130313126,18/02/2021,Specialist Support,"Power2 Team			",R5501
703897,Gazebo Theatre-In-Education Co Limited,"4,660.00",Services - Professional Fees,130312624,12/02/2021,Public Protection,"Environmental Crime and Consumer Protection			",R4400
703902,Geesink Norba Limited,425.40,Services - Professional Fees,190825040,17/02/2021,Fleet Services,Fleet Management,R4400
703902,Geesink Norba Limited,174.95,Services - Professional Fees,190825040,17/02/2021,Fleet Services,Fleet Management,R4400
703902,Geesink Norba Limited,25.00,Services - Professional Fees,190825040,17/02/2021,Fleet Services,Fleet Management,R4400
703934,Geze UK Limited,"1,044.92",R&M - Departmental planned (external),130312344,19/02/2021,Project and Works Team � Maintenance Programm,Centralised R&M,R2001
703964,Globe Ladders Limited,491.60,Materials,130313356,22/02/2021,Bereavement Services,"Bereavement services - Grounds maintenance	",R4007
703964,Globe Ladders Limited,307.25,Materials,130311393,03/02/2021,Bereavement Services,"Bereavement services - Grounds maintenance	",R4007
703964,Globe Ladders Limited,360.00,Materials,130311393,03/02/2021,Bereavement Services,"Bereavement services - Grounds maintenance	",R4007
704039,Greenacres Leonard Cheshire Disab�Ty,"4,250.40",TPP - Nursing Care - Long Term,190821793,10/02/2021,Physical Disabilities Care Purchasing,PD Care Purchasing (Spot Placements),R5410
704044,Greenhous Commercials Limited,91.00,MOT & HGV Tests,190819648,04/02/2021,Fleet Services,Fleet Management,R3005
704044,Greenhous Commercials Limited,35.00,MOT & HGV Tests,190819648,04/02/2021,Fleet Services,Fleet Management,R3005
704044,Greenhous Commercials Limited,35.00,MOT & HGV Tests,190819650,04/02/2021,Fleet Services,Fleet Management,R3005
704044,Greenhous Commercials Limited,113.00,MOT & HGV Tests,190819650,04/02/2021,Fleet Services,Fleet Management,R3005
704044,Greenhous Commercials Limited,16.00,Equipment - Purchase,190819136,03/02/2021,Fleet Services,Fleet Management,R4000
704044,Greenhous Commercials Limited,15.98,Equipment - Purchase,190819136,03/02/2021,Fleet Services,Fleet Management,R4000
704044,Greenhous Commercials Limited,30.66,Equipment - Purchase,190819136,03/02/2021,Fleet Services,Fleet Management,R4000
704044,Greenhous Commercials Limited,22.06,Equipment - Purchase,190819136,03/02/2021,Fleet Services,Fleet Management,R4000
704044,Greenhous Commercials Limited,67.36,Equipment - Purchase,190819136,03/02/2021,Fleet Services,Fleet Management,R4000
704044,Greenhous Commercials Limited,17.50,Equipment - Purchase,190819136,03/02/2021,Fleet Services,Fleet Management,R4000
704044,Greenhous Commercials Limited,-55.00,Equipment - Purchase,190825747,22/02/2021,Fleet Services,Fleet Management,R4000
704044,Greenhous Commercials Limited,56.00,Equipment - Purchase,190819137,03/02/2021,Fleet Services,Fleet Management,R4000
704044,Greenhous Commercials Limited,8.66,Equipment - Purchase,190828208,24/02/2021,Fleet Services,Fleet Management,R4000
704044,Greenhous Commercials Limited,45.00,Services - Professional Fees,190819142,03/02/2021,Fleet Services,Fleet Management,R4400
704044,Greenhous Commercials Limited,15.00,Services - Professional Fees,190819140,03/02/2021,Fleet Services,Fleet Management,R4400
704044,Greenhous Commercials Limited,65.00,Services - Professional Fees,190819140,03/02/2021,Fleet Services,Fleet Management,R4400
704044,Greenhous Commercials Limited,35.50,Equipment - Purchase,190819138,03/02/2021,Fleet Services,Fleet Management,R4000
704044,Greenhous Commercials Limited,11.62,Equipment - Purchase,190828206,24/02/2021,Fleet Services,Fleet Management,R4000
704044,Greenhous Commercials Limited,6.78,Equipment - Purchase,190828206,24/02/2021,Fleet Services,Fleet Management,R4000
704044,Greenhous Commercials Limited,113.00,MOT & HGV Tests,190819647,04/02/2021,Fleet Services,Fleet Management,R3005
704044,Greenhous Commercials Limited,45.00,MOT & HGV Tests,190819647,04/02/2021,Fleet Services,Fleet Management,R3005
704044,Greenhous Commercials Limited,8.50,Equipment - Purchase,190828207,24/02/2021,Fleet Services,Fleet Management,R4000
704044,Greenhous Commercials Limited,231.00,Services - Professional Fees,190819141,03/02/2021,Fleet Services,Fleet Management,R4400
704044,Greenhous Commercials Limited,99.42,Services - Professional Fees,190819141,03/02/2021,Fleet Services,Fleet Management,R4400
704044,Greenhous Commercials Limited,15.00,Services - Professional Fees,190819141,03/02/2021,Fleet Services,Fleet Management,R4400
704044,Greenhous Commercials Limited,45.00,Services - Professional Fees,190819141,03/02/2021,Fleet Services,Fleet Management,R4400
704044,Greenhous Commercials Limited,54.00,Services - Professional Fees,190819141,03/02/2021,Fleet Services,Fleet Management,R4400
704044,Greenhous Commercials Limited,35.00,MOT & HGV Tests,190819649,04/02/2021,Fleet Services,Fleet Management,R3005
704044,Greenhous Commercials Limited,128.00,MOT & HGV Tests,190819649,04/02/2021,Fleet Services,Fleet Management,R3005
704044,Greenhous Commercials Limited,45.00,Services - Professional Fees,190825028,17/02/2021,Fleet Services,Fleet Management,R4400
704044,Greenhous Commercials Limited,15.00,Services - Professional Fees,190825028,17/02/2021,Fleet Services,Fleet Management,R4400
704044,Greenhous Commercials Limited,45.00,Services - Professional Fees,190825030,17/02/2021,Fleet Services,Fleet Management,R4400
704044,Greenhous Commercials Limited,595.00,Services - Professional Fees,190825031,17/02/2021,Fleet Services,Fleet Management,R4400
704044,Greenhous Commercials Limited,54.00,Services - Professional Fees,190825031,17/02/2021,Fleet Services,Fleet Management,R4400
704044,Greenhous Commercials Limited,57.75,Services - Professional Fees,190825031,17/02/2021,Fleet Services,Fleet Management,R4400
704044,Greenhous Commercials Limited,41.66,Equipment - Purchase,190825027,17/02/2021,Fleet Services,Fleet Management,R4000
704044,Greenhous Commercials Limited,45.00,Services - Professional Fees,190825029,17/02/2021,Fleet Services,Fleet Management,R4400
704044,Greenhous Commercials Limited,15.00,Services - Professional Fees,190825029,17/02/2021,Fleet Services,Fleet Management,R4400
704044,Greenhous Commercials Limited,35.00,MOT & HGV Tests,190825752,22/02/2021,Fleet Services,Fleet Management,R3005
704044,Greenhous Commercials Limited,113.00,MOT & HGV Tests,190825752,22/02/2021,Fleet Services,Fleet Management,R3005
704044,Greenhous Commercials Limited,35.00,MOT & HGV Tests,190825748,22/02/2021,Fleet Services,Fleet Management,R3005
704044,Greenhous Commercials Limited,91.00,MOT & HGV Tests,190825748,22/02/2021,Fleet Services,Fleet Management,R3005
704044,Greenhous Commercials Limited,35.00,MOT & HGV Tests,190825749,22/02/2021,Fleet Services,Fleet Management,R3005
704044,Greenhous Commercials Limited,91.00,MOT & HGV Tests,190825749,22/02/2021,Fleet Services,Fleet Management,R3005
704044,Greenhous Commercials Limited,8.28,Equipment - Purchase,190822366,11/02/2021,Fleet Services,Fleet Management,R4000
704044,Greenhous Commercials Limited,70.00,Equipment - Purchase,190822362,11/02/2021,Fleet Services,Fleet Management,R4000
704044,Greenhous Commercials Limited,4.30,Equipment - Purchase,190822362,11/02/2021,Fleet Services,Fleet Management,R4000
704044,Greenhous Commercials Limited,98.44,Equipment - Purchase,190822362,11/02/2021,Fleet Services,Fleet Management,R4000
704044,Greenhous Commercials Limited,59.00,Equipment - Purchase,190822362,11/02/2021,Fleet Services,Fleet Management,R4000
704044,Greenhous Commercials Limited,8.50,Equipment - Purchase,190820140,05/02/2021,Fleet Services,Fleet Management,R4000
704044,Greenhous Commercials Limited,61.11,Equipment - Purchase,190817712,01/02/2021,Fleet Services,Fleet Management,R4000
704044,Greenhous Commercials Limited,41.66,Equipment - Purchase,190822369,11/02/2021,Fleet Services,Fleet Management,R4000
704044,Greenhous Commercials Limited,24.00,Equipment - Purchase,190822363,11/02/2021,Fleet Services,Fleet Management,R4000
704044,Greenhous Commercials Limited,7.99,Equipment - Purchase,190822363,11/02/2021,Fleet Services,Fleet Management,R4000
704044,Greenhous Commercials Limited,2.24,Equipment - Purchase,190822363,11/02/2021,Fleet Services,Fleet Management,R4000
704044,Greenhous Commercials Limited,140.00,Equipment - Purchase,190822367,11/02/2021,Fleet Services,Fleet Management,R4000
704044,Greenhous Commercials Limited,15.33,Equipment - Purchase,190822365,11/02/2021,Fleet Services,Fleet Management,R4000
704044,Greenhous Commercials Limited,59.00,Equipment - Purchase,190820881,09/02/2021,Fleet Services,Fleet Management,R4000
704044,Greenhous Commercials Limited,93.00,Equipment - Purchase,190820880,09/02/2021,Fleet Services,Fleet Management,R4000
704044,Greenhous Commercials Limited,1.30,Equipment - Purchase,190820884,09/02/2021,Fleet Services,Fleet Management,R4000
704044,Greenhous Commercials Limited,42.50,Equipment - Purchase,190822368,11/02/2021,Fleet Services,Fleet Management,R4000
704044,Greenhous Commercials Limited,21.40,Equipment - Purchase,190822364,11/02/2021,Fleet Services,Fleet Management,R4000
704044,Greenhous Commercials Limited,311.26,Equipment - Purchase,190820883,09/02/2021,Fleet Services,Fleet Management,R4000
704044,Greenhous Commercials Limited,175.00,Equipment - Purchase,190825746,22/02/2021,Fleet Services,Fleet Management,R4000
704044,Greenhous Commercials Limited,55.00,Equipment - Purchase,190825746,22/02/2021,Fleet Services,Fleet Management,R4000
704044,Greenhous Commercials Limited,91.00,MOT & HGV Tests,190825751,22/02/2021,Fleet Services,Fleet Management,R3005
704044,Greenhous Commercials Limited,35.00,MOT & HGV Tests,190825751,22/02/2021,Fleet Services,Fleet Management,R3005
704044,Greenhous Commercials Limited,113.00,MOT & HGV Tests,190825750,22/02/2021,Fleet Services,Fleet Management,R3005
704044,Greenhous Commercials Limited,35.00,MOT & HGV Tests,190825750,22/02/2021,Fleet Services,Fleet Management,R3005
704044,Greenhous Commercials Limited,24.64,Equipment - Purchase,190825745,22/02/2021,Fleet Services,Fleet Management,R4000
704044,Greenhous Commercials Limited,7.40,Equipment - Purchase,190825745,22/02/2021,Fleet Services,Fleet Management,R4000
704044,Greenhous Commercials Limited,76.82,Equipment - Purchase,190820139,05/02/2021,Fleet Services,Fleet Management,R4000
704044,Greenhous Commercials Limited,8.19,Equipment - Purchase,190817713,01/02/2021,Fleet Services,Fleet Management,R4000
704044,Greenhous Commercials Limited,59.00,Equipment - Purchase,190820882,09/02/2021,Fleet Services,Fleet Management,R4000
704044,Greenhous Commercials Limited,2.48,Equipment - Purchase,190819139,03/02/2021,Fleet Services,Fleet Management,R4000
704044,Greenhous Commercials Limited,3.59,Equipment - Purchase,190819139,03/02/2021,Fleet Services,Fleet Management,R4000
704044,Greenhous Commercials Limited,1.49,Equipment - Purchase,190819139,03/02/2021,Fleet Services,Fleet Management,R4000
704044,Greenhous Commercials Limited,0.30,Equipment - Purchase,190819139,03/02/2021,Fleet Services,Fleet Management,R4000
704044,Greenhous Commercials Limited,32.00,Equipment - Purchase,190819139,03/02/2021,Fleet Services,Fleet Management,R4000
704044,Greenhous Commercials Limited,12.57,Equipment - Purchase,190819139,03/02/2021,Fleet Services,Fleet Management,R4000
704055,Ground Investigation & Piling Limited,888.50,Services - Professional Fees,130310254,05/02/2021,Housing Revenue Account,HRA General,R4400
704061,Guest Motors Limited,140.00,Equipment - Purchase,190822360,11/02/2021,Fleet Services,Fleet Management,R4000
704061,Guest Motors Limited,12.00,Equipment - Purchase,190825742,22/02/2021,Fleet Services,Fleet Management,R4000
704061,Guest Motors Limited,62.00,Equipment - Purchase,190825742,22/02/2021,Fleet Services,Fleet Management,R4000
704061,Guest Motors Limited,106.00,Equipment - Purchase,190825742,22/02/2021,Fleet Services,Fleet Management,R4000
704061,Guest Motors Limited,460.70,Equipment - Purchase,190825743,22/02/2021,Fleet Services,Fleet Management,R4000
704061,Guest Motors Limited,124.37,Equipment - Purchase,190822359,11/02/2021,Fleet Services,Fleet Management,R4000
704061,Guest Motors Limited,66.93,Equipment - Purchase,190825744,22/02/2021,Fleet Services,Fleet Management,R4000
704061,Guest Motors Limited,32.73,Equipment - Purchase,190825744,22/02/2021,Fleet Services,Fleet Management,R4000
704061,Guest Motors Limited,150.35,Equipment - Purchase,190822361,11/02/2021,Fleet Services,Fleet Management,R4000
704061,Guest Motors Limited,460.70,Equipment - Purchase,190820879,09/02/2021,Fleet Services,Fleet Management,R4000
704061,Guest Motors Limited,41.73,Equipment - Purchase,190820878,09/02/2021,Fleet Services,Fleet Management,R4000
704061,Guest Motors Limited,3.21,Equipment - Purchase,190820878,09/02/2021,Fleet Services,Fleet Management,R4000
704061,Guest Motors Limited,25.67,Equipment - Purchase,190820878,09/02/2021,Fleet Services,Fleet Management,R4000
704061,Guest Motors Limited,201.60,Equipment - Purchase,190820878,09/02/2021,Fleet Services,Fleet Management,R4000
704061,Guest Motors Limited,4.76,Equipment - Purchase,190819135,03/02/2021,Fleet Services,Fleet Management,R4000
704079,H Jenkinson & Company Ltd,193.20,Equipment - Purchase,130310980,01/02/2021,Strengthening Families,EI Area 5 - Whitmore Reans,R4000
704079,H Jenkinson & Company Ltd,20.00,Equipment - Purchase,130310980,01/02/2021,Strengthening Families,EI Area 5 - Whitmore Reans,R4000
704079,H Jenkinson & Company Ltd,"4,239.90",Furniture,130311523,08/02/2021,Facilities Management,Civic Centre,R4004
704097,Hags-Smp Limited Rss Playmakers,95.00,Equipment - R & M,130312765,19/02/2021,Environmental Services,Parks - South West Area Management,R4003
704097,Hags-Smp Limited Rss Playmakers,30.00,Equipment - R & M,130312764,19/02/2021,Environmental Services,Parks - South West Area Management,R4003
704097,Hags-Smp Limited Rss Playmakers,45.60,Equipment - R & M,130312766,19/02/2021,Environmental Services,Parks - East Area Management,R4003
704097,Hags-Smp Limited Rss Playmakers,48.00,Equipment - R & M,130312763,19/02/2021,Environmental Services,Parks - East Area Management,R4003
704097,Hags-Smp Limited Rss Playmakers,18.75,Equipment - R & M,130311527,09/02/2021,Environmental Services,Parks - South West Area Management,R4003
704097,Hags-Smp Limited Rss Playmakers,160.00,Equipment - R & M,130311531,09/02/2021,Environmental Services,Parks - South West Area Management,R4003
704097,Hags-Smp Limited Rss Playmakers,"3,430.00",Equipment - R & M,130312345,10/02/2021,Environmental Services,Parks - East Area Management,R4003
704097,Hags-Smp Limited Rss Playmakers,73.38,Equipment - R & M,130311526,09/02/2021,Environmental Services,Parks - South West Area Management,R4003
704097,Hags-Smp Limited Rss Playmakers,10.00,Equipment - R & M,130311525,09/02/2021,Environmental Services,Parks - South West Area Management,R4003
704097,Hags-Smp Limited Rss Playmakers,115.00,Equipment - R & M,130311524,09/02/2021,Environmental Services,Parks - South West Area Management,R4003
704097,Hags-Smp Limited Rss Playmakers,412.50,Equipment - R & M,130311636,09/02/2021,Environmental Services,Parks - East Area Management,R4003
704097,Hags-Smp Limited Rss Playmakers,68.40,Equipment - R & M,130312347,12/02/2021,Environmental Services,Parks - East Area Management,R4003
704097,Hags-Smp Limited Rss Playmakers,91.20,Equipment - R & M,130312346,12/02/2021,Environmental Services,Parks - East Area Management,R4003
704097,Hags-Smp Limited Rss Playmakers,43.71,Equipment - R & M,130310985,03/02/2021,Environmental Services,Parks - East Area Management,R4003
704097,Hags-Smp Limited Rss Playmakers,560.00,Equipment - R & M,130310981,03/02/2021,Environmental Services,Parks - East Area Management,R4003
704097,Hags-Smp Limited Rss Playmakers,315.00,Equipment - R & M,130310982,03/02/2021,Environmental Services,Parks - East Area Management,R4003
704097,Hags-Smp Limited Rss Playmakers,90.00,Equipment - R & M,130310983,03/02/2021,Environmental Services,Parks - East Area Management,R4003
704097,Hags-Smp Limited Rss Playmakers,490.00,Equipment - R & M,130311533,09/02/2021,Environmental Services,Parks - South West Area Management,R4003
704097,Hags-Smp Limited Rss Playmakers,525.00,Equipment - R & M,130311532,09/02/2021,Environmental Services,Parks - East Area Management,R4003
704097,Hags-Smp Limited Rss Playmakers,115.00,Equipment - R & M,130311635,09/02/2021,Environmental Services,Parks - South West Area Management,R4003
704097,Hags-Smp Limited Rss Playmakers,228.00,Equipment - R & M,130312348,12/02/2021,Environmental Services,Parks - East Area Management,R4003
704097,Hags-Smp Limited Rss Playmakers,395.64,Equipment - R & M,130311529,09/02/2021,Environmental Services,Parks - East Area Management,R4003
704097,Hags-Smp Limited Rss Playmakers,43.75,Equipment - R & M,130311530,09/02/2021,Environmental Services,Parks - East Area Management,R4003
704097,Hags-Smp Limited Rss Playmakers,11.40,Equipment - R & M,130311528,09/02/2021,Environmental Services,Parks - South West Area Management,R4003
704097,Hags-Smp Limited Rss Playmakers,11.40,Equipment - R & M,130313686,26/02/2021,Environmental Services,Parks - East Area Management,R4003
704097,Hags-Smp Limited Rss Playmakers,90.00,Equipment - R & M,130312625,26/02/2021,Environmental Services,Parks - South West Area Management,R4003
704160,Haymarket Publishing Services Limited,"3,210.00",Subscriptions,130311245,01/02/2021,City Planning,Planning,R4701
704162,Hays Specialist Recruitment,"2,750.00",Agency Staff,130313274,22/02/2021,Procurement Services,Corporate Procurement Unit,R1100
704162,Hays Specialist Recruitment,"2,750.00",Agency Staff,130313275,22/02/2021,Procurement Services,Corporate Procurement Unit,R1100
704162,Hays Specialist Recruitment,"2,750.00",Agency Staff,130310987,03/02/2021,Procurement Services,Corporate Procurement Unit,R1100
704162,Hays Specialist Recruitment,"2,750.00",Agency Staff,130310989,03/02/2021,Procurement Services,Corporate Procurement Unit,R1100
704163,Hays Specialist Recruitment Limited,867.75,Agency Staff,130313128,19/02/2021,The Hub,Payroll/HR,R1100
704163,Hays Specialist Recruitment Limited,651.30,Agency Staff,130310617,01/02/2021,The Hub,Payroll/HR,R1100
704163,Hays Specialist Recruitment Limited,721.50,Agency Staff,130310618,04/02/2021,The Hub,Payroll/HR,R1100
704163,Hays Specialist Recruitment Limited,981.44,Agency Staff,130311637,04/02/2021,The Hub,Payroll/HR,R1100
704163,Hays Specialist Recruitment Limited,867.75,Agency Staff,130312148,09/02/2021,The Hub,Payroll/HR,R1100
704163,Hays Specialist Recruitment Limited,741.50,Agency Staff,130311747,09/02/2021,The Hub,Payroll/HR,R1100
704163,Hays Specialist Recruitment Limited,701.40,Agency Staff,130312149,10/02/2021,The Hub,Payroll/HR,R1100
704248,Higgs & Sons Solicitors,450.00,Services - Professional Fees,130312627,12/02/2021,Human Resources,HR Advice,R4400
704249,High Town Art Shop(Wolverhampton),"1,699.00",Grant Payments,190823971,16/02/2021,Enterprise,"AIM for GOLD - Additional Support Grant			",R4700
704266,Hills Coaches Limited,"6,600.00",Client Transport,130311639,04/02/2021,Transportation,Special  Transport,R3042
704266,Hills Coaches Limited,"4,400.00",Client Transport,130311640,04/02/2021,Transportation,Special  Transport,R3042
704266,Hills Coaches Limited,"5,385.00",Client Transport,130311638,04/02/2021,Transportation,Special  Transport,R3042
704271,Hilton Main Construction Limited,"1,610.00",Materials,130305946,05/02/2021,Street Lighting,Street Lighting Maintenance,R4007
704271,Hilton Main Construction Limited,"8,818.35",Hire of Plant,130307797,10/02/2021,Highways Maintenance,Gully Sweeping,R3201
704271,Hilton Main Construction Limited,"6,400.27",R&M - Departmental planned (external),130312351,10/02/2021,Highways Maintenance,Winter Maintenance,R2001
704271,Hilton Main Construction Limited,"7,928.32",R&M - Departmental planned (external),130313577,26/02/2021,Highways Maintenance,Highway & Land Drainage,R2001
704271,Hilton Main Construction Limited,"4,973.02",R&M - Departmental planned (external),130309733,17/02/2021,City Development,Interchange Ph2 Development,R2001
704271,Hilton Main Construction Limited,"8,226.46",R&M - Departmental planned (external),130313578,26/02/2021,Highways Maintenance,Winter Maintenance,R2001
704271,Hilton Main Construction Limited,"9,488.10",R&M - Departmental planned (external),130313581,26/02/2021,Highways Maintenance,Winter Maintenance,R2001
704271,Hilton Main Construction Limited,"8,142.68",R&M - Departmental planned (external),130313579,26/02/2021,Highways Maintenance,Winter Maintenance,R2001
704271,Hilton Main Construction Limited,"1,750.00",R&M - Departmental planned (external),130313130,19/02/2021,Highways Maintenance,Highway & Land Drainage,R2001
704271,Hilton Main Construction Limited,"2,923.00",R&M - Departmental planned (external),130313134,19/02/2021,Facilities Management,Management of Vacant Properties,R2001
704271,Hilton Main Construction Limited,"5,655.44",R&M - Departmental planned (external),130313129,19/02/2021,Highways Maintenance,Winter Maintenance,R2001
704271,Hilton Main Construction Limited,"2,533.68",R&M - Departmental planned (external),130309854,11/02/2021,City Development,Interchange Ph2 Development,R2001
704271,Hilton Main Construction Limited,"8,295.43",R&M - Departmental planned (external),130308392,11/02/2021,Highways Maintenance,Gully Sweeping,R2001
704271,Hilton Main Construction Limited,"2,175.00",Hire of Vehicles,190822378,11/02/2021,Fleet Services,Fleet Management,R3200
704271,Hilton Main Construction Limited,"8,760.49",R&M - Departmental planned (external),130309729,09/02/2021,Highways Maintenance,Gully Sweeping,R2001
704271,Hilton Main Construction Limited,"8,645.00",R&M - Departmental planned (external),130309728,09/02/2021,Highways Maintenance,Patching,R2001
704271,Hilton Main Construction Limited,290.49,R&M - Departmental planned (external),130304495,15/02/2021,Highways Maintenance,Highway & Land Drainage,R2001
704271,Hilton Main Construction Limited,"14,800.00",Agency Staff,130310990,03/02/2021,Covid-19 (City Environment 2),"COVID 19 - Waste Service			",R1100
704271,Hilton Main Construction Limited,"2,077.10",R&M - Departmental planned (external),130311915,09/02/2021,Highways Maintenance,"Brook course, Culvert & Subway Maintenance",R2001
704271,Hilton Main Construction Limited,600.00,R&M - Departmental planned (internal),130311914,09/02/2021,Highways Maintenance,Patching,R2000
704271,Hilton Main Construction Limited,600.00,R&M - Departmental planned (internal),130311914,09/02/2021,Highways Maintenance,Winter Maintenance,R2000
704271,Hilton Main Construction Limited,"2,077.10",R&M - Departmental planned (external),130311916,09/02/2021,Highways Maintenance,Winter Maintenance,R2001
704271,Hilton Main Construction Limited,"7,861.21",R&M - Departmental planned (external),130308393,09/02/2021,Highways Maintenance,Highway & Land Drainage,R2001
704271,Hilton Main Construction Limited,"9,848.06",R&M - Departmental planned (external),130311917,09/02/2021,Highways Maintenance,Winter Maintenance,R2001
704271,Hilton Main Construction Limited,"4,600.00",Materials,130311918,09/02/2021,Street Lighting,Street Lighting Maintenance,R4007
704271,Hilton Main Construction Limited,"3,501.20",R&M - Departmental planned (external),130312353,11/02/2021,Highways Maintenance,Winter Maintenance,R2001
704271,Hilton Main Construction Limited,565.90,R&M - Departmental planned (external),130312352,11/02/2021,Facilities Management,Management of Vacant Properties,R2001
704271,Hilton Main Construction Limited,"2,175.00",Hire of Vehicles,190822379,11/02/2021,Fleet Services,Fleet Management,R3200
704271,Hilton Main Construction Limited,"7,477.77",R&M - Departmental planned (external),130312350,11/02/2021,Highways Maintenance,Winter Maintenance,R2001
704271,Hilton Main Construction Limited,"15,786.00",Grants paid out to other organisations,190823214,15/02/2021,-,Disabled Facilities Grants,C5011
704271,Hilton Main Construction Limited,480.00,Materials,130313136,22/02/2021,Highways Maintenance,Planned Highways Maintenance,R4007
704271,Hilton Main Construction Limited,"6,000.00",Materials,130313138,22/02/2021,Bereavement Services,"Bereavement services - Grounds maintenance	",R4007
704271,Hilton Main Construction Limited,"1,217.20",R&M - Departmental planned (external),130313137,22/02/2021,Markets,Wholesale Market Facilities Management,R2001
704307,Holtite Limited.Inc.Isaiah Preston Ltd,131.40,Materials,130312150,09/02/2021,Street Lighting,Street Lighting Maintenance,R4007
704320,Hometrack Date Systems (Hds) Limited,"6,700.00",Services - Professional Fees,130312767,15/02/2021,Housing Revenue Account,HRA General,R4400
704323,Hopcraft Memorials Limited,100.00,Materials,130310992,01/02/2021,Bereavement Services,Crematorium,R4007
704328,Horizon Care & Education Group Limited,"17,924.00",TPP - Residential Care - Long Term,190821628,10/02/2021,Children & Young People In Care,Out of City - Pooled Budget,R5400
704328,Horizon Care & Education Group Limited,"1,400.00",Grant Payments to Individuals,190820144,05/02/2021,Inclusion Support,Pupil Premium,R6402
704328,Horizon Care & Education Group Limited,"18,244.00",TPP - Residential Care - Long Term,190821629,10/02/2021,Children & Young People In Care,Out of City Placements,R5400
704328,Horizon Care & Education Group Limited,"13,325.00",TPP - Independent Schools,130310757,02/02/2021,Special Educational Needs,SEN Education OOC,R5036
704328,Horizon Care & Education Group Limited,"4,700.00",TPP - Independent Schools,130310365,02/02/2021,Special Educational Needs,SEN Education OOC,R5036
704328,Horizon Care & Education Group Limited,"2,867.80",TPP - Independent Schools,130310364,02/02/2021,Special Educational Needs,SEN Education OOC,R5036
704328,Horizon Care & Education Group Limited,"12,675.00",TPP - Independent Schools,130310360,02/02/2021,Special Educational Needs,SEN Education OOC,R5036
704328,Horizon Care & Education Group Limited,"13,325.00",TPP - Independent Schools,130310752,02/02/2021,Special Educational Needs,SEN Education OOC,R5036
704328,Horizon Care & Education Group Limited,"13,325.00",TPP - Independent Schools,130310754,02/02/2021,Special Educational Needs,SEN Education OOC,R5036
704328,Horizon Care & Education Group Limited,-210.00,TPP - Independent Schools,130310759,02/02/2021,Special Educational Needs,SEN Education OOC,R5036
704328,Horizon Care & Education Group Limited,"4,412.00",TPP - Independent Schools,130310367,02/02/2021,Special Educational Needs,SEN Education OOC,R5036
704328,Horizon Care & Education Group Limited,"-3,570.00",TPP - Independent Schools,130312152,11/02/2021,Special Educational Needs,SEN Education OOC,R5036
704328,Horizon Care & Education Group Limited,-210.00,TPP - Independent Schools,130310370,02/02/2021,Special Educational Needs,SEN Education OOC,R5036
704328,Horizon Care & Education Group Limited,"19,500.00",TPP - Independent Schools,130310748,02/02/2021,Special Educational Needs,SEN Education OOC,R5036
704328,Horizon Care & Education Group Limited,"13,325.00",TPP - Independent Schools,130310751,02/02/2021,Special Educational Needs,SEN Education OOC,R5036
704328,Horizon Care & Education Group Limited,"19,500.00",TPP - Independent Schools,130310744,02/02/2021,Special Educational Needs,SEN Education OOC,R5036
704328,Horizon Care & Education Group Limited,"4,200.00",TPP - Independent Schools,130312151,11/02/2021,Special Educational Needs,SEN Education OOC,R5036
704328,Horizon Care & Education Group Limited,"6,695.00",TPP - Independent Schools,130310368,02/02/2021,Special Educational Needs,SEN Education OOC,R5036
704328,Horizon Care & Education Group Limited,-220.60,TPP - Independent Schools,130310371,02/02/2021,Special Educational Needs,SEN Education OOC,R5036
704328,Horizon Care & Education Group Limited,"13,325.00",TPP - Independent Schools,130310749,02/02/2021,Special Educational Needs,SEN Education OOC,R5036
704328,Horizon Care & Education Group Limited,-235.00,TPP - Independent Schools,130310369,02/02/2021,Special Educational Needs,SEN Education OOC,R5036
704328,Horizon Care & Education Group Limited,"13,325.00",TPP - Independent Schools,130310756,02/02/2021,Special Educational Needs,SEN Education OOC,R5036
704328,Horizon Care & Education Group Limited,"12,675.00",TPP - Independent Schools,130310747,02/02/2021,Special Educational Needs,SEN Education OOC,R5036
704328,Horizon Care & Education Group Limited,"4,200.00",TPP - Independent Schools,130310758,02/02/2021,Special Educational Needs,SEN Education OOC,R5036
704328,Horizon Care & Education Group Limited,"19,500.00",TPP - Independent Schools,130310746,02/02/2021,Special Educational Needs,SEN Education OOC,R5036
704328,Horizon Care & Education Group Limited,"13,325.00",TPP - Independent Schools,130310750,02/02/2021,Special Educational Needs,SEN Education OOC,R5036
704328,Horizon Care & Education Group Limited,"19,500.00",TPP - Independent Schools,130310362,02/02/2021,Special Educational Needs,SEN Education OOC,R5036
704328,Horizon Care & Education Group Limited,"15,600.00",TPP - Independent Schools,130310361,02/02/2021,Special Educational Needs,SEN Education OOC,R5036
704328,Horizon Care & Education Group Limited,"13,325.00",TPP - Independent Schools,130310363,02/02/2021,Special Educational Needs,SEN Education OOC,R5036
704328,Horizon Care & Education Group Limited,"12,675.00",TPP - Independent Schools,130310745,02/02/2021,Special Educational Needs,SEN Education OOC,R5036
704328,Horizon Care & Education Group Limited,"13,325.00",TPP - Independent Schools,130310755,02/02/2021,Special Educational Needs,SEN Education OOC,R5036
704328,Horizon Care & Education Group Limited,"13,325.00",TPP - Independent Schools,130310753,02/02/2021,Special Educational Needs,SEN Education OOC,R5036
704328,Horizon Care & Education Group Limited,"4,200.00",TPP - Independent Schools,130310366,02/02/2021,Special Educational Needs,SEN Education OOC,R5036
704328,Horizon Care & Education Group Limited,"6,695.00",TPP - Independent Schools,130312768,24/02/2021,Special Educational Needs,SEN Education OOC,R5036
704332,Hospital Direct (Marketing)Limited,56.00,Equipment - Purchase,130311246,04/02/2021,Older People Provider Services,"ILS Stores			",R4000
704332,Hospital Direct (Marketing)Limited,6.50,Comms - Postage,130311246,04/02/2021,Older People Provider Services,"ILS Stores			",R4503
704469,Indespension Limited,22.82,Equipment - Purchase,190825763,22/02/2021,Fleet Services,Fleet Management,R4000
704469,Indespension Limited,18.82,Equipment - Purchase,190825762,22/02/2021,Fleet Services,Fleet Management,R4000
704473,Industrial Equipment+Constructionltd,"1,797.55",R&M - Departmental planned (external),130311919,09/02/2021,Project and Works Team � Maintenance Programm,"Civic Centre Repairs & Maintenance	",R2001
704473,Industrial Equipment+Constructionltd,856.15,R&M - Departmental planned (external),130311920,09/02/2021,Project and Works Team � Maintenance Programm,"Civic Centre Repairs & Maintenance	",R2001
704473,Industrial Equipment+Constructionltd,290.00,R&M - Departmental planned (external),130311921,09/02/2021,Project and Works Team � Maintenance Programm,"Civic Centre Repairs & Maintenance	",R2001
704487,Initial Fire Systems Limited,149.85,Equipment - Purchase,130313416,23/02/2021,Covid-19 (City Environment 1),COVID 19 - Food Distribution Hub,R4000
704488,Initial Projects Limited T/A Enitial,630.00,Services - Professional Fees,130311641,05/02/2021,Public Protection,"Environmental Protection			",R4400
704488,Initial Projects Limited T/A Enitial,"13,288.88",Services - Professional Fees,130311781,09/02/2021,Public Protection,"Environmental Protection			",R4400
704489,Initial Washroom Hygiene Ltd(Solutions),46.07,Cleaning Supplies and Materials,130313141,18/02/2021,Cleaning,Cleaning of Buildings  General,R2705
704510,Instarmac Group PLC,"2,504.00",Materials,130312480,12/02/2021,Highways Maintenance,Patching,R4007
704524,Integrated Water Services Limited,"12,770.84",R&M - Departmental planned (external),130311949,23/02/2021,Project and Works Team � Maintenance Programm,Centralised R&M,R2001
704524,Integrated Water Services Limited,122.00,R&M - Departmental planned (external),130311930,11/02/2021,Project and Works Team � Maintenance Programm,Centralised R&M,R2001
704524,Integrated Water Services Limited,122.00,R&M - Departmental planned (external),130311926,11/02/2021,Project and Works Team � Maintenance Programm,Centralised R&M,R2001
704524,Integrated Water Services Limited,68.40,R&M - Departmental planned (external),130312599,11/02/2021,Schools,Wood End Primary School,R2001
704524,Integrated Water Services Limited,154.00,R&M - Departmental planned (external),130311932,11/02/2021,Project and Works Team � Maintenance Programm,Centralised R&M,R2001
704524,Integrated Water Services Limited,170.00,R&M - Departmental planned (external),130311941,11/02/2021,Project and Works Team � Maintenance Programm,Centralised R&M,R2001
704524,Integrated Water Services Limited,202.00,R&M - Departmental planned (external),130311935,11/02/2021,Project and Works Team � Maintenance Programm,Centralised R&M,R2001
704524,Integrated Water Services Limited,138.00,R&M - Departmental planned (external),130311942,11/02/2021,Project and Works Team � Maintenance Programm,Centralised R&M,R2001
704524,Integrated Water Services Limited,266.00,R&M - Departmental planned (external),130311928,11/02/2021,Project and Works Team � Maintenance Programm,Centralised R&M,R2001
704524,Integrated Water Services Limited,522.00,R&M - Departmental planned (external),130311938,11/02/2021,Project and Works Team � Maintenance Programm,Centralised R&M,R2001
704524,Integrated Water Services Limited,214.25,R&M - Departmental planned (external),130311955,11/02/2021,Project and Works Team � Maintenance Programm,Centralised R&M,R2001
704524,Integrated Water Services Limited,282.00,R&M - Departmental planned (external),130311934,11/02/2021,Project and Works Team � Maintenance Programm,Centralised R&M,R2001
704524,Integrated Water Services Limited,75.00,R&M - Departmental planned (external),130310761,01/02/2021,Project and Works Team � Maintenance Programm,Centralised R&M,R2001
704524,Integrated Water Services Limited,218.00,R&M - Departmental planned (external),130311931,11/02/2021,Project and Works Team � Maintenance Programm,Centralised R&M,R2001
704524,Integrated Water Services Limited,290.00,R&M - Departmental planned (external),130311946,11/02/2021,Project and Works Team � Maintenance Programm,Centralised R&M,R2001
704524,Integrated Water Services Limited,420.00,R&M - Departmental planned (external),130311952,11/02/2021,Project and Works Team � Maintenance Programm,Centralised R&M,R2001
704524,Integrated Water Services Limited,282.50,R&M - Departmental planned (external),130311956,11/02/2021,Project and Works Team � Maintenance Programm,Centralised R&M,R2001
704524,Integrated Water Services Limited,446.12,R&M - Departmental planned (external),130312598,11/02/2021,Schools,Wood End Primary School,R2001
704524,Integrated Water Services Limited,346.00,R&M - Departmental planned (external),130311929,11/02/2021,Project and Works Team � Maintenance Programm,Centralised R&M,R2001
704524,Integrated Water Services Limited,234.00,R&M - Departmental planned (external),130311940,11/02/2021,Project and Works Team � Maintenance Programm,Centralised R&M,R2001
704524,Integrated Water Services Limited,378.00,R&M - Departmental planned (external),130311939,11/02/2021,Project and Works Team � Maintenance Programm,Centralised R&M,R2001
704524,Integrated Water Services Limited,426.00,R&M - Departmental planned (external),130311927,11/02/2021,Project and Works Team � Maintenance Programm,Centralised R&M,R2001
704524,Integrated Water Services Limited,330.00,R&M - Departmental planned (external),130311936,11/02/2021,Project and Works Team � Maintenance Programm,Centralised R&M,R2001
704524,Integrated Water Services Limited,763.92,R&M - Departmental planned (external),130311948,11/02/2021,Project and Works Team � Maintenance Programm,Centralised R&M,R2001
704524,Integrated Water Services Limited,234.00,R&M - Departmental planned (external),130311950,11/02/2021,Project and Works Team � Maintenance Programm,Centralised R&M,R2001
704524,Integrated Water Services Limited,290.00,R&M - Departmental planned (external),130310760,01/02/2021,Project and Works Team � Maintenance Programm,Centralised R&M,R2001
704524,Integrated Water Services Limited,202.00,R&M - Departmental planned (external),130312487,15/02/2021,Project and Works Team � Maintenance Programm,Centralised R&M,R2001
704524,Integrated Water Services Limited,138.00,R&M - Departmental planned (external),130312485,15/02/2021,Project and Works Team � Maintenance Programm,Centralised R&M,R2001
704524,Integrated Water Services Limited,90.00,R&M - Departmental planned (external),130312155,12/02/2021,Project and Works Team � Maintenance Programm,Centralised R&M,R2001
704524,Integrated Water Services Limited,566.40,R&M - Departmental planned (external),130312481,15/02/2021,Project and Works Team � Maintenance Programm,Centralised R&M,R2001
704524,Integrated Water Services Limited,90.00,R&M - Departmental planned (external),130312157,12/02/2021,Project and Works Team � Maintenance Programm,Centralised R&M,R2001
704524,Integrated Water Services Limited,346.00,R&M - Departmental planned (external),130312484,15/02/2021,Project and Works Team � Maintenance Programm,Centralised R&M,R2001
704524,Integrated Water Services Limited,154.00,R&M - Departmental planned (external),130312153,12/02/2021,Project and Works Team � Maintenance Programm,Centralised R&M,R2001
704524,Integrated Water Services Limited,90.00,R&M - Departmental planned (external),130312160,12/02/2021,Project and Works Team � Maintenance Programm,Centralised R&M,R2001
704524,Integrated Water Services Limited,522.00,R&M - Departmental planned (external),130312488,12/02/2021,Project and Works Team � Maintenance Programm,Centralised R&M,R2001
704524,Integrated Water Services Limited,122.00,R&M - Departmental planned (external),130312483,12/02/2021,Project and Works Team � Maintenance Programm,Centralised R&M,R2001
704524,Integrated Water Services Limited,282.50,R&M - Departmental planned (external),130311947,09/02/2021,Project and Works Team � Maintenance Programm,Centralised R&M,R2001
704524,Integrated Water Services Limited,75.00,R&M - Departmental planned (external),130311945,09/02/2021,Project and Works Team � Maintenance Programm,Centralised R&M,R2001
704524,Integrated Water Services Limited,138.00,R&M - Departmental planned (external),130312156,12/02/2021,Project and Works Team � Maintenance Programm,Centralised R&M,R2001
704524,Integrated Water Services Limited,154.00,R&M - Departmental planned (external),130312154,12/02/2021,Project and Works Team � Maintenance Programm,Centralised R&M,R2001
704524,Integrated Water Services Limited,106.00,R&M - Departmental planned (external),130312158,12/02/2021,Project and Works Team � Maintenance Programm,Centralised R&M,R2001
704524,Integrated Water Services Limited,280.00,R&M - Departmental planned (external),130312490,12/02/2021,Project and Works Team � Maintenance Programm,Centralised R&M,R2001
704524,Integrated Water Services Limited,763.92,R&M - Departmental planned (external),130312482,12/02/2021,Project and Works Team � Maintenance Programm,Centralised R&M,R2001
704524,Integrated Water Services Limited,138.00,R&M - Departmental planned (external),130312159,12/02/2021,Project and Works Team � Maintenance Programm,Centralised R&M,R2001
704524,Integrated Water Services Limited,413.50,R&M - Departmental planned (external),130311944,09/02/2021,Project and Works Team � Maintenance Programm,Centralised R&M,R2001
704524,Integrated Water Services Limited,413.50,R&M - Departmental planned (external),130313281,24/02/2021,Project and Works Team � Maintenance Programm,Centralised R&M,R2001
704524,Integrated Water Services Limited,90.00,R&M - Departmental planned (external),130311951,11/02/2021,Project and Works Team � Maintenance Programm,Centralised R&M,R2001
704524,Integrated Water Services Limited,203.50,R&M - Departmental planned (external),130311954,11/02/2021,Project and Works Team � Maintenance Programm,Centralised R&M,R2001
704524,Integrated Water Services Limited,106.00,R&M - Departmental planned (external),130311937,11/02/2021,Project and Works Team � Maintenance Programm,Centralised R&M,R2001
704524,Integrated Water Services Limited,394.00,R&M - Departmental planned (external),130312486,15/02/2021,Project and Works Team � Maintenance Programm,Centralised R&M,R2001
704524,Integrated Water Services Limited,90.00,R&M - Departmental planned (external),130311933,11/02/2021,Project and Works Team � Maintenance Programm,Centralised R&M,R2001
704524,Integrated Water Services Limited,378.00,R&M - Departmental planned (external),130312489,15/02/2021,Project and Works Team � Maintenance Programm,Centralised R&M,R2001
704524,Integrated Water Services Limited,203.50,R&M - Departmental planned (external),130312161,11/02/2021,Project and Works Team � Maintenance Programm,Centralised R&M,R2001
704524,Integrated Water Services Limited,74.00,R&M - Departmental planned (external),130311943,11/02/2021,Project and Works Team � Maintenance Programm,Centralised R&M,R2001
704582,Jane Foulkes Ltd,212.50,Direct Work With Children,130312946,17/02/2021,Regional Adoption Agency Consortium,"Adoption At Heart ASF			",R6310
704582,Jane Foulkes Ltd,318.75,Direct Work With Children,130311957,10/02/2021,Regional Adoption Agency Consortium,"Adoption At Heart ASF			",R6310
704582,Jane Foulkes Ltd,297.50,Direct Work With Children,130312945,17/02/2021,Regional Adoption Agency Consortium,Regional Adoption Agency,R6310
704584,J Ashcroft,"2,256.00",Services - Professional Fees,190826006,23/02/2021,Visitor Economy,"Literature Festival -  ACE NPO WAG			",R4400
704593,J Edwards Building T/A J Edwards Glass,"1,283.00",R&M - Departmental planned (external),130312769,19/02/2021,Project and Works Team � Maintenance Programm,Centralised R&M,R2001
704593,J Edwards Building T/A J Edwards Glass,75.00,R&M - Departmental planned (external),130312356,17/02/2021,Project and Works Team � Maintenance Programm,Centralised R&M,R2001
704593,J Edwards Building T/A J Edwards Glass,"7,176.00",R&M - Departmental planned (external),130312162,19/02/2021,Project and Works Team � Maintenance Programm,Centralised R&M,R2001
704593,J Edwards Building T/A J Edwards Glass,75.00,R&M - Departmental planned (external),130311394,04/02/2021,City Development,Southside,R2001
704612,J P Lennard Limited,139.50,Equipment - R & M,130311395,03/02/2021,Leisure Services,Bert Williams Leisure Centre,R4003
704612,J P Lennard Limited,14.35,Comms - Postage,130311395,03/02/2021,Leisure Services,Bert Williams Leisure Centre,R4503
704617,J S Bassi T/A Penn Radio Cars,"2,250.00",Client Transport,130312950,16/02/2021,Transportation,Special  Transport,R3042
704617,J S Bassi T/A Penn Radio Cars,"1,080.00",Client Transport,130312949,16/02/2021,Transportation,Special  Transport,R3042
704617,J S Bassi T/A Penn Radio Cars,"1,332.00",Client Transport,130312955,16/02/2021,Transportation,Secondary  Transport,R3042
704617,J S Bassi T/A Penn Radio Cars,"1,053.00",Client Transport,130312948,16/02/2021,Transportation,Special  Transport,R3042
704617,J S Bassi T/A Penn Radio Cars,720.00,Client Transport,130312952,16/02/2021,Transportation,Secondary  Transport,R3042
704617,J S Bassi T/A Penn Radio Cars,"1,275.17",Client Transport,130312951,16/02/2021,Transportation,Special  Transport,R3042
704617,J S Bassi T/A Penn Radio Cars,720.00,Client Transport,130312953,16/02/2021,Transportation,Secondary  Transport,R3042
704617,J S Bassi T/A Penn Radio Cars,"1,100.00",Client Transport,130312956,16/02/2021,Transportation,Special  Transport,R3042
704617,J S Bassi T/A Penn Radio Cars,992.00,Client Transport,130312947,16/02/2021,Transportation,Special  Transport,R3042
704617,J S Bassi T/A Penn Radio Cars,"1,007.00",Client Transport,130312954,16/02/2021,Transportation,Primary  Transport,R3042
704617,J S Bassi T/A Penn Radio Cars,"1,045.00",Client Transport,130312770,15/02/2021,Transportation,Secondary  Transport,R3042
704639,Jack Moody Landscape & Civil Eng Ltd,"42,977.10",Construction and Conversion,130311642,05/02/2021,-,Parks Strategy and Open Space,C1100
704640,Jackdaw (Tools) Limited,5.21,Equipment - Purchase,190817734,01/02/2021,Fleet Services,Fleet Management,R4000
704640,Jackdaw (Tools) Limited,8.36,Equipment - Purchase,190817734,01/02/2021,Fleet Services,Fleet Management,R4000
704640,Jackdaw (Tools) Limited,-8.36,Equipment - Purchase,190817735,01/02/2021,Fleet Services,Fleet Management,R4000
704640,Jackdaw (Tools) Limited,7.08,Equipment - Purchase,190817736,01/02/2021,Fleet Services,Fleet Management,R4000
704640,Jackdaw (Tools) Limited,17.93,Equipment - Purchase,190828218,24/02/2021,Fleet Services,Fleet Management,R4000
704640,Jackdaw (Tools) Limited,0.44,Equipment - Purchase,190828217,24/02/2021,Fleet Services,Fleet Management,R4000
704640,Jackdaw (Tools) Limited,0.79,Equipment - Purchase,190828217,24/02/2021,Fleet Services,Fleet Management,R4000
704640,Jackdaw (Tools) Limited,4.49,Equipment - Purchase,190828217,24/02/2021,Fleet Services,Fleet Management,R4000
704640,Jackdaw (Tools) Limited,3.41,Equipment - Purchase,190828217,24/02/2021,Fleet Services,Fleet Management,R4000
704640,Jackdaw (Tools) Limited,2.96,Equipment - Purchase,190828217,24/02/2021,Fleet Services,Fleet Management,R4000
704640,Jackdaw (Tools) Limited,4.31,Equipment - Purchase,190828217,24/02/2021,Fleet Services,Fleet Management,R4000
704649,Jacobs U.K.Limited,338.35,Construction and Conversion,130308853,04/02/2021,-,Decent Homes - Stock Improvements,C1100
704649,Jacobs U.K.Limited,"1,285.15",Construction and Conversion,130310620,04/02/2021,-,Decent Homes - Stock Improvements,C1100
704649,Jacobs U.K.Limited,869.38,Construction and Conversion,130310619,04/02/2021,-,Decent Homes - Stock Improvements,C1100
704649,Jacobs U.K.Limited,"2,089.10",Construction and Conversion,130308854,04/02/2021,-,Decent Homes - Stock Improvements,C1100
704649,Jacobs U.K.Limited,372.50,Construction and Conversion,130310622,04/02/2021,-,Decent Homes - Stock Improvements,C1100
704649,Jacobs U.K.Limited,49.68,Construction and Conversion,130310621,04/02/2021,-,Decent Homes - Stock Improvements,C1100
704657,James Lister & Sons Limited,16.40,Protective Clothing,130312959,24/02/2021,Project and Works Team � Maintenance Programm,"Civic Centre Repairs & Maintenance	",R4200
704657,James Lister & Sons Limited,13.45,Protective Clothing,130312169,16/02/2021,Older People Provider Services,"ILS Stores			",R4200
704657,James Lister & Sons Limited,70.85,Protective Clothing,130312176,11/02/2021,Transportation,Section 278 and 38 Agreements,R4200
704657,James Lister & Sons Limited,767.60,Protective Clothing,130313063,17/02/2021,Street Lighting,Street Lighting Maintenance,R4200
704657,James Lister & Sons Limited,87.60,Protective Clothing,130312958,16/02/2021,Cleaning,Cleaning of Buildings  General,R4200
704657,James Lister & Sons Limited,254.00,Equipment - Purchase,130312175,10/02/2021,Environmental Services,Graffiti Removal Team,R4000
704657,James Lister & Sons Limited,95.32,Protective Clothing,130312163,10/02/2021,Transportation,Section 278 and 38 Agreements,R4200
704657,James Lister & Sons Limited,76.00,Equipment - Purchase,130312960,23/02/2021,Environmental Services,Graffiti Removal Team,R4000
704657,James Lister & Sons Limited,31.75,Protective Clothing,130312178,16/02/2021,Older People Provider Services,"ILS Stores			",R4200
704657,James Lister & Sons Limited,30.75,Protective Clothing,130308089,05/02/2021,Environmental Services,Allotments,R4200
704657,James Lister & Sons Limited,5.10,Protective Clothing,130308090,05/02/2021,Environmental Services,Allotments,R4200
704657,James Lister & Sons Limited,109.50,Protective Clothing,130313142,18/02/2021,Highways Maintenance,Planned Highways Maintenance,R4200
704657,James Lister & Sons Limited,71.80,Protective Clothing,130312172,10/02/2021,Highways Maintenance,Planned Highways Maintenance,R4200
704657,James Lister & Sons Limited,218.50,Protective Clothing,130312957,17/02/2021,Highways Maintenance,Planned Highways Maintenance,R4200
704657,James Lister & Sons Limited,53.76,Protective Clothing,130312168,11/02/2021,Cleaning,Cleaning of Buildings  General,R4200
704657,James Lister & Sons Limited,15.35,Protective Clothing,130312493,11/02/2021,Environmental Services,Parks  Ranger Service,R4200
704657,James Lister & Sons Limited,752.75,Protective Clothing,130308086,11/02/2021,Older People Provider Services,Reablement Team,R4200
704657,James Lister & Sons Limited,42.38,Protective Clothing,130312166,11/02/2021,Cleaning,Cleaning of Buildings  General,R4200
704657,James Lister & Sons Limited,26.64,Protective Clothing,130312492,11/02/2021,Environmental Services,Parks  Ranger Service,R4200
704657,James Lister & Sons Limited,100.45,Protective Clothing,130312167,11/02/2021,Older People Provider Services,Reablement Team,R4200
704657,James Lister & Sons Limited,18.91,Protective Clothing,130311959,11/02/2021,Markets,Wholesale Market Facilities Management,R4200
704657,James Lister & Sons Limited,40.56,Protective Clothing,130312164,11/02/2021,Catering,Education Catering  General Overheads,R4200
704657,James Lister & Sons Limited,21.90,Protective Clothing,130312173,11/02/2021,Cleaning,Cleaning of Buildings  General,R4200
704657,James Lister & Sons Limited,40.00,Protective Clothing,130312179,11/02/2021,Cleaning,Cleaning of Buildings  General,R4200
704657,James Lister & Sons Limited,29.65,Protective Clothing,130304063,01/02/2021,Parking Services,Car Parks Operational Staff,R4200
704657,James Lister & Sons Limited,44.95,Protective Clothing,130312771,15/02/2021,Cleaning,Cleaning of Buildings  General,R4200
704657,James Lister & Sons Limited,29.65,Protective Clothing,130302642,01/02/2021,Parking Services,Car Parks Operational Staff,R4200
704657,James Lister & Sons Limited,14.95,Protective Clothing,130311783,09/02/2021,Bereavement Services,Crematorium,R4200
704657,James Lister & Sons Limited,2.50,Protective Clothing,130310766,01/02/2021,City Planning,Building Consultancy,R4200
704657,James Lister & Sons Limited,50.00,Protective Clothing,130313285,22/02/2021,Cleaning,Cleaning of Buildings  General,R4200
704657,James Lister & Sons Limited,17.21,Protective Clothing,130308093,02/02/2021,Cleaning,Cleaning of Buildings  General,R4200
704657,James Lister & Sons Limited,12.65,Protective Clothing,130311784,15/02/2021,Project and Works Team � Maintenance Programm,"Civic Centre Repairs & Maintenance	",R4200
704657,James Lister & Sons Limited,399.75,Equipment - Purchase,130311643,09/02/2021,Environmental Services,Graffiti Removal Team,R4000
704657,James Lister & Sons Limited,80.94,Protective Clothing,130309739,04/02/2021,Older People Provider Services,"ILS Stores			",R4200
704657,James Lister & Sons Limited,289.88,Protective Clothing,130311961,09/02/2021,Highways Maintenance,Patching,R4200
704657,James Lister & Sons Limited,65.70,Protective Clothing,130311396,03/02/2021,Cleaning,Cleaning of Buildings  General,R4200
704657,James Lister & Sons Limited,13.00,Protective Clothing,130310546,08/02/2021,Markets,Wholesale Market Facilities Management,R4200
704657,James Lister & Sons Limited,56.50,Protective Clothing,130311397,03/02/2021,Catering,Education Catering  General Overheads,R4200
704657,James Lister & Sons Limited,263.00,Protective Clothing,130311960,09/02/2021,Bereavement Services,Crematorium,R4200
704657,James Lister & Sons Limited,-433.20,Protective Clothing,130311120,03/02/2021,Environmental Services,Ground Maintenance East,R4200
704657,James Lister & Sons Limited,111.75,Protective Clothing,130311122,03/02/2021,Transportation,Section 278 and 38 Agreements,R4200
704657,James Lister & Sons Limited,89.46,Protective Clothing,130310140,09/02/2021,Environmental Services,Parks  Ranger Service,R4200
704657,James Lister & Sons Limited,32.59,Protective Clothing,130310763,04/02/2021,Older People Provider Services,"ILS Stores			",R4200
704657,James Lister & Sons Limited,135.20,Protective Clothing,130312177,09/02/2021,Bereavement Services,"Bereavement services - Grounds maintenance	",R4200
704657,James Lister & Sons Limited,13.30,Protective Clothing,130302647,09/02/2021,Fleet Services,Fleet Management,R4200
704657,James Lister & Sons Limited,4.99,Equipment - R & M,130312491,15/02/2021,Operation & Maintenance of Existing Network,"Roadworks Permitting				",R4003
704657,James Lister & Sons Limited,-17.89,Protective Clothing,130311782,09/02/2021,Environmental Services,Parks  Ranger Service,R4200
704657,James Lister & Sons Limited,72.20,Equipment - Purchase,130311785,09/02/2021,Environmental Services,Graffiti Removal Team,R4000
704657,James Lister & Sons Limited,7.60,Protective Clothing,130306401,09/02/2021,Fleet Services,Fleet Management,R4200
704657,James Lister & Sons Limited,"3,145.00",Protective Clothing,130311123,03/02/2021,Environmental Services,Ground Maintenance East,R4200
704657,James Lister & Sons Limited,27.50,Protective Clothing,130311398,03/02/2021,Catering,Education Catering  General Overheads,R4200
704657,James Lister & Sons Limited,7.40,Protective Clothing,130311125,03/02/2021,Cleaning,Cleaning of Buildings  General,R4200
704657,James Lister & Sons Limited,21.90,Protective Clothing,130311958,12/02/2021,Cleaning,Cleaning of Buildings  General,R4200
704657,James Lister & Sons Limited,31.25,Protective Clothing,130311399,04/02/2021,Older People Provider Services,"ILS Stores			",R4200
704657,James Lister & Sons Limited,249.02,Protective Clothing,130312170,12/02/2021,Project and Works Team � Maintenance Programm,"Civic Centre Repairs & Maintenance	",R4200
704657,James Lister & Sons Limited,25.30,Protective Clothing,130306727,09/02/2021,Fleet Services,Fleet Management,R4200
704657,James Lister & Sons Limited,16.40,Protective Clothing,130307306,09/02/2021,Fleet Services,Fleet Management,R4200
704657,James Lister & Sons Limited,8.88,Clothing / Uniforms,130305540,09/02/2021,Markets,Wolverhampton Indoor and Open Market,R4201
704659,James Wilkes Limited,"9,629.80",Grants paid out to other organisations,190825071,17/02/2021,-,Disabled Facilities Grants,C5011
704659,James Wilkes Limited,"4,405.49",Grants paid out to other organisations,190828223,24/02/2021,-,Disabled Facilities Grants,C5011
704706,JLA Limited,180.00,Service Charges,130313287,19/02/2021,Learning Disability Provider,Duke Street Bungalows,R2205
704706,JLA Limited,180.00,Equipment - R & M,130313145,18/02/2021,Learning Disability Provider,Ernest Bold Court,R4003
704706,JLA Limited,180.00,Equipment - R & M,130313146,23/02/2021,Learning Disability Provider,City Links,R4003
704722,Johal Dairies Limited,10.49,Provisions (Not for resale),130313159,22/02/2021,Learning Disability Provider,Duke Street Bungalows,R4101
704722,Johal Dairies Limited,14.25,Provisions (Not for resale),130313152,22/02/2021,Learning Disability Provider,Duke Street Bungalows,R4101
704722,Johal Dairies Limited,20.90,Provisions (Not for resale),130313161,22/02/2021,Learning Disability Provider,Duke Street Bungalows,R4101
704722,Johal Dairies Limited,14.25,Provisions (Not for resale),130313160,22/02/2021,Learning Disability Provider,Duke Street Bungalows,R4101
704722,Johal Dairies Limited,20.90,Provisions (Not for resale),130313153,22/02/2021,Learning Disability Provider,Duke Street Bungalows,R4101
704722,Johal Dairies Limited,10.49,Provisions (Not for resale),130313151,22/02/2021,Learning Disability Provider,Duke Street Bungalows,R4101
704722,Johal Dairies Limited,20.90,Provisions (Not for resale),130313157,22/02/2021,Learning Disability Provider,Duke Street Bungalows,R4101
704722,Johal Dairies Limited,10.49,Provisions (Not for resale),130313155,22/02/2021,Learning Disability Provider,Duke Street Bungalows,R4101
704722,Johal Dairies Limited,14.25,Provisions (Not for resale),130313156,22/02/2021,Learning Disability Provider,Duke Street Bungalows,R4101
704722,Johal Dairies Limited,10.49,Provisions (Not for resale),130313148,22/02/2021,Learning Disability Provider,Duke Street Bungalows,R4101
704722,Johal Dairies Limited,10.32,Provisions (Not for resale),130311793,10/02/2021,Catering,Civic Centre Catering,R4101
704722,Johal Dairies Limited,9.60,Provisions (Not for resale),130310035,01/02/2021,Learning Disability Provider,Duke Street Bungalows,R4101
704722,Johal Dairies Limited,9.60,Provisions (Not for resale),130310039,03/02/2021,Learning Disability Provider,Duke Street Bungalows,R4101
704722,Johal Dairies Limited,9.60,Provisions (Not for resale),130310055,03/02/2021,Learning Disability Provider,Duke Street Bungalows,R4101
704722,Johal Dairies Limited,19.01,Provisions (Not for resale),130310049,03/02/2021,Learning Disability Provider,Duke Street Bungalows,R4101
704722,Johal Dairies Limited,12.96,Provisions (Not for resale),130310040,03/02/2021,Learning Disability Provider,Duke Street Bungalows,R4101
704722,Johal Dairies Limited,9.60,Provisions (Not for resale),130310051,03/02/2021,Learning Disability Provider,Duke Street Bungalows,R4101
704722,Johal Dairies Limited,9.60,Provisions (Not for resale),130310043,03/02/2021,Learning Disability Provider,Duke Street Bungalows,R4101
704722,Johal Dairies Limited,19.01,Provisions (Not for resale),130310053,03/02/2021,Learning Disability Provider,Duke Street Bungalows,R4101
704722,Johal Dairies Limited,12.96,Provisions (Not for resale),130310052,03/02/2021,Learning Disability Provider,Duke Street Bungalows,R4101
704722,Johal Dairies Limited,383.91,Provisions (Not for resale),130311792,09/02/2021,Visitor Economy,Bantock  Tea Rooms,R4101
704722,Johal Dairies Limited,12.96,Provisions (Not for resale),130310036,01/02/2021,Learning Disability Provider,Duke Street Bungalows,R4101
704722,Johal Dairies Limited,19.01,Provisions (Not for resale),130310045,03/02/2021,Learning Disability Provider,Duke Street Bungalows,R4101
704722,Johal Dairies Limited,14.25,Provisions (Not for resale),130313149,22/02/2021,Learning Disability Provider,Duke Street Bungalows,R4101
704722,Johal Dairies Limited,19.01,Provisions (Not for resale),130310037,03/02/2021,Learning Disability Provider,Duke Street Bungalows,R4101
704722,Johal Dairies Limited,19.01,Provisions (Not for resale),130310041,03/02/2021,Learning Disability Provider,Duke Street Bungalows,R4101
704722,Johal Dairies Limited,14.25,Provisions (Not for resale),130313288,19/02/2021,Learning Disability Provider,Duke Street Bungalows,R4101
704722,Johal Dairies Limited,"3,835.34",Provisions (Not for resale),130312961,22/02/2021,Catering,Education Catering  General Overheads,R4101
704722,Johal Dairies Limited,315.45,Provisions (Not for resale),130311790,09/02/2021,Catering,"West Park Tea Room	",R4101
704722,Johal Dairies Limited,12.96,Provisions (Not for resale),130310044,03/02/2021,Learning Disability Provider,Duke Street Bungalows,R4101
704722,Johal Dairies Limited,9.60,Provisions (Not for resale),130310047,03/02/2021,Learning Disability Provider,Duke Street Bungalows,R4101
704722,Johal Dairies Limited,19.01,Provisions (Not for resale),130310057,03/02/2021,Learning Disability Provider,Duke Street Bungalows,R4101
704722,Johal Dairies Limited,12.96,Provisions (Not for resale),130310056,03/02/2021,Learning Disability Provider,Duke Street Bungalows,R4101
704722,Johal Dairies Limited,12.96,Provisions (Not for resale),130310048,03/02/2021,Learning Disability Provider,Duke Street Bungalows,R4101
704722,Johal Dairies Limited,69.75,Provisions (Not for resale),130311791,09/02/2021,Leisure Services,WV Active Catering,R4101
704754,Jones Skips (Wolverhampton) Limited,219.00,Refuse Collection,130313591,25/02/2021,Strengthening Families,"Child Assessment Team			",R2704
704754,Jones Skips (Wolverhampton) Limited,370.00,TPP - Waste Disposal,130312986,25/02/2021,Environmental Services,Ground Maintenance East,R5003
704754,Jones Skips (Wolverhampton) Limited,38.90,TPP - Waste Disposal,130313164,18/02/2021,Strengthening Families,EI Area 1- Eastfield,R5003
704754,Jones Skips (Wolverhampton) Limited,189.00,TPP - Waste Disposal,130313163,18/02/2021,Strengthening Families,EI Area 1- Eastfield,R5003
704754,Jones Skips (Wolverhampton) Limited,"4,385.28",TPP - Waste Disposal,130312495,12/02/2021,Environmental Services,Ground Maintenance East,R5003
704754,Jones Skips (Wolverhampton) Limited,189.00,Refuse Collection,130313289,23/02/2021,Strengthening Families,"Child Assessment Team			",R2704
704754,Jones Skips (Wolverhampton) Limited,129.00,Section 17,130313162,25/02/2021,Strengthening Families,CP Area 3 - Graiseley,R6403
704754,Jones Skips (Wolverhampton) Limited,109.00,TPP - Waste Disposal,130311962,09/02/2021,Strengthening Families,CP Area 8 - Children�s Village,R5003
704847,Keltic Clothing Limited,"1,197.20",Clothing / Uniforms,130313290,25/02/2021,Transportation,School Crossing Patrol,R4201
704847,Keltic Clothing Limited,9.95,Clothing / Uniforms,130313290,25/02/2021,Transportation,School Crossing Patrol,R4201
704855,Kenton Research Limited,"58,745.40",Computing - Internet,130311644,05/02/2021,ICTS,Strategic ICTS (ICT Service Budget),R4537
704889,Killgerm Chemicals Limited,560.00,Materials,130313592,25/02/2021,Environmental Services,Pest Control,R4007
704889,Killgerm Chemicals Limited,196.00,Materials,130313592,25/02/2021,Environmental Services,Pest Control,R4007
704901,Kingfisher Environmental Servs Limited,78.97,R&M - Departmental planned (external),130312357,10/02/2021,Leisure Services,Bert Williams Leisure Centre,R2001
704931,Konica Minolta Bus.Solutions(UK)Limited.,"32,280.00",Photocopier Operating Lease,190819913,04/02/2021,ICTS,Printing,R4304
704931,Konica Minolta Bus.Solutions(UK)Limited.,276.45,Photocopier Operating Lease,190819915,04/02/2021,ICTS,Printing,R4304
704931,Konica Minolta Bus.Solutions(UK)Limited.,54.71,Photocopier Operating Lease,190819900,04/02/2021,ICTS,Printing,R4304
704931,Konica Minolta Bus.Solutions(UK)Limited.,77.51,Photocopier Operating Lease,190819905,04/02/2021,ICTS,Printing,R4304
704931,Konica Minolta Bus.Solutions(UK)Limited.,276.45,Photocopier Operating Lease,190819922,04/02/2021,ICTS,Printing,R4304
704931,Konica Minolta Bus.Solutions(UK)Limited.,297.57,Photocopier Operating Lease,190819941,04/02/2021,ICTS,Printing,R4304
704931,Konica Minolta Bus.Solutions(UK)Limited.,"1,900.00",Photocopier Operating Lease,190819901,04/02/2021,ICTS,Printing,R4304
704931,Konica Minolta Bus.Solutions(UK)Limited.,77.51,Photocopier Operating Lease,190819902,04/02/2021,ICTS,Printing,R4304
704931,Konica Minolta Bus.Solutions(UK)Limited.,219.14,Photocopier Operating Lease,190819912,04/02/2021,ICTS,Printing,R4304
704931,Konica Minolta Bus.Solutions(UK)Limited.,212.76,Photocopier Operating Lease,190819930,04/02/2021,ICTS,Printing,R4304
704931,Konica Minolta Bus.Solutions(UK)Limited.,40.50,Photocopier Operating Lease,190819950,04/02/2021,ICTS,Printing,R4304
704931,Konica Minolta Bus.Solutions(UK)Limited.,40.50,Photocopier Operating Lease,190819926,04/02/2021,ICTS,Printing,R4304
704931,Konica Minolta Bus.Solutions(UK)Limited.,77.51,Photocopier Operating Lease,190819903,04/02/2021,ICTS,Printing,R4304
704931,Konica Minolta Bus.Solutions(UK)Limited.,"3,926.40",Photocopier Operating Lease,190819910,04/02/2021,ICTS,Printing,R4304
704931,Konica Minolta Bus.Solutions(UK)Limited.,"13,232.86",Photocopier Operating Lease,190819934,04/02/2021,ICTS,Printing,R4304
704931,Konica Minolta Bus.Solutions(UK)Limited.,"26,464.18",Photocopier Operating Lease,190819929,04/02/2021,ICTS,Printing,R4304
704931,Konica Minolta Bus.Solutions(UK)Limited.,213.98,Photocopier Operating Lease,190819944,04/02/2021,ICTS,Printing,R4304
704931,Konica Minolta Bus.Solutions(UK)Limited.,212.76,Photocopier Operating Lease,190819948,04/02/2021,ICTS,Printing,R4304
704931,Konica Minolta Bus.Solutions(UK)Limited.,30.82,Photocopier Operating Lease,190819908,04/02/2021,ICTS,Printing,R4304
704931,Konica Minolta Bus.Solutions(UK)Limited.,212.76,Photocopier Operating Lease,190819918,04/02/2021,ICTS,Printing,R4304
704931,Konica Minolta Bus.Solutions(UK)Limited.,"25,929.54",Photocopier Operating Lease,190819928,04/02/2021,ICTS,Printing,R4304
704931,Konica Minolta Bus.Solutions(UK)Limited.,40.50,Photocopier Operating Lease,190819939,04/02/2021,ICTS,Printing,R4304
704931,Konica Minolta Bus.Solutions(UK)Limited.,"27,909.69",Photocopier Operating Lease,190819942,04/02/2021,ICTS,Printing,R4304
704931,Konica Minolta Bus.Solutions(UK)Limited.,238.14,Photocopier Operating Lease,190819895,04/02/2021,ICTS,Printing,R4304
704931,Konica Minolta Bus.Solutions(UK)Limited.,770.65,Photocopier Operating Lease,190819897,04/02/2021,ICTS,Printing,R4304
704931,Konica Minolta Bus.Solutions(UK)Limited.,404.64,Photocopier Operating Lease,190819911,04/02/2021,ICTS,Printing,R4304
704931,Konica Minolta Bus.Solutions(UK)Limited.,235.35,Photocopier Operating Lease,190819932,04/02/2021,ICTS,Printing,R4304
704931,Konica Minolta Bus.Solutions(UK)Limited.,162.81,Photocopier Operating Lease,190819945,04/02/2021,ICTS,Printing,R4304
704931,Konica Minolta Bus.Solutions(UK)Limited.,117.27,Photocopier Operating Lease,190819892,04/02/2021,ICTS,Printing,R4304
704931,Konica Minolta Bus.Solutions(UK)Limited.,404.65,Photocopier Operating Lease,190819898,04/02/2021,ICTS,Printing,R4304
704931,Konica Minolta Bus.Solutions(UK)Limited.,180.00,Photocopier Operating Lease,190819906,04/02/2021,ICTS,Printing,R4304
704931,Konica Minolta Bus.Solutions(UK)Limited.,235.35,Photocopier Operating Lease,190819923,04/02/2021,ICTS,Printing,R4304
704931,Konica Minolta Bus.Solutions(UK)Limited.,128.80,Photocopier Operating Lease,190819920,04/02/2021,ICTS,Printing,R4304
704931,Konica Minolta Bus.Solutions(UK)Limited.,172.24,Photocopier Operating Lease,190819925,04/02/2021,ICTS,Printing,R4304
704931,Konica Minolta Bus.Solutions(UK)Limited.,101.66,Photocopier Operating Lease,130308860,15/02/2021,Local Economy,Global Budgets,R4304
704931,Konica Minolta Bus.Solutions(UK)Limited.,6.75,Photocopier Operating Lease,190819951,04/02/2021,ICTS,Printing,R4304
704931,Konica Minolta Bus.Solutions(UK)Limited.,"1,406.18",Photocopier Operating Lease,190819909,04/02/2021,ICTS,Printing,R4304
704931,Konica Minolta Bus.Solutions(UK)Limited.,"3,338.61",Photocopier Operating Lease,190819935,04/02/2021,ICTS,Printing,R4304
704931,Konica Minolta Bus.Solutions(UK)Limited.,"1,546.81",Photocopier Operating Lease,190819919,04/02/2021,ICTS,Printing,R4304
704931,Konica Minolta Bus.Solutions(UK)Limited.,"3,153.67",Photocopier Operating Lease,190819938,04/02/2021,ICTS,Printing,R4304
704931,Konica Minolta Bus.Solutions(UK)Limited.,"1,751.04",Photocopier Operating Lease,190819907,04/02/2021,ICTS,Printing,R4304
704931,Konica Minolta Bus.Solutions(UK)Limited.,"42,568.20",Photocopier Operating Lease,190819933,04/02/2021,ICTS,Printing,R4304
704931,Konica Minolta Bus.Solutions(UK)Limited.,297.57,Photocopier Operating Lease,190819946,04/02/2021,ICTS,Printing,R4304
704931,Konica Minolta Bus.Solutions(UK)Limited.,212.76,Photocopier Operating Lease,190819924,04/02/2021,ICTS,Printing,R4304
704931,Konica Minolta Bus.Solutions(UK)Limited.,"8,378.50",Photocopier Operating Lease,190819937,04/02/2021,ICTS,Printing,R4304
704931,Konica Minolta Bus.Solutions(UK)Limited.,40.50,Photocopier Operating Lease,190819943,04/02/2021,ICTS,Printing,R4304
704931,Konica Minolta Bus.Solutions(UK)Limited.,"19,284.06",Photocopier Operating Lease,190819936,04/02/2021,ICTS,Printing,R4304
704931,Konica Minolta Bus.Solutions(UK)Limited.,"31,427.95",Photocopier Operating Lease,190819927,04/02/2021,ICTS,Printing,R4304
704931,Konica Minolta Bus.Solutions(UK)Limited.,77.51,Photocopier Operating Lease,190819904,04/02/2021,ICTS,Printing,R4304
704931,Konica Minolta Bus.Solutions(UK)Limited.,276.45,Photocopier Operating Lease,190819916,04/02/2021,ICTS,Printing,R4304
704931,Konica Minolta Bus.Solutions(UK)Limited.,236.61,Photocopier Operating Lease,190819896,04/02/2021,ICTS,Printing,R4304
704931,Konica Minolta Bus.Solutions(UK)Limited.,159.94,Photocopier Operating Lease,190819893,04/02/2021,ICTS,Printing,R4304
704931,Konica Minolta Bus.Solutions(UK)Limited.,109.75,Photocopier Operating Lease,190819891,04/02/2021,ICTS,Printing,R4304
704931,Konica Minolta Bus.Solutions(UK)Limited.,128.59,Photocopier Operating Lease,190819899,04/02/2021,ICTS,Printing,R4304
704931,Konica Minolta Bus.Solutions(UK)Limited.,425.52,Photocopier Operating Lease,190819917,04/02/2021,ICTS,Printing,R4304
704931,Konica Minolta Bus.Solutions(UK)Limited.,144.36,Photocopier Operating Lease,190819949,04/02/2021,ICTS,Printing,R4304
704931,Konica Minolta Bus.Solutions(UK)Limited.,236.94,Photocopier Operating Lease,190819894,04/02/2021,ICTS,Printing,R4304
704931,Konica Minolta Bus.Solutions(UK)Limited.,147.22,Photocopier Operating Lease,190819914,04/02/2021,ICTS,Printing,R4304
704931,Konica Minolta Bus.Solutions(UK)Limited.,404.64,Photocopier Operating Lease,190819921,04/02/2021,ICTS,Printing,R4304
704931,Konica Minolta Bus.Solutions(UK)Limited.,935.59,Photocopier Operating Lease,190819931,04/02/2021,ICTS,Printing,R4304
704931,Konica Minolta Bus.Solutions(UK)Limited.,154.10,Photocopier Operating Lease,190819940,04/02/2021,ICTS,Printing,R4304
704931,Konica Minolta Bus.Solutions(UK)Limited.,235.35,Photocopier Operating Lease,190819947,04/02/2021,ICTS,Printing,R4304
705003,Lapwing,621.46,Materials,130313359,23/02/2021,Highways Maintenance,Patching,R4007
705003,Lapwing,287.55,Materials,130310994,01/02/2021,Highways Maintenance,Winter Maintenance,R4007
705059,Bunzl UK LTD (trading as Lee Brothers),"9,785.00",Protective Clothing,130311126,04/02/2021,Covid-19 (Adult Services 1),"COVID 19 - Personal Protective Equipment (PPE)			",R4200
705163,Local Government Information Unit,"22,550.00",Subscriptions,130310995,03/02/2021,Governance Services,Members Expenses,R4701
705183,Lodge Tyre Co.Limited,25.00,Vehicle Maintenance - Spare Parts,190825776,22/02/2021,Fleet Services,Fleet Management,R3009
705183,Lodge Tyre Co.Limited,624.00,Vehicle Maintenance - Spare Parts,190825776,22/02/2021,Fleet Services,Fleet Management,R3009
705183,Lodge Tyre Co.Limited,15.00,Vehicle Maintenance - Spare Parts,190825776,22/02/2021,Fleet Services,Fleet Management,R3009
705183,Lodge Tyre Co.Limited,30.00,Vehicle Maintenance - Spare Parts,190825776,22/02/2021,Fleet Services,Fleet Management,R3009
705183,Lodge Tyre Co.Limited,420.00,Vehicle Maintenance - Spare Parts,190825776,22/02/2021,Fleet Services,Fleet Management,R3009
705183,Lodge Tyre Co.Limited,312.00,Vehicle Maintenance - Spare Parts,190825776,22/02/2021,Fleet Services,Fleet Management,R3009
705183,Lodge Tyre Co.Limited,235.00,Vehicle Maintenance - Spare Parts,190825776,22/02/2021,Fleet Services,Fleet Management,R3009
705183,Lodge Tyre Co.Limited,61.50,Vehicle Maintenance - Spare Parts,190825776,22/02/2021,Fleet Services,Fleet Management,R3009
705183,Lodge Tyre Co.Limited,85.00,Vehicle Maintenance - Spare Parts,190825776,22/02/2021,Fleet Services,Fleet Management,R3009
705183,Lodge Tyre Co.Limited,57.50,Vehicle Maintenance - Spare Parts,190825776,22/02/2021,Fleet Services,Fleet Management,R3009
705183,Lodge Tyre Co.Limited,6.00,Vehicle Maintenance - Spare Parts,190825776,22/02/2021,Fleet Services,Fleet Management,R3009
705183,Lodge Tyre Co.Limited,56.35,Vehicle Maintenance - Spare Parts,190825776,22/02/2021,Fleet Services,Fleet Management,R3009
705183,Lodge Tyre Co.Limited,3.00,Vehicle Maintenance - Spare Parts,190825776,22/02/2021,Fleet Services,Fleet Management,R3009
705183,Lodge Tyre Co.Limited,70.00,Vehicle Maintenance - Spare Parts,190825776,22/02/2021,Fleet Services,Fleet Management,R3009
705183,Lodge Tyre Co.Limited,172.14,Vehicle Maintenance - Spare Parts,190825776,22/02/2021,Fleet Services,Fleet Management,R3009
705183,Lodge Tyre Co.Limited,165.96,Vehicle Maintenance - Spare Parts,190825776,22/02/2021,Fleet Services,Fleet Management,R3009
705183,Lodge Tyre Co.Limited,123.00,Vehicle Maintenance - Spare Parts,190825776,22/02/2021,Fleet Services,Fleet Management,R3009
705183,Lodge Tyre Co.Limited,80.04,Vehicle Maintenance - Spare Parts,190825776,22/02/2021,Fleet Services,Fleet Management,R3009
705183,Lodge Tyre Co.Limited,55.32,Vehicle Maintenance - Spare Parts,190825776,22/02/2021,Fleet Services,Fleet Management,R3009
705183,Lodge Tyre Co.Limited,59.44,Vehicle Maintenance - Spare Parts,190825776,22/02/2021,Fleet Services,Fleet Management,R3009
705183,Lodge Tyre Co.Limited,135.36,Vehicle Maintenance - Spare Parts,190825776,22/02/2021,Fleet Services,Fleet Management,R3009
705183,Lodge Tyre Co.Limited,67.68,Vehicle Maintenance - Spare Parts,190825776,22/02/2021,Fleet Services,Fleet Management,R3009
705183,Lodge Tyre Co.Limited,348.98,Vehicle Maintenance - Spare Parts,190825776,22/02/2021,Fleet Services,Fleet Management,R3009
705183,Lodge Tyre Co.Limited,45.00,Vehicle Maintenance - Spare Parts,190825776,22/02/2021,Fleet Services,Fleet Management,R3009
705183,Lodge Tyre Co.Limited,2.50,Vehicle Maintenance - Spare Parts,190825776,22/02/2021,Fleet Services,Fleet Management,R3009
705183,Lodge Tyre Co.Limited,57.38,Vehicle Maintenance - Spare Parts,190825776,22/02/2021,Fleet Services,Fleet Management,R3009
705183,Lodge Tyre Co.Limited,145.66,Vehicle Maintenance - Spare Parts,190825776,22/02/2021,Fleet Services,Fleet Management,R3009
705183,Lodge Tyre Co.Limited,72.83,Vehicle Maintenance - Spare Parts,190825776,22/02/2021,Fleet Services,Fleet Management,R3009
705183,Lodge Tyre Co.Limited,10.50,Vehicle Maintenance - Spare Parts,190825776,22/02/2021,Fleet Services,Fleet Management,R3009
705183,Lodge Tyre Co.Limited,90.00,Vehicle Maintenance - Spare Parts,190825776,22/02/2021,Fleet Services,Fleet Management,R3009
705183,Lodge Tyre Co.Limited,-74.00,Vehicle Maintenance - Spare Parts,190807263,05/02/2021,Fleet Services,Fleet Management,R3009
705183,Lodge Tyre Co.Limited,-15.00,Vehicle Maintenance - Spare Parts,190820141,05/02/2021,Fleet Services,Fleet Management,R3009
705183,Lodge Tyre Co.Limited,420.00,Vehicle Maintenance - Spare Parts,190820142,05/02/2021,Fleet Services,Fleet Management,R3009
705183,Lodge Tyre Co.Limited,57.50,Vehicle Maintenance - Spare Parts,190820142,05/02/2021,Fleet Services,Fleet Management,R3009
705183,Lodge Tyre Co.Limited,30.00,Vehicle Maintenance - Spare Parts,190820142,05/02/2021,Fleet Services,Fleet Management,R3009
705183,Lodge Tyre Co.Limited,236.30,Vehicle Maintenance - Spare Parts,190820142,05/02/2021,Fleet Services,Fleet Management,R3009
705183,Lodge Tyre Co.Limited,25.00,Vehicle Maintenance - Spare Parts,190820142,05/02/2021,Fleet Services,Fleet Management,R3009
705183,Lodge Tyre Co.Limited,3.00,Vehicle Maintenance - Spare Parts,190820142,05/02/2021,Fleet Services,Fleet Management,R3009
705183,Lodge Tyre Co.Limited,280.00,Vehicle Maintenance - Spare Parts,190820142,05/02/2021,Fleet Services,Fleet Management,R3009
705183,Lodge Tyre Co.Limited,15.00,Vehicle Maintenance - Spare Parts,190820142,05/02/2021,Fleet Services,Fleet Management,R3009
705183,Lodge Tyre Co.Limited,54.00,Vehicle Maintenance - Spare Parts,190820142,05/02/2021,Fleet Services,Fleet Management,R3009
705183,Lodge Tyre Co.Limited,312.00,Vehicle Maintenance - Spare Parts,190820142,05/02/2021,Fleet Services,Fleet Management,R3009
705183,Lodge Tyre Co.Limited,54.78,Vehicle Maintenance - Spare Parts,190820142,05/02/2021,Fleet Services,Fleet Management,R3009
705183,Lodge Tyre Co.Limited,45.00,Vehicle Maintenance - Spare Parts,190820142,05/02/2021,Fleet Services,Fleet Management,R3009
705183,Lodge Tyre Co.Limited,79.00,Vehicle Maintenance - Spare Parts,190820142,05/02/2021,Fleet Services,Fleet Management,R3009
705183,Lodge Tyre Co.Limited,130.70,Vehicle Maintenance - Spare Parts,190820142,05/02/2021,Fleet Services,Fleet Management,R3009
705183,Lodge Tyre Co.Limited,61.50,Vehicle Maintenance - Spare Parts,190820142,05/02/2021,Fleet Services,Fleet Management,R3009
705183,Lodge Tyre Co.Limited,57.38,Vehicle Maintenance - Spare Parts,190820142,05/02/2021,Fleet Services,Fleet Management,R3009
705183,Lodge Tyre Co.Limited,10.50,Vehicle Maintenance - Spare Parts,190820142,05/02/2021,Fleet Services,Fleet Management,R3009
705183,Lodge Tyre Co.Limited,195.00,Vehicle Maintenance - Spare Parts,190820142,05/02/2021,Fleet Services,Fleet Management,R3009
705183,Lodge Tyre Co.Limited,114.76,Vehicle Maintenance - Spare Parts,190820142,05/02/2021,Fleet Services,Fleet Management,R3009
705183,Lodge Tyre Co.Limited,390.00,Vehicle Maintenance - Spare Parts,190820142,05/02/2021,Fleet Services,Fleet Management,R3009
705183,Lodge Tyre Co.Limited,50.00,Vehicle Maintenance - Spare Parts,190820142,05/02/2021,Fleet Services,Fleet Management,R3009
705183,Lodge Tyre Co.Limited,60.00,Vehicle Maintenance - Spare Parts,190820142,05/02/2021,Fleet Services,Fleet Management,R3009
705183,Lodge Tyre Co.Limited,246.00,Vehicle Maintenance - Spare Parts,190820142,05/02/2021,Fleet Services,Fleet Management,R3009
705183,Lodge Tyre Co.Limited,132.75,Vehicle Maintenance - Spare Parts,190820142,05/02/2021,Fleet Services,Fleet Management,R3009
705183,Lodge Tyre Co.Limited,85.61,Vehicle Maintenance - Spare Parts,190820142,05/02/2021,Fleet Services,Fleet Management,R3009
705183,Lodge Tyre Co.Limited,120.00,Vehicle Maintenance - Spare Parts,190820142,05/02/2021,Fleet Services,Fleet Management,R3009
705183,Lodge Tyre Co.Limited,40.90,Vehicle Maintenance - Spare Parts,190820142,05/02/2021,Fleet Services,Fleet Management,R3009
705183,Lodge Tyre Co.Limited,407.52,Vehicle Maintenance - Spare Parts,190820142,05/02/2021,Fleet Services,Fleet Management,R3009
705183,Lodge Tyre Co.Limited,36.75,Vehicle Maintenance - Spare Parts,190820142,05/02/2021,Fleet Services,Fleet Management,R3009
705183,Lodge Tyre Co.Limited,307.96,Vehicle Maintenance - Spare Parts,190820142,05/02/2021,Fleet Services,Fleet Management,R3009
705183,Lodge Tyre Co.Limited,135.36,Vehicle Maintenance - Spare Parts,190820142,05/02/2021,Fleet Services,Fleet Management,R3009
705183,Lodge Tyre Co.Limited,85.00,Vehicle Maintenance - Spare Parts,190820142,05/02/2021,Fleet Services,Fleet Management,R3009
705183,Lodge Tyre Co.Limited,67.68,Vehicle Maintenance - Spare Parts,190820142,05/02/2021,Fleet Services,Fleet Management,R3009
705183,Lodge Tyre Co.Limited,58.67,Vehicle Maintenance - Spare Parts,190820142,05/02/2021,Fleet Services,Fleet Management,R3009
705183,Lodge Tyre Co.Limited,123.00,Vehicle Maintenance - Spare Parts,190820142,05/02/2021,Fleet Services,Fleet Management,R3009
705236,M & J Drilling Services Limited,944.44,Services - Professional Fees,130310996,04/02/2021,Environmental Services,Parks / Open Spaces - Repairs & Maintenance,R4400
705249,M Dixon,"1,500.00",Services - Professional Fees,130312628,15/02/2021,Visitor Economy,Bantock House Museum-Exhibitions,R4400
705303,Mail Solutions UK Limited,658.08,Printing,130312359,23/02/2021,Parking Services,Parking Enforcement,R4300
705303,Mail Solutions UK Limited,101.42,Printing,130312358,16/02/2021,ICTS,Document Centre  General,R4300
705303,Mail Solutions UK Limited,98.61,Printing,130311534,17/02/2021,Community Financial Support,Financial Assessments,R4300
705496,Midcounties Co-Operative Funeralcare,"1,379.00",Services - Professional Fees,130313064,17/02/2021,Adults Safeguarding,"Court of Protection, Funerals and Protection of Property",R4400
705520,Midland News Association Limited,"1,000.00",Marketing \ Non-staff advertising,130313665,26/02/2021,Communications,Communications & Marketing - General,R4317
705520,Midland News Association Limited,"1,187.28",Construction and Conversion,130313535,24/02/2021,-,Safety Programme,C1100
705520,Midland News Association Limited,445.23,Marketing \ Non-staff advertising,130311964,11/02/2021,Operation & Maintenance of Existing Network,UTC - Utilities Organisations,R4317
705520,Midland News Association Limited,283.00,Marketing \ Non-staff advertising,130311247,03/02/2021,Communications,Communications & Marketing - General,R4317
705520,Midland News Association Limited,250.00,Marketing \ Non-staff advertising,130311963,16/02/2021,Visitor Economy,Marketing of Exhibitions,R4317
705520,Midland News Association Limited,283.00,Marketing \ Non-staff advertising,130310058,03/02/2021,Communications,Communications & Marketing - General,R4317
705520,Midland News Association Limited,283.00,Marketing \ Non-staff advertising,130313667,26/02/2021,Communications,Communications & Marketing - General,R4317
705520,Midland News Association Limited,"1,062.50",Marketing \ Non-staff advertising,130310260,03/02/2021,Communications,Communications & Marketing - General,R4317
705520,Midland News Association Limited,445.23,Marketing \ Non-staff advertising,130312363,11/02/2021,Operation & Maintenance of Existing Network,UTC - Utilities Organisations,R4317
705520,Midland News Association Limited,890.46,Marketing \ Non-staff advertising,130313168,18/02/2021,Operation & Maintenance of Existing Network,UTC - Utilities Organisations,R4317
705520,Midland News Association Limited,890.46,Marketing \ Non-staff advertising,130313173,18/02/2021,Operation & Maintenance of Existing Network,UTC - Utilities Organisations,R4317
705520,Midland News Association Limited,890.46,Marketing \ Non-staff advertising,130311127,01/02/2021,Operation & Maintenance of Existing Network,UTC - Utilities Organisations,R4317
705520,Midland News Association Limited,173.15,Marketing \ Non-staff advertising,130311253,01/02/2021,City Planning,Planning,R4317
705520,Midland News Association Limited,989.40,Marketing \ Non-staff advertising,130311252,01/02/2021,Operation & Maintenance of Existing Network,UTC - Utilities Organisations,R4317
705520,Midland News Association Limited,"2,819.79",Construction and Conversion,130312180,10/02/2021,-,Safety Programme,C1100
705520,Midland News Association Limited,620.00,Marketing \ Non-staff advertising,130313668,25/02/2021,Headstart,Headstart Hubs,R4317
705520,Midland News Association Limited,"1,681.98",Construction and Conversion,130313669,25/02/2021,-,Safety Programme,C1100
705520,Midland News Association Limited,544.17,Construction and Conversion,130313658,25/02/2021,-,Safety Programme,C1100
705520,Midland News Association Limited,989.40,Marketing \ Non-staff advertising,130311251,01/02/2021,Operation & Maintenance of Existing Network,UTC - Utilities Organisations,R4317
705520,Midland News Association Limited,816.26,Construction and Conversion,130311255,01/02/2021,-,SEN Special Provision Capital Fund,C1100
705520,Midland News Association Limited,989.40,Marketing \ Non-staff advertising,130313664,25/02/2021,Operation & Maintenance of Existing Network,UTC - Utilities Organisations,R4317
705520,Midland News Association Limited,989.40,Marketing \ Non-staff advertising,130313172,18/02/2021,Operation & Maintenance of Existing Network,UTC - Utilities Organisations,R4317
705520,Midland News Association Limited,544.16,Marketing \ Non-staff advertising,130313660,25/02/2021,Operation & Maintenance of Existing Network,UTC - Utilities Organisations,R4317
705520,Midland News Association Limited,247.35,Marketing \ Non-staff advertising,130313670,25/02/2021,City Planning,Planning,R4317
705520,Midland News Association Limited,667.85,Construction and Conversion,130313672,25/02/2021,-,Safety Programme,C1100
705520,Midland News Association Limited,247.35,Marketing \ Non-staff advertising,130313167,18/02/2021,City Planning,Planning,R4317
705520,Midland News Association Limited,"1,681.98",Construction and Conversion,130313536,25/02/2021,-,Safety Programme,C1100
705520,Midland News Association Limited,593.64,Construction and Conversion,130313671,25/02/2021,-,"GF - Maintenance of unclassified roads	",C1100
705520,Midland News Association Limited,"1,484.10",Marketing \ Non-staff advertising,130313673,25/02/2021,Housing,Private Sector Housing,R4317
705520,Midland News Association Limited,507.96,Marketing \ Non-staff advertising,130313657,25/02/2021,Governance Services,General Elections,R4317
705520,Midland News Association Limited,"1,929.33",Construction and Conversion,130313171,18/02/2021,-,"GF - Maintenance of unclassified roads	",C1100
705520,Midland News Association Limited,"1,187.28",Marketing \ Non-staff advertising,130311249,01/02/2021,Community Safety & Community Cohesion,"SWP - Cohesion Activities			",R4317
705520,Midland News Association Limited,"1,009.80",Marketing \ Non-staff advertising,130311250,01/02/2021,Operation & Maintenance of Existing Network,UTC - Utilities Organisations,R4317
705520,Midland News Association Limited,890.46,Marketing \ Non-staff advertising,130311256,01/02/2021,Operation & Maintenance of Existing Network,UTC - Utilities Organisations,R4317
705520,Midland News Association Limited,890.46,Marketing \ Non-staff advertising,130313169,18/02/2021,Operation & Maintenance of Existing Network,UTC - Utilities Organisations,R4317
705520,Midland News Association Limited,890.46,Marketing \ Non-staff advertising,130313174,18/02/2021,Operation & Maintenance of Existing Network,UTC - Utilities Organisations,R4317
705520,Midland News Association Limited,212.50,Marketing \ Non-staff advertising,130311795,10/02/2021,Enterprise,Economic Development,R4317
705520,Midland News Association Limited,445.23,Construction and Conversion,130313659,25/02/2021,-,"GF - Highway Structures (bridges, subways, retaining walls)	",C1100
705520,Midland News Association Limited,544.18,Marketing \ Non-staff advertising,130313661,25/02/2021,Operation & Maintenance of Existing Network,UTC - Utilities Organisations,R4317
705520,Midland News Association Limited,"1,583.04",Construction and Conversion,130313537,25/02/2021,-,Safety Programme,C1100
705520,Midland News Association Limited,890.46,Marketing \ Non-staff advertising,130313538,25/02/2021,Operation & Maintenance of Existing Network,UTC - Utilities Organisations,R4317
705525,Midland Quarry Products Limited,250.66,Materials,130311129,01/02/2021,Highways Maintenance,Patching,R4007
705525,Midland Quarry Products Limited,12.48,Materials,130311128,01/02/2021,Highways Maintenance,Patching,R4007
705525,Midland Quarry Products Limited,825.66,Materials,130313360,25/02/2021,Highways Maintenance,Patching,R4007
705525,Midland Quarry Products Limited,299.18,Materials,130313417,25/02/2021,Highways Maintenance,Patching,R4007
705525,Midland Quarry Products Limited,186.62,Materials,130313539,25/02/2021,Highways Maintenance,Patching,R4007
705525,Midland Quarry Products Limited,230.52,Materials,130312630,16/02/2021,Highways Maintenance,Patching,R4007
705525,Midland Quarry Products Limited,241.51,Materials,130312364,11/02/2021,Highways Maintenance,Patching,R4007
705525,Midland Quarry Products Limited,229.67,Materials,130312772,16/02/2021,Highways Maintenance,Patching,R4007
705525,Midland Quarry Products Limited,18.08,Materials,130312629,16/02/2021,Highways Maintenance,Patching,R4007
705525,Midland Quarry Products Limited,91.48,Materials,130312964,16/02/2021,Highways Maintenance,Patching,R4007
705525,Midland Quarry Products Limited,440.93,Materials,130311401,03/02/2021,Highways Maintenance,Patching,R4007
705525,Midland Quarry Products Limited,394.55,Materials,130311967,09/02/2021,Highways Maintenance,Planned Highways Maintenance,R4007
705525,Midland Quarry Products Limited,333.09,Materials,130311257,03/02/2021,Highways Maintenance,Patching,R4007
705525,Midland Quarry Products Limited,233.33,Materials,130311968,09/02/2021,Highways Maintenance,Patching,R4007
705525,Midland Quarry Products Limited,8.32,Materials,130311965,09/02/2021,Highways Maintenance,Patching,R4007
705525,Midland Quarry Products Limited,548.88,Materials,130311969,09/02/2021,Highways Maintenance,Planned Highways Maintenance,R4007
705525,Midland Quarry Products Limited,259.80,Materials,130311966,09/02/2021,Highways Maintenance,Patching,R4007
705525,Midland Quarry Products Limited,662.48,Materials,130312496,11/02/2021,Highways Maintenance,Patching,R4007
705525,Midland Quarry Products Limited,263.46,Materials,130312365,11/02/2021,Highways Maintenance,Patching,R4007
705525,Midland Quarry Products Limited,400.60,Materials,130313065,19/02/2021,Highways Maintenance,Patching,R4007
705525,Midland Quarry Products Limited,517.72,Materials,130311646,09/02/2021,Highways Maintenance,Patching,R4007
705525,Midland Quarry Products Limited,544.36,Materials,130313177,19/02/2021,Highways Maintenance,Patching,R4007
705525,Midland Quarry Products Limited,348.58,Materials,130311645,09/02/2021,Highways Maintenance,Patching,R4007
705525,Midland Quarry Products Limited,320.37,Materials,130313540,24/02/2021,Highways Maintenance,Planned Highways Maintenance,R4007
705525,Midland Quarry Products Limited,24.80,Materials,130313291,19/02/2021,Highways Maintenance,Patching,R4007
705525,Midland Quarry Products Limited,316.34,Materials,130313292,19/02/2021,Highways Maintenance,Patching,R4007
705534,Midlands Truck & Van Limited,33.03,Equipment - Purchase,190825039,17/02/2021,Fleet Services,Fleet Management,R4000
705534,Midlands Truck & Van Limited,12.42,Equipment - Purchase,190825038,17/02/2021,Fleet Services,Fleet Management,R4000
705534,Midlands Truck & Van Limited,46.98,Equipment - Purchase,190825038,17/02/2021,Fleet Services,Fleet Management,R4000
705534,Midlands Truck & Van Limited,2.43,Equipment - Purchase,190825038,17/02/2021,Fleet Services,Fleet Management,R4000
705534,Midlands Truck & Van Limited,13.77,Equipment - Purchase,190825038,17/02/2021,Fleet Services,Fleet Management,R4000
705534,Midlands Truck & Van Limited,338.40,Equipment - Purchase,190825038,17/02/2021,Fleet Services,Fleet Management,R4000
705534,Midlands Truck & Van Limited,83.25,Equipment - Purchase,190822380,11/02/2021,Fleet Services,Fleet Management,R4000
705534,Midlands Truck & Van Limited,277.53,Equipment - Purchase,190822381,11/02/2021,Fleet Services,Fleet Management,R4000
705534,Midlands Truck & Van Limited,168.00,Equipment - Purchase,190822382,11/02/2021,Fleet Services,Fleet Management,R4000
705542,Midwest Mechanical&ElectricalServicesLtd,71.44,R&M - Departmental planned (external),130312785,26/02/2021,Project and Works Team � Maintenance Programm,Centralised R&M,R2001
705542,Midwest Mechanical&ElectricalServicesLtd,91.66,R&M - Departmental planned (external),130313421,26/02/2021,Project and Works Team � Maintenance Programm,Centralised R&M,R2001
705542,Midwest Mechanical&ElectricalServicesLtd,249.15,R&M - Departmental planned (external),130313293,26/02/2021,Project and Works Team � Maintenance Programm,Centralised R&M,R2001
705542,Midwest Mechanical&ElectricalServicesLtd,"3,564.48",R&M - Departmental planned (external),130312646,26/02/2021,Project and Works Team � Maintenance Programm,Centralised R&M,R2001
705542,Midwest Mechanical&ElectricalServicesLtd,"1,965.67",R&M - Departmental planned (external),130313709,26/02/2021,Project and Works Team � Maintenance Programm,Centralised R&M,R2001
705542,Midwest Mechanical&ElectricalServicesLtd,"15,691.10",Construction and Conversion,130313180,26/02/2021,-,Corporate Asset Management,C1100
705542,Midwest Mechanical&ElectricalServicesLtd,309.61,R&M - Departmental planned (external),130312371,15/02/2021,Project and Works Team � Maintenance Programm,Centralised R&M,R2001
705542,Midwest Mechanical&ElectricalServicesLtd,229.47,R&M - Departmental planned (external),130313724,26/02/2021,Project and Works Team � Maintenance Programm,Centralised R&M,R2001
705542,Midwest Mechanical&ElectricalServicesLtd,192.25,R&M - Departmental planned (external),130311648,11/02/2021,Project and Works Team � Maintenance Programm,Centralised R&M,R2001
705542,Midwest Mechanical&ElectricalServicesLtd,112.00,R&M - Departmental planned (external),130311293,11/02/2021,Project and Works Team � Maintenance Programm,Centralised R&M,R2001
705542,Midwest Mechanical&ElectricalServicesLtd,40.00,R&M - Departmental planned (external),130311977,11/02/2021,Project and Works Team � Maintenance Programm,Asset Management Team,R2001
705542,Midwest Mechanical&ElectricalServicesLtd,52.38,R&M - Departmental planned (external),130311974,11/02/2021,Project and Works Team � Maintenance Programm,Asset Management Team,R2001
705542,Midwest Mechanical&ElectricalServicesLtd,356.47,R&M - Departmental planned (external),130312378,15/02/2021,Project and Works Team � Maintenance Programm,Centralised R&M,R2001
705542,Midwest Mechanical&ElectricalServicesLtd,"20,668.78",R&M - Departmental planned (external),130310380,26/02/2021,Project and Works Team � Maintenance Programm,Centralised R&M,R2001
705542,Midwest Mechanical&ElectricalServicesLtd,217.37,R&M - Departmental planned (external),130311406,15/02/2021,Project and Works Team � Maintenance Programm,Centralised R&M,R2001
705542,Midwest Mechanical&ElectricalServicesLtd,240.69,R&M - Departmental planned (external),130310638,02/02/2021,Project and Works Team � Maintenance Programm,Centralised R&M,R2001
705542,Midwest Mechanical&ElectricalServicesLtd,40.00,R&M - Departmental planned (external),130313185,22/02/2021,Project and Works Team � Maintenance Programm,Centralised R&M,R2001
705542,Midwest Mechanical&ElectricalServicesLtd,43.61,R&M - Departmental planned (external),130311799,11/02/2021,Project and Works Team � Maintenance Programm,Centralised R&M,R2001
705542,Midwest Mechanical&ElectricalServicesLtd,78.57,R&M - Departmental planned (external),130311971,11/02/2021,Project and Works Team � Maintenance Programm,Centralised R&M,R2001
705542,Midwest Mechanical&ElectricalServicesLtd,"6,542.40",R&M - Departmental planned (external),130313179,26/02/2021,Project and Works Team � Maintenance Programm,"Civic Centre Repairs & Maintenance	",R2001
705542,Midwest Mechanical&ElectricalServicesLtd,50.23,R&M - Departmental planned (external),130313435,26/02/2021,Project and Works Team � Maintenance Programm,Centralised R&M,R2001
705542,Midwest Mechanical&ElectricalServicesLtd,222.61,R&M - Departmental planned (external),130312403,11/02/2021,Project and Works Team � Maintenance Programm,Centralised R&M,R2001
705542,Midwest Mechanical&ElectricalServicesLtd,117.85,R&M - Departmental planned (external),130312404,11/02/2021,Facilities Management,Culwell Street Depot,R2001
705542,Midwest Mechanical&ElectricalServicesLtd,67.66,R&M - Departmental planned (external),130311796,11/02/2021,Project and Works Team � Maintenance Programm,Centralised R&M,R2001
705542,Midwest Mechanical&ElectricalServicesLtd,40.00,R&M - Departmental planned (external),130311976,11/02/2021,Project and Works Team � Maintenance Programm,Asset Management Team,R2001
705542,Midwest Mechanical&ElectricalServicesLtd,97.63,R&M - Departmental planned (external),130312784,26/02/2021,Project and Works Team � Maintenance Programm,Centralised R&M,R2001
705542,Midwest Mechanical&ElectricalServicesLtd,598.56,R&M - Departmental planned (external),130312634,26/02/2021,Project and Works Team � Maintenance Programm,Centralised R&M,R2001
705542,Midwest Mechanical&ElectricalServicesLtd,91.66,R&M - Departmental planned (external),130310771,03/02/2021,Project and Works Team � Maintenance Programm,Centralised R&M,R2001
705542,Midwest Mechanical&ElectricalServicesLtd,"1,702.37",R&M - Departmental planned (external),130310381,03/02/2021,Project and Works Team � Maintenance Programm,Centralised R&M,R2001
705542,Midwest Mechanical&ElectricalServicesLtd,728.00,R&M - Departmental planned (external),130275647,03/02/2021,Project and Works Team � Maintenance Programm,Centralised R&M,R2001
705542,Midwest Mechanical&ElectricalServicesLtd,384.13,R&M - Departmental planned (external),130307819,15/02/2021,Project and Works Team � Maintenance Programm,Centralised R&M,R2001
705542,Midwest Mechanical&ElectricalServicesLtd,112.78,R&M - Departmental planned (external),130312394,15/02/2021,Project and Works Team � Maintenance Programm,Asset Management Team,R2001
705542,Midwest Mechanical&ElectricalServicesLtd,339.15,R&M - Departmental planned (external),130312411,11/02/2021,Adult Education,Old Hall Street Main,R2001
705542,Midwest Mechanical&ElectricalServicesLtd,241.61,R&M - Departmental planned (external),130311540,11/02/2021,Project and Works Team � Maintenance Programm,Centralised R&M,R2001
705542,Midwest Mechanical&ElectricalServicesLtd,40.00,R&M - Departmental planned (external),130311802,11/02/2021,Project and Works Team � Maintenance Programm,Centralised R&M,R2001
705542,Midwest Mechanical&ElectricalServicesLtd,78.57,R&M - Departmental planned (external),130311975,11/02/2021,Project and Works Team � Maintenance Programm,Asset Management Team,R2001
705542,Midwest Mechanical&ElectricalServicesLtd,337.22,R&M - Departmental planned (external),130311801,26/02/2021,Project and Works Team � Maintenance Programm,Centralised R&M,R2001
705542,Midwest Mechanical&ElectricalServicesLtd,217.75,R&M - Departmental planned (external),130312782,26/02/2021,Project and Works Team � Maintenance Programm,Centralised R&M,R2001
705542,Midwest Mechanical&ElectricalServicesLtd,315.66,R&M - Departmental planned (external),130313420,26/02/2021,Project and Works Team � Maintenance Programm,Centralised R&M,R2001
705542,Midwest Mechanical&ElectricalServicesLtd,65.47,R&M - Departmental planned (external),130304290,03/02/2021,Project and Works Team � Maintenance Programm,Centralised R&M,R2001
705542,Midwest Mechanical&ElectricalServicesLtd,"1,568.93",R&M - Departmental planned (external),130311535,03/02/2021,Facilities Management,Bilston Town Hall,R2001
705542,Midwest Mechanical&ElectricalServicesLtd,65.47,R&M - Departmental planned (external),130312659,17/02/2021,Project and Works Team � Maintenance Programm,Centralised R&M,R2001
705542,Midwest Mechanical&ElectricalServicesLtd,201.96,R&M - Departmental planned (external),130304662,03/02/2021,Project and Works Team � Maintenance Programm,Centralised R&M,R2001
705542,Midwest Mechanical&ElectricalServicesLtd,"-2,966.65",R&M - Departmental planned (external),130311153,03/02/2021,Project and Works Team � Maintenance Programm,Centralised R&M,R2001
705542,Midwest Mechanical&ElectricalServicesLtd,97.95,R&M - Departmental planned (external),130311403,03/02/2021,Facilities Management,Magistrates,R2001
705542,Midwest Mechanical&ElectricalServicesLtd,-315.24,R&M - Departmental planned (external),130305340,03/02/2021,Project and Works Team � Maintenance Programm,Centralised R&M,R2001
705542,Midwest Mechanical&ElectricalServicesLtd,"2,966.65",R&M - Departmental planned (external),130293001,03/02/2021,Project and Works Team � Maintenance Programm,Centralised R&M,R2001
705542,Midwest Mechanical&ElectricalServicesLtd,"1,363.67",Construction and Conversion,130312637,16/02/2021,-,Capital Maintenance - Heating Pipework Upgrades,C1100
705542,Midwest Mechanical&ElectricalServicesLtd,40.00,R&M - Departmental planned (external),130311409,05/02/2021,Project and Works Team � Maintenance Programm,Centralised R&M,R2001
705542,Midwest Mechanical&ElectricalServicesLtd,40.00,R&M - Departmental planned (external),130313296,24/02/2021,Project and Works Team � Maintenance Programm,Centralised R&M,R2001
705542,Midwest Mechanical&ElectricalServicesLtd,40.00,R&M - Departmental planned (external),130310630,01/02/2021,Project and Works Team � Maintenance Programm,Centralised R&M,R2001
705542,Midwest Mechanical&ElectricalServicesLtd,109.61,R&M - Departmental planned (external),130310772,01/02/2021,Project and Works Team � Maintenance Programm,Centralised R&M,R2001
705542,Midwest Mechanical&ElectricalServicesLtd,198.85,R&M - Departmental planned (external),130310642,01/02/2021,Project and Works Team � Maintenance Programm,Centralised R&M,R2001
705542,Midwest Mechanical&ElectricalServicesLtd,"1,042.61",R&M - Departmental planned (external),130310651,01/02/2021,Project and Works Team � Maintenance Programm,Centralised R&M,R2001
705542,Midwest Mechanical&ElectricalServicesLtd,62.30,R&M - Departmental planned (external),130310652,01/02/2021,Project and Works Team � Maintenance Programm,Centralised R&M,R2001
705542,Midwest Mechanical&ElectricalServicesLtd,-470.98,R&M - Departmental planned (external),130313467,25/02/2021,Project and Works Team � Maintenance Programm,Centralised R&M,R2001
705542,Midwest Mechanical&ElectricalServicesLtd,40.00,R&M - Departmental planned (external),130313182,24/02/2021,Project and Works Team � Maintenance Programm,Centralised R&M,R2001
705542,Midwest Mechanical&ElectricalServicesLtd,414.55,R&M - Departmental planned (external),130310637,01/02/2021,Project and Works Team � Maintenance Programm,Centralised R&M,R2001
705542,Midwest Mechanical&ElectricalServicesLtd,349.00,R&M - Departmental planned (external),130311141,01/02/2021,Facilities Management,Culwell Street Depot,R2001
705542,Midwest Mechanical&ElectricalServicesLtd,40.00,R&M - Departmental planned (external),130310625,01/02/2021,Project and Works Team � Maintenance Programm,Centralised R&M,R2001
705542,Midwest Mechanical&ElectricalServicesLtd,"16,260.00",R&M - Departmental planned (external),130308871,01/02/2021,Project and Works Team � Maintenance Programm,Centralised R&M,R2001
705542,Midwest Mechanical&ElectricalServicesLtd,113.70,R&M - Departmental planned (external),130310644,01/02/2021,Project and Works Team � Maintenance Programm,Centralised R&M,R2001
705542,Midwest Mechanical&ElectricalServicesLtd,63.08,R&M - Departmental planned (external),130310645,01/02/2021,Project and Works Team � Maintenance Programm,Centralised R&M,R2001
705542,Midwest Mechanical&ElectricalServicesLtd,"1,951.14",R&M - Departmental planned (external),130313541,25/02/2021,Project and Works Team � Maintenance Programm,Centralised R&M,R2001
705542,Midwest Mechanical&ElectricalServicesLtd,85.86,R&M - Departmental planned (external),130312395,18/02/2021,Facilities Management,Culwell Street Depot,R2001
705542,Midwest Mechanical&ElectricalServicesLtd,-26.19,R&M - Departmental planned (external),130311152,01/02/2021,Project and Works Team � Maintenance Programm,Centralised R&M,R2001
705542,Midwest Mechanical&ElectricalServicesLtd,620.00,R&M - Departmental planned (external),130310270,01/02/2021,Project and Works Team � Maintenance Programm,Centralised R&M,R2001
705542,Midwest Mechanical&ElectricalServicesLtd,90.00,R&M - Departmental planned (external),130310775,01/02/2021,Project and Works Team � Maintenance Programm,Centralised R&M,R2001
705542,Midwest Mechanical&ElectricalServicesLtd,40.00,R&M - Departmental planned (external),130310635,01/02/2021,Project and Works Team � Maintenance Programm,Centralised R&M,R2001
705542,Midwest Mechanical&ElectricalServicesLtd,88.45,R&M - Departmental planned (external),130310634,01/02/2021,Project and Works Team � Maintenance Programm,Centralised R&M,R2001
705542,Midwest Mechanical&ElectricalServicesLtd,406.71,R&M - Departmental planned (external),130312545,18/02/2021,Project and Works Team � Maintenance Programm,"Civic Centre Repairs & Maintenance	",R2001
705542,Midwest Mechanical&ElectricalServicesLtd,942.84,R&M - Departmental planned (external),130312522,18/02/2021,Project and Works Team � Maintenance Programm,Centralised R&M,R2001
705542,Midwest Mechanical&ElectricalServicesLtd,"1,229.65",R&M - Departmental planned (external),130313425,25/02/2021,Covid-19 (Public Health 1),Covid Community Outbreak Management Fund (COMF),R2001
705542,Midwest Mechanical&ElectricalServicesLtd,104.76,R&M - Departmental planned (external),130312535,16/02/2021,Facilities Management,Hickman Avenue Depot,R2001
705542,Midwest Mechanical&ElectricalServicesLtd,"3,515.63",R&M - Departmental planned (external),130308102,23/02/2021,Corporate Asset Management,Centralised Planned Maintenance,R2001
705542,Midwest Mechanical&ElectricalServicesLtd,"1,058.10",R&M - Departmental planned (external),130313433,25/02/2021,Catering,"West Park Tea Room	",R2001
705542,Midwest Mechanical&ElectricalServicesLtd,40.00,R&M - Departmental planned (external),130313361,24/02/2021,Project and Works Team � Maintenance Programm,Centralised R&M,R2001
705542,Midwest Mechanical&ElectricalServicesLtd,131.17,R&M - Departmental planned (external),130312183,10/02/2021,Facilities Management,Hickman Avenue Depot,R2001
705542,Midwest Mechanical&ElectricalServicesLtd,74.76,R&M - Departmental planned (external),130310773,01/02/2021,Project and Works Team � Maintenance Programm,Centralised R&M,R2001
705542,Midwest Mechanical&ElectricalServicesLtd,450.00,R&M - Departmental planned (external),130310269,01/02/2021,Project and Works Team � Maintenance Programm,Centralised R&M,R2001
705542,Midwest Mechanical&ElectricalServicesLtd,353.55,R&M - Departmental planned (external),130310657,01/02/2021,Project and Works Team � Maintenance Programm,Centralised R&M,R2001
705542,Midwest Mechanical&ElectricalServicesLtd,41.87,R&M - Departmental planned (external),130311298,01/02/2021,Facilities Management,Caretakers Community Centre,R2001
705542,Midwest Mechanical&ElectricalServicesLtd,40.00,R&M - Departmental planned (external),130310641,01/02/2021,Project and Works Team � Maintenance Programm,Centralised R&M,R2001
705542,Midwest Mechanical&ElectricalServicesLtd,40.00,R&M - Departmental planned (external),130313066,24/02/2021,Project and Works Team � Maintenance Programm,Centralised R&M,R2001
705542,Midwest Mechanical&ElectricalServicesLtd,40.00,R&M - Departmental planned (external),130313442,24/02/2021,Facilities Management,Hickman Avenue Depot,R2001
705542,Midwest Mechanical&ElectricalServicesLtd,-100.48,R&M - Departmental planned (external),130313542,24/02/2021,Facilities Management,Caretakers Community Centre,R2001
705542,Midwest Mechanical&ElectricalServicesLtd,"5,345.00",R&M - Departmental planned (external),130308873,24/02/2021,Project and Works Team � Maintenance Programm,Centralised R&M,R2001
705542,Midwest Mechanical&ElectricalServicesLtd,40.00,R&M - Departmental planned (external),130311267,24/02/2021,Project and Works Team � Maintenance Programm,Centralised R&M,R2001
705542,Midwest Mechanical&ElectricalServicesLtd,546.01,R&M - Departmental planned (external),130313461,24/02/2021,Project and Works Team � Maintenance Programm,Centralised R&M,R2001
705542,Midwest Mechanical&ElectricalServicesLtd,"-4,998.20",R&M - Departmental planned (external),130311593,04/02/2021,Project and Works Team � Maintenance Programm,Centralised R&M,R2001
705542,Midwest Mechanical&ElectricalServicesLtd,"2,966.65",R&M - Departmental planned (external),130304378,24/02/2021,Project and Works Team � Maintenance Programm,Centralised R&M,R2001
705542,Midwest Mechanical&ElectricalServicesLtd,40.00,R&M - Departmental planned (external),130311270,24/02/2021,Project and Works Team � Maintenance Programm,Centralised R&M,R2001
705542,Midwest Mechanical&ElectricalServicesLtd,43.61,R&M - Departmental planned (external),130311273,24/02/2021,Project and Works Team � Maintenance Programm,Centralised R&M,R2001
705542,Midwest Mechanical&ElectricalServicesLtd,132.85,R&M - Departmental planned (external),130313458,24/02/2021,Project and Works Team � Maintenance Programm,Centralised R&M,R2001
705542,Midwest Mechanical&ElectricalServicesLtd,196.46,R&M - Departmental planned (external),130313457,24/02/2021,Project and Works Team � Maintenance Programm,Centralised R&M,R2001
705542,Midwest Mechanical&ElectricalServicesLtd,112.85,R&M - Departmental planned (external),130311005,04/02/2021,Project and Works Team � Maintenance Programm,Centralised R&M,R2001
705542,Midwest Mechanical&ElectricalServicesLtd,-62.30,R&M - Departmental planned (external),130311650,04/02/2021,Facilities Management,Management of Vacant Properties,R2001
705542,Midwest Mechanical&ElectricalServicesLtd,331.10,R&M - Departmental planned (external),130310660,02/02/2021,Project and Works Team � Maintenance Programm,Centralised R&M,R2001
705542,Midwest Mechanical&ElectricalServicesLtd,297.22,R&M - Departmental planned (external),130310640,02/02/2021,Project and Works Team � Maintenance Programm,Centralised R&M,R2001
705542,Midwest Mechanical&ElectricalServicesLtd,42.26,R&M - Departmental planned (external),130310908,22/02/2021,Project and Works Team � Maintenance Programm,Centralised R&M,R2001
705542,Midwest Mechanical&ElectricalServicesLtd,-104.76,R&M - Departmental planned (external),130311302,02/02/2021,Project and Works Team � Maintenance Programm,Centralised R&M,R2001
705542,Midwest Mechanical&ElectricalServicesLtd,40.00,R&M - Departmental planned (external),130311261,24/02/2021,Project and Works Team � Maintenance Programm,Centralised R&M,R2001
705542,Midwest Mechanical&ElectricalServicesLtd,"1,873.49",R&M - Departmental planned (external),130311004,24/02/2021,Project and Works Team � Maintenance Programm,Centralised R&M,R2001
705542,Midwest Mechanical&ElectricalServicesLtd,40.00,R&M - Departmental planned (external),130311272,24/02/2021,Project and Works Team � Maintenance Programm,Centralised R&M,R2001
705542,Midwest Mechanical&ElectricalServicesLtd,584.10,R&M - Departmental planned (external),130313295,24/02/2021,Project and Works Team � Maintenance Programm,Centralised R&M,R2001
705542,Midwest Mechanical&ElectricalServicesLtd,534.00,R&M - Departmental planned (external),130312777,24/02/2021,Project and Works Team � Maintenance Programm,Centralised R&M,R2001
705542,Midwest Mechanical&ElectricalServicesLtd,40.00,R&M - Departmental planned (external),130311269,24/02/2021,Project and Works Team � Maintenance Programm,Centralised R&M,R2001
705542,Midwest Mechanical&ElectricalServicesLtd,265.86,R&M - Departmental planned (external),130311137,02/02/2021,Project and Works Team � Maintenance Programm,Centralised R&M,R2001
705542,Midwest Mechanical&ElectricalServicesLtd,40.00,R&M - Departmental planned (external),130309745,22/02/2021,Project and Works Team � Maintenance Programm,Centralised R&M,R2001
705542,Midwest Mechanical&ElectricalServicesLtd,94.75,R&M - Departmental planned (external),130311284,24/02/2021,Project and Works Team � Maintenance Programm,Centralised R&M,R2001
705542,Midwest Mechanical&ElectricalServicesLtd,82.85,R&M - Departmental planned (external),130311283,24/02/2021,Project and Works Team � Maintenance Programm,Centralised R&M,R2001
705542,Midwest Mechanical&ElectricalServicesLtd,"1,044.34",R&M - Departmental planned (external),130306557,24/02/2021,Project and Works Team � Maintenance Programm,Centralised R&M,R2001
705542,Midwest Mechanical&ElectricalServicesLtd,260.76,R&M - Departmental planned (external),130313466,24/02/2021,Project and Works Team � Maintenance Programm,Centralised R&M,R2001
705542,Midwest Mechanical&ElectricalServicesLtd,52.38,R&M - Departmental planned (external),130312967,19/02/2021,Project and Works Team � Maintenance Programm,Centralised R&M,R2001
705542,Midwest Mechanical&ElectricalServicesLtd,40.00,R&M - Departmental planned (external),130312965,19/02/2021,Project and Works Team � Maintenance Programm,Centralised R&M,R2001
705542,Midwest Mechanical&ElectricalServicesLtd,62.30,R&M - Departmental planned (external),130313183,24/02/2021,Project and Works Team � Maintenance Programm,Centralised R&M,R2001
705542,Midwest Mechanical&ElectricalServicesLtd,87.22,R&M - Departmental planned (external),130312783,24/02/2021,Project and Works Team � Maintenance Programm,Centralised R&M,R2001
705542,Midwest Mechanical&ElectricalServicesLtd,106.80,R&M - Departmental planned (external),130304954,24/02/2021,Project and Works Team � Maintenance Programm,Centralised R&M,R2001
705542,Midwest Mechanical&ElectricalServicesLtd,444.00,R&M - Departmental planned (external),130312778,24/02/2021,Project and Works Team � Maintenance Programm,Centralised R&M,R2001
705542,Midwest Mechanical&ElectricalServicesLtd,40.00,R&M - Departmental planned (external),130311277,24/02/2021,Project and Works Team � Maintenance Programm,Centralised R&M,R2001
705542,Midwest Mechanical&ElectricalServicesLtd,139.75,R&M - Departmental planned (external),130311134,08/02/2021,Project and Works Team � Maintenance Programm,Centralised R&M,R2001
705542,Midwest Mechanical&ElectricalServicesLtd,212.29,R&M - Departmental planned (external),130311268,08/02/2021,Project and Works Team � Maintenance Programm,Centralised R&M,R2001
705542,Midwest Mechanical&ElectricalServicesLtd,40.00,R&M - Departmental planned (external),130311142,08/02/2021,Project and Works Team � Maintenance Programm,Centralised R&M,R2001
705542,Midwest Mechanical&ElectricalServicesLtd,40.00,R&M - Departmental planned (external),130311147,08/02/2021,Project and Works Team � Maintenance Programm,Centralised R&M,R2001
705542,Midwest Mechanical&ElectricalServicesLtd,40.00,R&M - Departmental planned (external),130311292,08/02/2021,Project and Works Team � Maintenance Programm,Centralised R&M,R2001
705542,Midwest Mechanical&ElectricalServicesLtd,40.00,R&M - Departmental planned (external),130311285,08/02/2021,Project and Works Team � Maintenance Programm,Centralised R&M,R2001
705542,Midwest Mechanical&ElectricalServicesLtd,40.00,R&M - Departmental planned (external),130311415,08/02/2021,Project and Works Team � Maintenance Programm,Centralised R&M,R2001
705542,Midwest Mechanical&ElectricalServicesLtd,56.85,R&M - Departmental planned (external),130311411,08/02/2021,Project and Works Team � Maintenance Programm,Centralised R&M,R2001
705542,Midwest Mechanical&ElectricalServicesLtd,62.30,R&M - Departmental planned (external),130311289,08/02/2021,Project and Works Team � Maintenance Programm,Centralised R&M,R2001
705542,Midwest Mechanical&ElectricalServicesLtd,77.15,R&M - Departmental planned (external),130311299,08/02/2021,Project and Works Team � Maintenance Programm,Centralised R&M,R2001
705542,Midwest Mechanical&ElectricalServicesLtd,67.30,R&M - Departmental planned (external),130311405,08/02/2021,Project and Works Team � Maintenance Programm,Centralised R&M,R2001
705542,Midwest Mechanical&ElectricalServicesLtd,40.00,R&M - Departmental planned (external),130311279,08/02/2021,Facilities Management,Culwell Street Depot,R2001
705542,Midwest Mechanical&ElectricalServicesLtd,188.95,R&M - Departmental planned (external),130311419,08/02/2021,Project and Works Team � Maintenance Programm,Centralised R&M,R2001
705542,Midwest Mechanical&ElectricalServicesLtd,62.30,R&M - Departmental planned (external),130311541,08/02/2021,Project and Works Team � Maintenance Programm,Centralised R&M,R2001
705542,Midwest Mechanical&ElectricalServicesLtd,744.37,R&M - Departmental planned (external),130311423,08/02/2021,Project and Works Team � Maintenance Programm,Centralised R&M,R2001
705542,Midwest Mechanical&ElectricalServicesLtd,"5,561.88",Construction and Conversion,130308897,19/02/2021,-,Corporate Asset Management,C1100
705542,Midwest Mechanical&ElectricalServicesLtd,107.63,R&M - Departmental planned (external),130311133,08/02/2021,Project and Works Team � Maintenance Programm,Centralised R&M,R2001
705542,Midwest Mechanical&ElectricalServicesLtd,40.00,R&M - Departmental planned (external),130311140,08/02/2021,Project and Works Team � Maintenance Programm,Centralised R&M,R2001
705542,Midwest Mechanical&ElectricalServicesLtd,40.00,R&M - Departmental planned (external),130311145,08/02/2021,Project and Works Team � Maintenance Programm,Centralised R&M,R2001
705542,Midwest Mechanical&ElectricalServicesLtd,106.34,R&M - Departmental planned (external),130311151,08/02/2021,Project and Works Team � Maintenance Programm,Centralised R&M,R2001
705542,Midwest Mechanical&ElectricalServicesLtd,62.30,R&M - Departmental planned (external),130311265,08/02/2021,Project and Works Team � Maintenance Programm,Centralised R&M,R2001
705542,Midwest Mechanical&ElectricalServicesLtd,40.00,R&M - Departmental planned (external),130311288,08/02/2021,Project and Works Team � Maintenance Programm,Centralised R&M,R2001
705542,Midwest Mechanical&ElectricalServicesLtd,40.88,R&M - Departmental planned (external),130311538,08/02/2021,Project and Works Team � Maintenance Programm,Centralised R&M,R2001
705542,Midwest Mechanical&ElectricalServicesLtd,85.27,R&M - Departmental planned (external),130311281,08/02/2021,Project and Works Team � Maintenance Programm,Centralised R&M,R2001
705542,Midwest Mechanical&ElectricalServicesLtd,62.30,R&M - Departmental planned (external),130311291,08/02/2021,Project and Works Team � Maintenance Programm,Centralised R&M,R2001
705542,Midwest Mechanical&ElectricalServicesLtd,49.84,R&M - Departmental planned (external),130311297,08/02/2021,Project and Works Team � Maintenance Programm,Centralised R&M,R2001
705542,Midwest Mechanical&ElectricalServicesLtd,94.30,R&M - Departmental planned (external),130311404,08/02/2021,Project and Works Team � Maintenance Programm,Centralised R&M,R2001
705542,Midwest Mechanical&ElectricalServicesLtd,970.10,R&M - Departmental planned (external),130311410,08/02/2021,Project and Works Team � Maintenance Programm,Centralised R&M,R2001
705542,Midwest Mechanical&ElectricalServicesLtd,174.30,R&M - Departmental planned (external),130311414,08/02/2021,Project and Works Team � Maintenance Programm,Centralised R&M,R2001
705542,Midwest Mechanical&ElectricalServicesLtd,72.58,R&M - Departmental planned (external),130311278,08/02/2021,Project and Works Team � Maintenance Programm,Centralised R&M,R2001
705542,Midwest Mechanical&ElectricalServicesLtd,85.35,R&M - Departmental planned (external),130311422,08/02/2021,Project and Works Team � Maintenance Programm,Centralised R&M,R2001
705542,Midwest Mechanical&ElectricalServicesLtd,69.15,R&M - Departmental planned (external),130311418,08/02/2021,Project and Works Team � Maintenance Programm,Centralised R&M,R2001
705542,Midwest Mechanical&ElectricalServicesLtd,62.30,R&M - Departmental planned (external),130311544,08/02/2021,Project and Works Team � Maintenance Programm,Centralised R&M,R2001
705542,Midwest Mechanical&ElectricalServicesLtd,88.95,R&M - Departmental planned (external),130311290,24/02/2021,Project and Works Team � Maintenance Programm,Centralised R&M,R2001
705542,Midwest Mechanical&ElectricalServicesLtd,444.00,R&M - Departmental planned (external),130312776,24/02/2021,Project and Works Team � Maintenance Programm,Centralised R&M,R2001
705542,Midwest Mechanical&ElectricalServicesLtd,62.30,R&M - Departmental planned (external),130313181,24/02/2021,Project and Works Team � Maintenance Programm,Centralised R&M,R2001
705542,Midwest Mechanical&ElectricalServicesLtd,40.00,R&M - Departmental planned (external),130311274,24/02/2021,Project and Works Team � Maintenance Programm,Centralised R&M,R2001
705542,Midwest Mechanical&ElectricalServicesLtd,123.37,R&M - Departmental planned (external),130313447,24/02/2021,Facilities Management,Caretakers Community Centre,R2001
705542,Midwest Mechanical&ElectricalServicesLtd,40.00,R&M - Departmental planned (external),130311295,24/02/2021,Project and Works Team � Maintenance Programm,Centralised R&M,R2001
705542,Midwest Mechanical&ElectricalServicesLtd,"5,100.00",R&M - Departmental planned (external),130308872,24/02/2021,Project and Works Team � Maintenance Programm,Centralised R&M,R2001
705542,Midwest Mechanical&ElectricalServicesLtd,49.84,R&M - Departmental planned (external),130313184,24/02/2021,Project and Works Team � Maintenance Programm,Centralised R&M,R2001
705542,Midwest Mechanical&ElectricalServicesLtd,86.55,R&M - Departmental planned (external),130311264,24/02/2021,Project and Works Team � Maintenance Programm,Centralised R&M,R2001
705542,Midwest Mechanical&ElectricalServicesLtd,100.48,R&M - Departmental planned (external),130311132,24/02/2021,Facilities Management,Caretakers Community Centre,R2001
705542,Midwest Mechanical&ElectricalServicesLtd,295.98,R&M - Departmental planned (external),130313423,24/02/2021,Facilities Management,Culwell Street Depot,R2001
705542,Midwest Mechanical&ElectricalServicesLtd,190.14,R&M - Departmental planned (external),130308875,04/02/2021,Project and Works Team � Maintenance Programm,Centralised R&M,R2001
705542,Midwest Mechanical&ElectricalServicesLtd,82.20,R&M - Departmental planned (external),130301114,04/02/2021,Project and Works Team � Maintenance Programm,Centralised R&M,R2001
705542,Midwest Mechanical&ElectricalServicesLtd,74.38,R&M - Departmental planned (external),130310631,04/02/2021,Project and Works Team � Maintenance Programm,Centralised R&M,R2001
705542,Midwest Mechanical&ElectricalServicesLtd,137.06,R&M - Departmental planned (external),130311296,08/02/2021,Project and Works Team � Maintenance Programm,Centralised R&M,R2001
705542,Midwest Mechanical&ElectricalServicesLtd,63.70,R&M - Departmental planned (external),130311413,08/02/2021,Project and Works Team � Maintenance Programm,Centralised R&M,R2001
705542,Midwest Mechanical&ElectricalServicesLtd,69.15,R&M - Departmental planned (external),130311417,08/02/2021,Project and Works Team � Maintenance Programm,Centralised R&M,R2001
705542,Midwest Mechanical&ElectricalServicesLtd,124.85,R&M - Departmental planned (external),130311402,08/02/2021,Project and Works Team � Maintenance Programm,Centralised R&M,R2001
